{"text_format":"1","workbook":"xlsx","n_sheets":16,"sheets":["Introduction","Input and results - animal farm","Input and results - cultivation","Calc details - animal farm","Calc details - cultivation","Annex 1 - Climate zones","Annex 2 - Ym","Annex 3 - B0","Annex 4 - MCF","Annex 5 - EF_nit_S","Annex 6 - Frac_leach_S","Annex 7 - Frac_vol_S","Annex 8 - Productivity","Annex 9 - EF_1 & EF_3","Annex 10 - Crop parameters","Annex 11 - Indirect N2O soil"],"not_rendered":{"charts":0,"images":1,"macros":1,"external_links":0,"defined_names":324,"comments":2,"pivot_tables":0},"unopened":[],"bounds":{"document_bytes":16777216,"sheet_cells":100000,"rows_first":2000,"rows_last":500,"rows_between":2000,"halvings":0,"cell_chars":16384,"cell_head_chars":4096},"cells_cut":0,"cells_raw":0,"read":"whole","date_system":"1900"}

{"sheet":"Introduction","index":0,"n_rows":29,"n_cols":4,"rows_kept":29,"cut":false,"hidden":false,"merged":[[11,1,11,5],[12,1,12,5],[13,1,13,5],[14,1,14,5],[15,0,15,5],[25,0,25,5],[4,0,4,5],[6,0,6,5],[7,0,7,5],[20,0,20,5],[21,0,21,5],[22,0,22,5],[24,0,24,5],[16,0,16,5],[17,0,17,5],[18,0,18,5],[5,0,5,5],[8,0,8,5],[9,0,9,5],[19,0,19,5],[10,1,10,5],[27,0,27,2],[28,0,28,2],[26,3,26,5],[27,3,27,5],[28,3,28,5],[26,0,26,2]]}
[]
[]
[]
[]
["Introduction"]
["This calculation aid is complementary to the GRSB carbon footprint guideline, commissioned by GRSB and approved on [Date]. It was developed and prepared by Blonk Consultants.\nThe tool is based on the content of section 4 of the guideline and allows to calculate emissions from animal farm and cultivation, following the Tier 2 approach for the animal farm and Tier 2 or Tier 1 for the crop cultivation (depending on the availability of data), as defined in section (4.1). Data inputs required are described in the inventory data collection, in chapter 3 of the guideline.\nThe method employed follows international standards of life cycle assessment, in particular the 2019 refinement to the 2006 IPCC Guidelines for National Greenhouse Gas Inventories (2006).\nIn order to use the tool, macros need to enabled."]
[]
["Content of the tool"]
["● The sheets Input and results contain the input parameters necessary to calculate the emissions and the results of the model, respectively for animal farm and crop cultivation."]
["● The sheets Calc details contain the details of the calculations that lead to the results; all parameters defined in section (4.2) and (4.3) of the guideline are collected in a table, and they are subdivided in:"]
[null,"◦ input: when given as an input by the practitioner, in the sheets \"Input and results\";"]
[null,"◦ calculated: when calculated as a result of a specific formula, which often refers to an equation of the guideline;"]
[null,"◦ default: when given as a default value;"]
[null,"◦ table: when given as a default value, which depends on other parameters."]
[null,"Most of the subscripts in the formulas written in the guideline were dropped, as the calculation aid allows to calculate emissions only for one animal type (or crop type, or environmental condition) at a time."]
["● The Annex sheets contain additional information necessary for the estimation of certain parameters."]
[]
["How to use the calculation aid?"]
["● Select one of the sheets \"Input and results\"."]
["● Fill in all input parameters in the tables on the left side, except for the ones that are not relevant (e.g. parameters for dairy cows, if the animal system chosen is \"Non-dairy\")."]
["● Click on the button \"Calculate results\"."]
["● Visualize the results in the table on the right side."]
["● Repeat the steps above for all animal types or crops to be modelled in your system."]
[]
["Contacts"]
["For further clarifications, comments or feedback, please contact us:"]
["Daniele Castellana",null,null,"daniele@blonkconsultants.nl"]
["Paulina Gual",null,null,"paulina@blonkconsultants.nl"]
["Nicolo' Braconi",null,null,"nicolo@blonkconsultants.nl"]

{"sheet":"Input and results - animal farm","index":1,"n_rows":72,"n_cols":9,"rows_kept":72,"cut":false,"hidden":false,"merged":[[27,1,27,2],[2,6,2,8],[2,1,2,4],[1,1,1,8]]}
[]
[null,"Animal farm emissions"]
[null,"General parameters",null,null,null,null,"Results"]
[null,"Parameter description","Parameter name","Value","Unit",null,"Emission","Amount","Unit"]
[null,"Livestock category (dairy or non-dairy cattle)","Livestock_category","Non-dairy","dimensionless",null,"CH4 enteric",{"$f":"CH4_ent","v":{"$error":"#NAME?"}},"kg yr-1"]
[null,"Animal type (female cows, castrates, bulls)","Animal_type","Females","dimensionless",null,"CH4 from manure",{"$f":"CH4_man","v":{"$error":"#NAME?"}},"kg yr-1"]
[null,"Region","Region","Western Europe","dimensionless",null,"N2O direct from manure",{"$f":"N2O_dir","v":{"$error":"#NAME?"}},"kg yr-1"]
[null,"Mean annual temperature","Temperature","10-18","˚C",null,"N2O indirect from manure",{"$f":"N2O_ind","v":{"$error":"#NAME?"}},"kg yr-1"]
[null,"Ratio of potential evapotranspiration to precipitation","Ratio_E_P","< 1","dimensionless",null,"N2O total",{"$f":"N2O_total","v":{"$error":"#NAME?"}},"kg yr-1"]
[null,"Mean annual precipitations","Precipitations","< 1000","mm yr-1"]
[null,"Elevation","Elevation","> 1000","m"]
[null,"Average annual population","AAP",1,"head yr-1"]
[null,"Diet gross energy intake","GE",400,"MJ head-1 day-1"]
[null,"Diet digestibility expressed as a fraction of gross energy","DE",88,"%"]
[null,"Neutral detergent fibre as percentage of dry matter intake","NDF",36,"%"]
[null,"Milk production rate of dairy cows (suckler cows only)","Production_rate","5000 - 8500","kg head-1 yr-1"]
[null,"Feed forage content (non-dairy cows only)","Feed_forage_content",">75%","%"]
[null,"Urinary energy expressed as a fraction of gross energy","UE",0.04,"dimensionless"]
[null,"Ash content of feed (as fraction of dry matter intake)","ASH",0.06,"dimensionless"]
[null,"Productivity system","Productivity_system","High productivity","dimensionless"]
[null,"Annual nitrogen input via co-digestate","N_cdg",10,"kg yr-1"]
[null,"Crude protein content in the overall diet (as dry matter)","CP",18.2,"%"]
[null,"Milk production per animal (suckler cows only)","MILK",22,"kg head-1 day-1"]
[null,"Animal weight gain per day","WG",0,"kg day-1"]
[null,"Average live body weight of the animal","BW",800,"kg"]
[null,"Mature body weight of an adult animal in moderate body condition","MW",800,"kg"]
[]
[null,"Manure management"]
[null,"Manure management system","Fraction of manure managed with the chosen system (%)"]
[null,"Daily spread",1]
[null,"Dry lot",0]
[null,"Cattle deep bedding no mixing (less 1 month)",0]
[null,"Cattle deep bedding no mixing (more 1 month)",20]
[null,"Cattle deep bedding active mixing (less 1 month)",0]
[null,"Cattle deep bedding active mixing (more 1 month)",0]
[null,"Pit storage (1 month)",0]
[null,"Pit storage (3 month)",0]
[null,"Pit storage (4 month)",0]
[null,"Pit storage (6 month)",0]
[null,"Pit storage (12 month)",0]
[null,"Liquid Slurry without natural crust cover (1 month)",0]
[null,"Liquid Slurry without natural crust cover (3 month)",0]
[null,"Liquid Slurry without natural crust cover (4 month)",0]
[null,"Liquid Slurry without natural crust cover (6 month)",15]
[null,"Liquid Slurry without natural crust cover (12 month)",0]
[null,"Liquid Slurry with natural crust cover (1 month)",0]
[null,"Liquid Slurry with natural crust cover (3 month)",0]
[null,"Liquid Slurry with natural crust cover (4 month)",0]
[null,"Liquid Slurry with natural crust cover (6 month)",0]
[null,"Liquid Slurry with natural crust cover (12 month)",0]
[null,"Liquid Slurry with cover (1 month)",0]
[null,"Liquid Slurry with cover (3 month)",0]
[null,"Liquid Slurry with cover (4 month)",0]
[null,"Liquid Slurry with cover (6 month)",0]
[null,"Liquid Slurry with cover (12 month)",0]
[null,"Solid storage",0]
[null,"Solid storage - Covered/compacted",0]
[null,"Solid storage - Bulking agent addiction",0]
[null,"Solid storage - Additives",0]
[null,"Composting in vessel",0]
[null,"Composting static pile",0]
[null,"Composting intensive windrow",0]
[null,"Composting  passive windrow",0]
[null,"Aerobic treatment natural aeration",0]
[null,"Aerobic treatment forced aeration",0]
[null,"Uncovered anaerobic lagoon",0]
[null,"Anaerobic Digester, Low leakage, High quality gastight storage, best complete industrial technology",0]
[null,"Anaerobic Digester, Low leakage, High quality industrial technology, low quality gastight storage technology",0]
[null,"Anaerobic Digester, Low leakage, High quality industrial technology, open storage",0]
[null,"Anaerobic Digester, High leakage, low quality technology, high quality gastight storage technology",0]
[null,"Anaerobic Digester, High leakage, low quality technology, low quality gastight storage technology",0]
[null,"Anaerobic Digester, High leakage, low quality technology, open storage",{"$f":"100-SUM(C30:C71)","v":64}]

{"sheet":"Input and results - cultivation","index":2,"n_rows":36,"n_cols":9,"rows_kept":36,"cut":false,"hidden":false,"merged":[[1,1,1,8],[2,1,2,4],[2,6,2,8]]}
[]
[null,"Cultivation emissions"]
[null,"General parameters",null,null,null,null,"Results"]
[null,"Parameter description","Parameter name","Value","Unit",null,"Emission","Amount","Unit"]
[null,"Annual amount of synthetic fertilizer nitrogen applied to soils ","F_SN",10,"kg yr-1",null,"N2O direct from soil",{"$f":"N2O_soil_dir","v":{"$error":"#NAME?"}},"kg yr-1"]
[null,"Emission factor developed for N2O emissions from synthetic fertiliser and organic nitrogen application","EF_1",0.01,"dimensionless",null,"N2O indirect from soil",{"$f":"N2O_soil_ind_vol+N2O_soil_ind_leach","v":{"$error":"#NAME?"}},"kg yr-1"]
[null,"Emission factor developed for N2O emissions from urine and dung nitrogen deposited on pasture, range and paddock by grazing animals ","EF_3",6.0000000000000001E-3,"dimensionless",null,"CO2 from liming",{"$f":"CO2_soil_liming","v":13.933333333333332},"kg yr-1"]
[null,"Annual amount of animal manure nitrogen applied to soils ","F_AM",20,"kg yr-1",null,"CO2 from urea",{"$f":"CO2_soil_urea","v":22},"kg yr-1"]
[null,"Annual amount of total sewage nitrogen applied to soils ","F_SEW",25,"kg yr-1",null,"CO2 from organic soil",{"$f":"CO2_soil_organic","v":0.18333333333333335},"kg yr-1"]
[null,"Annual amount of total compost nitrogen applied to soils","F_COMP",15,"kg yr-1",null,"N2O from organic soil",{"$f":"N2O_soil_organic","v":0.7857142857142857},"kg yr-1"]
[null,"Annual amount of other organic amendments used as fertilizer (e.g., rendering waste, guano, brewery waste, etc.)","F_OOA",20,"kg yr-1",null,"CH4 from organic soil",{"$f":"CH4_soil_organic","v":0.5},"kg yr-1"]
[null,"Annual total amount of above-ground crop residue ","AGR",30,"kg yr-1",null,"N2O from soil total",{"$f":"N2O_soil_organic+N2O_soil_dir+N2O_soil_ind_leach+N2O_soil_ind_vol","v":{"$error":"#NAME?"}},"kg yr-1"]
[null,"Crop type","Crop_type","Generic Grains","dimensionless",null,"CO2 from soil total",{"$f":"CO2_soil_liming+CO2_soil_urea+CO2_soil_organic","v":36.11666666666666},"kg yr-1"]
[null,"Fraction of above-ground residues of crop removed annually for purposes such as feed, bedding and construction","Frac_remove",0,"dimensionless"]
[null,"Fraction of annual harvested area of crop burnt ","Frac_burnt",0.1,"dimensionless"]
[null,"Total annual area harvested ","Area",50,"ha"]
[null,"Number of years of renewal of pastures","Renew_time",2,"yr"]
[null,"Harvested fresh yield ","Yield_Fresh",30,"kg yr-1"]
[null,"Fraction of total annual nitrogen excretion that is deposited on pasture, range and paddock","MS_PRP",0.3,"dimensionless"]
[null,"Fraction of synthetic fertiliser nitrogen that volatilises as NH3 and NOx","Frac_GASF",0.11,"dimensionless"]
[null,"Fraction of organic fertiliser nitrogen that volatilises as NH3 and NOx","Frac_GASM",0.21,"dimensionless"]
[null,"Emission factor for N2O emissions from atmospheric deposition of nitrogen on soils and water surfaces","EF_4",0.01,"dimensionless"]
[null,"Fraction of all nitrogen added to/mineralised in managed soils in regions where leaching/runoff occurs that is lost through leaching and runoff ","Frac_leach_H",0.24,"dimensionless"]
[null,"Emission factor for N2O emissions from nitrogen leaching and runoff ","EF_5",0.01,"dimensionless"]
[null,"Annual amount of calcic limestone (CaCO3) ","M_limestone",10,"kg yr-1"]
[null,"Emission factors for CO2 emissions from liming (limestone) ","EF_limestone",0.12,"dimensionless"]
[null,"Annual amount of calcic dolomite (CaMg(CO3)2)","M_dolomite",20,"kg yr-1"]
[null,"Emission factors for CO2 emissions from liming (dolomite) ","EF_dolomite",0.13,"dimensionless"]
[null,"Annual amount of urea used ","M_urea",30,"kg yr-1"]
[null,"Emission factor for CO2 emissions from urea application ","EF_urea",0.2,"dimensionless"]
[null,"Share of cultivated area on organic soils ","A_",0.1]
[null,"Emission factor for drained organic soils","EF_CO2_organic",0.01,"kg ha-1 yr-1"]
[null,"Fraction of the total area of drained organic soil which is occupied by ditches","Frac_ditch",0.05,"dimensionless"]
[null,"Emission factors for direct CH4 emissions from drained organic soils","EF_CH4_land",0.1,"kg ha-1 yr-1"]
[null,"Emission factors for direct CH4 emissions from drainage ditches","EF_CH4_ditch",0.1,"kg ha-1 yr-1"]
[null,"Emission factor for drained organic soils","EF_N2O_organic",0.1,"kg ha-1 yr-1"]

{"sheet":"Calc details - animal farm","index":3,"n_rows":270,"n_cols":10,"rows_kept":270,"cut":false,"hidden":false,"merged":[]}
["No","Parameter name","Type","Value or formula","Unit","Description","Corresponding equation in guideline","Comments","Parameter Name again","Final value"]
[1,"Livestock_category","input",{"$f":"'Input and results - animal farm'!D5","v":"Non-dairy"},{"$f":"'Input and results - animal farm'!E5","v":"dimensionless"},"Livestock category (dairy or non-dairy cattle)",null,null,{"$f":"Calculations_animal[[#This Row],[Parameter name]]","v":"Livestock_category"},{"$f":"IF(Calculations_animal[[#This Row],[Type]]=\"calculated\", Eval(Calculations_animal[[#This Row],[Value or formula]]), Calculations_animal[[#This Row],[Value or formula]])","v":"Non-dairy"}]
[2,"Animal_type","input",{"$f":"'Input and results - animal farm'!D6","v":"Females"},{"$f":"'Input and results - animal farm'!E6","v":"dimensionless"},"Animal type (female cows, castrates, bulls)",null,null,{"$f":"Calculations_animal[[#This Row],[Parameter name]]","v":"Animal_type"},{"$f":"IF(Calculations_animal[[#This Row],[Type]]=\"calculated\", Eval(Calculations_animal[[#This Row],[Value or formula]]), Calculations_animal[[#This Row],[Value or formula]])","v":"Females"}]
[3,"Region","input",{"$f":"'Input and results - animal farm'!D7","v":"Western Europe"},{"$f":"'Input and results - animal farm'!E7","v":"dimensionless"},"Region",null,null,{"$f":"Calculations_animal[[#This Row],[Parameter name]]","v":"Region"},{"$f":"IF(Calculations_animal[[#This Row],[Type]]=\"calculated\", Eval(Calculations_animal[[#This Row],[Value or formula]]), Calculations_animal[[#This Row],[Value or formula]])","v":"Western Europe"}]
[4,"Temperature","input",{"$f":"'Input and results - animal farm'!D8","v":"10-18"},{"$f":"'Input and results - animal farm'!E8","v":"˚C"},"Mean annual temperature",null,null,{"$f":"Calculations_animal[[#This Row],[Parameter name]]","v":"Temperature"},{"$f":"IF(Calculations_animal[[#This Row],[Type]]=\"calculated\", Eval(Calculations_animal[[#This Row],[Value or formula]]), Calculations_animal[[#This Row],[Value or formula]])","v":"10-18"}]
[5,"Ratio_E_P","input",{"$f":"'Input and results - animal farm'!D9","v":"< 1"},{"$f":"'Input and results - animal farm'!E9","v":"dimensionless"},"Ratio of potential evapotranspiration to precipitation",null,null,{"$f":"Calculations_animal[[#This Row],[Parameter name]]","v":"Ratio_E_P"},{"$f":"IF(Calculations_animal[[#This Row],[Type]]=\"calculated\", Eval(Calculations_animal[[#This Row],[Value or formula]]), Calculations_animal[[#This Row],[Value or formula]])","v":"< 1"}]
[6,"Precipitations","input",{"$f":"'Input and results - animal farm'!D10","v":"< 1000"},{"$f":"'Input and results - animal farm'!E10","v":"mm yr-1"},"Mean annual precipitations",null,null,{"$f":"Calculations_animal[[#This Row],[Parameter name]]","v":"Precipitations"},{"$f":"IF(Calculations_animal[[#This Row],[Type]]=\"calculated\", Eval(Calculations_animal[[#This Row],[Value or formula]]), Calculations_animal[[#This Row],[Value or formula]])","v":"< 1000"}]
[7,"Elevation","input",{"$f":"'Input and results - animal farm'!D11","v":"> 1000"},{"$f":"'Input and results - animal farm'!E11","v":"m"},"Elevation",null,null,{"$f":"Calculations_animal[[#This Row],[Parameter name]]","v":"Elevation"},{"$f":"IF(Calculations_animal[[#This Row],[Type]]=\"calculated\", Eval(Calculations_animal[[#This Row],[Value or formula]]), Calculations_animal[[#This Row],[Value or formula]])","v":"> 1000"}]
[8,"Climate","table",{"$f":"INDEX(Climate_table[Climate zone], MATCH(1, (Temperature=Climate_table[Mean annual temperature (˚C)])*(Ratio_E_P=Climate_table[Ratio of potential evapotranspiration to precipitation])*(Precipitations=Climate_table[Mean annual precipitation (mm)])*(Elevation=Climate_table[Elevation (m)]), 0))","v":"Warm Temperate Dry"},"dimensionless","Climate zone",null,null,"Climate",{"$f":"IF(Calculations_animal[[#This Row],[Type]]=\"calculated\", Eval(Calculations_animal[[#This Row],[Value or formula]]), Calculations_animal[[#This Row],[Value or formula]])","v":"Warm Temperate Dry"}]
[9,"CH4_ent","calculated","E_met_ent*AAP","kg yr-1","Methane emissions due to enteric fermentation","4.2.2",null,"CH4_ent",{"$f":"IF(Calculations_animal[[#This Row],[Type]]=\"calculated\", Eval(Calculations_animal[[#This Row],[Value or formula]]), Calculations_animal[[#This Row],[Value or formula]])","v":{"$error":"#NAME?"}}]
[10,"E_met_ent","calculated","GE*Ym*(365/100)/55.65","kg head-1 yr-1","Emission factor for methane","4.2.3",null,"E_met_ent",{"$f":"IF(Calculations_animal[[#This Row],[Type]]=\"calculated\", Eval(Calculations_animal[[#This Row],[Value or formula]]), Calculations_animal[[#This Row],[Value or formula]])","v":157.41239892183287}]
[11,"AAP","input",{"$f":"'Input and results - animal farm'!D12","v":1},{"$f":"'Input and results - animal farm'!E12","v":"head yr-1"},"Average annual population",null,null,{"$f":"Calculations_animal[[#This Row],[Parameter name]]","v":"AAP"},{"$f":"IF(Calculations_animal[[#This Row],[Type]]=\"calculated\", Eval(Calculations_animal[[#This Row],[Value or formula]]), Calculations_animal[[#This Row],[Value or formula]])","v":1}]
[12,"GE","input",{"$f":"'Input and results - animal farm'!D13","v":400},"MJ head-1 day-1","Diet gross energy intake",null,null,{"$f":"Calculations_animal[[#This Row],[Parameter name]]","v":"GE"},{"$f":"IF(Calculations_animal[[#This Row],[Type]]=\"calculated\", Eval(Calculations_animal[[#This Row],[Value or formula]]), Calculations_animal[[#This Row],[Value or formula]])","v":400}]
[13,"Ym","table",{"$f":"IF(AND(_xlfn.SINGLE(Livestock_category)=\"Dairy\", Production_rate= \">8500\", DE>70, NDF<35), 'Annex 2 - Ym'!E2, IF(AND(_xlfn.SINGLE(Livestock_category)=\"Dairy\", Production_rate= \">8500\", DE>70, NDF>35), 'Annex 2 - Ym'!E3, IF(AND(_xlfn.SINGLE(Livestock_category)=\"Dairy\", Production_rate= \"5000-8500\", DE<=70, DE>=63, NDF>37), 'Annex 2 - Ym'!E4, IF(AND(_xlfn.SINGLE(Livestock_category)=\"Dairy\", Production_rate= \"<5000\", DE<63, NDF>38), 'Annex 2 - Ym'!E5, IF(AND(_xlfn.SINGLE(Livestock_category)=\"Non-dairy\", Feed_forage_content= \">75%\", DE<63), 'Annex 2 - Ym'!E6, IF(AND(_xlfn.SINGLE(Livestock_category)=\"Non-dairy\", Feed_forage_content= \"15-75%\", DE<=71, DE>=62), 'Annex 2 - Ym'!E7, IF(AND(_xlfn.SINGLE(Livestock_category)=\"Non-dairy\", Feed_forage_content= \"<10% (steam-flaked corn)\", DE>71), 'Annex 2 - Ym'!E8, IF(AND(_xlfn.SINGLE(Livestock_category)=\"Non-dairy\", Feed_forage_content= \"<15% (all other grains)\", DE>75), 'Annex 2 - Ym'!E9, 6))))))))","v":{"$error":"#NAME?"}},"%","Methane conversion factor",null,null,"Ym",{"$f":"IF(Calculations_animal[[#This Row],[Type]]=\"calculated\", Eval(Calculations_animal[[#This Row],[Value or formula]]), Calculations_animal[[#This Row],[Value or formula]])","v":{"$error":"#NAME?"}}]
[14,"DE","input",{"$f":"'Input and results - animal farm'!D14","v":88},{"$f":"'Input and results - animal farm'!E14","v":"%"},"Diet digestibility expressed as a fraction of gross energy",null,null,{"$f":"Calculations_animal[[#This Row],[Parameter name]]","v":"DE"},{"$f":"IF(Calculations_animal[[#This Row],[Type]]=\"calculated\", Eval(Calculations_animal[[#This Row],[Value or formula]]), Calculations_animal[[#This Row],[Value or formula]])","v":88}]
[15,"NDF","input",{"$f":"'Input and results - animal farm'!D15","v":36},{"$f":"'Input and results - animal farm'!E15","v":"%"},"Neutral detergent fibre as percentage of dry matter intake",null,null,{"$f":"Calculations_animal[[#This Row],[Parameter name]]","v":"NDF"},{"$f":"IF(Calculations_animal[[#This Row],[Type]]=\"calculated\", Eval(Calculations_animal[[#This Row],[Value or formula]]), Calculations_animal[[#This Row],[Value or formula]])","v":36}]
[16,"Production_rate","input",{"$f":"'Input and results - animal farm'!D16","v":"5000 - 8500"},"kg head-1 yr-1","Production rate of dairy cows (dairy cows only)",null,null,{"$f":"Calculations_animal[[#This Row],[Parameter name]]","v":"Production_rate"},{"$f":"IF(Calculations_animal[[#This Row],[Type]]=\"calculated\", Eval(Calculations_animal[[#This Row],[Value or formula]]), Calculations_animal[[#This Row],[Value or formula]])","v":"5000 - 8500"}]
[17,"Feed_forage_content","input",{"$f":"'Input and results - animal farm'!D17","v":">75%"},{"$f":"'Input and results - animal farm'!E17","v":"%"},"Feed forage content (non-dairy cows only)",null,null,{"$f":"Calculations_animal[[#This Row],[Parameter name]]","v":"Feed_forage_content"},{"$f":"IF(Calculations_animal[[#This Row],[Type]]=\"calculated\", Eval(Calculations_animal[[#This Row],[Value or formula]]), Calculations_animal[[#This Row],[Value or formula]])","v":">75%"}]
[18,"CH4_man","calculated","AAP*365*VS*B0*d_met*Sum_MCF_S/100","kg yr-1","Methane emissions due to manure","4.2.5",null,"CH4_man",{"$f":"IF(Calculations_animal[[#This Row],[Type]]=\"calculated\", Eval(Calculations_animal[[#This Row],[Value or formula]]), Calculations_animal[[#This Row],[Value or formula]])","v":{"$error":"#NAME?"}}]
[19,"VS","calculated","(GE*(1-DE/100)+UE*GE)*(1-ASH)/18.45","kg head-1 day-1","Daily volatile solid excretion per animal","4.2.6",null,"VS",{"$f":"IF(Calculations_animal[[#This Row],[Type]]=\"calculated\", Eval(Calculations_animal[[#This Row],[Value or formula]]), Calculations_animal[[#This Row],[Value or formula]])","v":3.2607046070460703}]
[20,"B0","table",{"$f":"IF(Livestock_category=\"Dairy\", 'Annex 3 - B0'!D2, _xlfn.SWITCH(Region, \"North America\", 'Annex 3 - B0'!D12, \"Western Europe\", 'Annex 3 - B0'!D14, \"Eastern Europe\", 'Annex 3 - B0'!D16, \"Oceania\", 'Annex 3 - B0'!D18, \"Other region\", 'Annex 3 - B0'!D20))","v":0.18},"m3 kg-1","Maximum methane producing capacity for manure produced ",null,null,"B0",{"$f":"IF(Calculations_animal[[#This Row],[Type]]=\"calculated\", Eval(Calculations_animal[[#This Row],[Value or formula]]), Calculations_animal[[#This Row],[Value or formula]])","v":0.18}]
[21,"d_met","default",0.67,"kg m-3","Density of methane",null,null,"d_met",{"$f":"IF(Calculations_animal[[#This Row],[Type]]=\"calculated\", Eval(Calculations_animal[[#This Row],[Value or formula]]), Calculations_animal[[#This Row],[Value or formula]])","v":0.67}]
[22,"Sum_MCF_S","calculated","Frac_1*MCF_1+Frac_2*MCF_2+Frac_3*MCF_3+Frac_4*MCF_4++Frac_6*MCF_6+Frac_8*MCF_8+Frac_9*MCF_9+Frac_11*MCF_11+Frac_12*MCF_12+Frac_13*MCF_13+Frac_14*MCF_14+Frac_15*MCF_15+Frac_16*MCF_16+Frac_17*MCF_17","dimensionless","Sum MCF over all manure management systems","Formula not explicitely present in the guideline: the sum is computed as an intermediate step for formula (4.2.5)",null,"Sum_MCF_S",{"$f":"IF(Calculations_animal[[#This Row],[Type]]=\"calculated\", Eval(Calculations_animal[[#This Row],[Value or formula]]), Calculations_animal[[#This Row],[Value or formula]])","v":14.355}]
[23,"UE","input",{"$f":"'Input and results - animal farm'!D18","v":0.04},{"$f":"'Input and results - animal farm'!E18","v":"dimensionless"},"Urinary energy expressed as a fraction of gross energy",null,null,{"$f":"Calculations_animal[[#This Row],[Parameter name]]","v":"UE"},{"$f":"IF(Calculations_animal[[#This Row],[Type]]=\"calculated\", Eval(Calculations_animal[[#This Row],[Value or formula]]), Calculations_animal[[#This Row],[Value or formula]])","v":0.04}]
[24,"ASH","input",{"$f":"'Input and results - animal farm'!D19","v":0.06},{"$f":"'Input and results - animal farm'!E19","v":"dimensionless"},"Ash content of feed (as fraction of dry matter intake)",null,null,{"$f":"Calculations_animal[[#This Row],[Parameter name]]","v":"ASH"},{"$f":"IF(Calculations_animal[[#This Row],[Type]]=\"calculated\", Eval(Calculations_animal[[#This Row],[Value or formula]]), Calculations_animal[[#This Row],[Value or formula]])","v":0.06}]
[25,"Productivity_system","input",{"$f":"'Input and results - animal farm'!D20","v":"High productivity"},{"$f":"'Input and results - animal farm'!E20","v":"dimensionless"},"Productivity system",null,null,{"$f":"Calculations_animal[[#This Row],[Parameter name]]","v":"Productivity_system"},{"$f":"IF(Calculations_animal[[#This Row],[Type]]=\"calculated\", Eval(Calculations_animal[[#This Row],[Value or formula]]), Calculations_animal[[#This Row],[Value or formula]])","v":"High productivity"}]
[26,"N2O_dir","calculated","(AAP*N_ex*Sum_EF_S+Sum_EF_S_digester*N_cdg)*44/28/100","kg yr-1","Direct nitrous oxide emissions from manure management","4.2.8",null,"N2O_dir",{"$f":"IF(Calculations_animal[[#This Row],[Type]]=\"calculated\", Eval(Calculations_animal[[#This Row],[Value or formula]]), Calculations_animal[[#This Row],[Value or formula]])","v":{"$error":"#NAME?"}}]
[27,"N_ex","calculated","N_intake*(1-N_retention_frac)*365","kg head-1 yr-1","Annual average nitrogen excretion per animal ","4.2.9",null,"N_ex",{"$f":"IF(Calculations_animal[[#This Row],[Type]]=\"calculated\", Eval(Calculations_animal[[#This Row],[Value or formula]]), Calculations_animal[[#This Row],[Value or formula]])","v":{"$error":"#NAME?"}}]
[28,"Sum_EF_S","calculated","Frac_1*EF_nit_S_1+Frac_2*EF_nit_S_2+Frac_3*EF_nit_S_3+Frac_4*EF_nit_S_4+Frac_5*EF_nit_S_5+Frac_6*EF_nit_S_6+Frac_7*EF_nit_S_7+Frac_8*EF_nit_S_8+Frac_9*EF_nit_S_9+Frac_10*EF_nit_S_10+Frac_11*EF_nit_S_11+Frac_12*EF_nit_S_12+Frac_13*EF_nit_S_13+Frac_14*EF_nit_S_14+Frac_15*EF_nit_S_15+Frac_16*EF_nit_S_16+Frac_17*EF_nit_S_17+Frac_18*EF_nit_S_18+Frac_19*EF_nit_S_19+Frac_20*EF_nit_S_20+Frac_21*EF_nit_S_21+Frac_22*EF_nit_S_22+Frac_23*EF_nit_S_23+Frac_24*EF_nit_S_24+Frac_25*EF_nit_S_25+Frac_26*EF_nit_S_26+Frac_27*EF_nit_S_27+Frac_28*EF_nit_S_28+Frac_29*EF_nit_S_29+Frac_30*EF_nit_S_30+Frac_31*EF_nit_S_31+Frac_32*EF_nit_S_32+Frac_33*EF_nit_S_33+Frac_34*EF_nit_S_34+Frac_35*EF_nit_S_35+Frac_36*EF_nit_S_36+Frac_37*EF_nit_S_37+Frac_38*EF_nit_S_38+Frac_39*EF_nit_S_39+Frac_40*EF_nit_S_40+Frac_41*EF_nit_S_41+Frac_42*EF_nit_S_42+Frac_43*EF_nit_S_43","dimensionless","Sum emission factors N2O direct over all manure management systems","Formula not explicitely present in the guideline: the sum is computed as an intermediate step for formula (4.2.8)",null,"Sum_EF_S",{"$f":"IF(Calculations_animal[[#This Row],[Type]]=\"calculated\", Eval(Calculations_animal[[#This Row],[Value or formula]]), Calculations_animal[[#This Row],[Value or formula]])","v":0.2384}]
[29,"Sum_EF_S_digester","calculated","Frac_38*EF_nit_S_38+Frac_39*EF_nit_S_39+Frac_40*EF_nit_S_40+Frac_41*EF_nit_S_41+Frac_42*EF_nit_S_42+Frac_43*EF_nit_S_43","dimensionless","Sum emission factors N2O direct over anaerobic digester manure management systems","Formula not explicitely present in the guideline: the sum is computed as an intermediate step for formula (4.2.8)",null,"Sum_EF_S_digester",{"$f":"IF(Calculations_animal[[#This Row],[Type]]=\"calculated\", Eval(Calculations_animal[[#This Row],[Value or formula]]), Calculations_animal[[#This Row],[Value or formula]])","v":3.8399999999999997E-2}]
[30,"N_cdg","input",{"$f":"'Input and results - animal farm'!D21","v":10},"kg yr-1","Annual nitrogen input via co-digestate",null,null,{"$f":"Calculations_animal[[#This Row],[Parameter name]]","v":"N_cdg"},{"$f":"IF(Calculations_animal[[#This Row],[Type]]=\"calculated\", Eval(Calculations_animal[[#This Row],[Value or formula]]), Calculations_animal[[#This Row],[Value or formula]])","v":10}]
[31,"N_intake","calculated","GE/18.45*CP/100/6.25","kg head-1 day-1","Daily nitrogen intake per animal","4.2.10",null,{"$f":"Calculations_animal[[#This Row],[Parameter name]]","v":"N_intake"},{"$f":"IF(Calculations_animal[[#This Row],[Type]]=\"calculated\", Eval(Calculations_animal[[#This Row],[Value or formula]]), Calculations_animal[[#This Row],[Value or formula]])","v":0.63132791327913285}]
[32,"N_retention_frac_general","calculated","MILK*MILK_pr/100/6.38+WG*(268-7.03*NE_g/WG)/1000/6.25","dimensionless",null,"4.2.11",null,{"$f":"Calculations_animal[[#This Row],[Parameter name]]","v":"N_retention_frac_general"},{"$f":"IF(Calculations_animal[[#This Row],[Type]]=\"calculated\", Eval(Calculations_animal[[#This Row],[Value or formula]]), Calculations_animal[[#This Row],[Value or formula]])","v":{"$error":"#NAME?"}}]
[33,"N_retention_frac_with_zero_WG","calculated","MILK*MILK_pr/100/6.38","dimensionless",null,"Formula not explicitely present in the guideline: it is a particular case of equation (4.2.11), when WG = 0",null,{"$f":"Calculations_animal[[#This Row],[Parameter name]]","v":"N_retention_frac_with_zero_WG"},{"$f":"IF(Calculations_animal[[#This Row],[Type]]=\"calculated\", Eval(Calculations_animal[[#This Row],[Value or formula]]), Calculations_animal[[#This Row],[Value or formula]])","v":0}]
[34,"N_retention_frac","calculated special",{"$f":"IF(WG>0, N_retention_frac_general, N_retention_frac_with_zero_WG)","v":0},"dimensionless","Fraction of nitrogen retained by the animal","Formula not explicitely present in the guideline: it chooses which formulation of equation (4.2.11) applies in this case",null,{"$f":"Calculations_animal[[#This Row],[Parameter name]]","v":"N_retention_frac"},{"$f":"IF(Calculations_animal[[#This Row],[Type]]=\"calculated\", Eval(Calculations_animal[[#This Row],[Value or formula]]), Calculations_animal[[#This Row],[Value or formula]])","v":0}]
[33,"CP","input",{"$f":"'Input and results - animal farm'!D22","v":18.2},{"$f":"'Input and results - animal farm'!E22","v":"%"},"Crude protein content in the overall diet (as dry matter)",null,null,{"$f":"Calculations_animal[[#This Row],[Parameter name]]","v":"CP"},{"$f":"IF(Calculations_animal[[#This Row],[Type]]=\"calculated\", Eval(Calculations_animal[[#This Row],[Value or formula]]), Calculations_animal[[#This Row],[Value or formula]])","v":18.2}]
[34,"MILK","input",{"$f":"IF(Livestock_category=\"Dairy\", 'Input and results - animal farm'!D23, 0)","v":0},"kg head-1 day-1","Milk production per animal (dairy cows only)",null,null,{"$f":"Calculations_animal[[#This Row],[Parameter name]]","v":"MILK"},{"$f":"IF(Calculations_animal[[#This Row],[Type]]=\"calculated\", Eval(Calculations_animal[[#This Row],[Value or formula]]), Calculations_animal[[#This Row],[Value or formula]])","v":0}]
[35,"MILK_pr","default",3.04,"%","Percentage of protein in milk (dairy cows only)",null,null,"MILK_pr",{"$f":"IF(Calculations_animal[[#This Row],[Type]]=\"calculated\", Eval(Calculations_animal[[#This Row],[Value or formula]]), Calculations_animal[[#This Row],[Value or formula]])","v":3.04}]
[36,"WG","input",{"$f":"'Input and results - animal farm'!D24","v":0},"kg day-1","Animal weight gain per day",null,null,{"$f":"Calculations_animal[[#This Row],[Parameter name]]","v":"WG"},{"$f":"IF(Calculations_animal[[#This Row],[Type]]=\"calculated\", Eval(Calculations_animal[[#This Row],[Value or formula]]), Calculations_animal[[#This Row],[Value or formula]])","v":0}]
[37,"NE_g","calculated","22.02*(BW/(C_*MW))^0.75*WG^1.097","MJ day-1","Net energy for growth","4.2.12",null,"NE_g",{"$f":"IF(Calculations_animal[[#This Row],[Type]]=\"calculated\", Eval(Calculations_animal[[#This Row],[Value or formula]]), Calculations_animal[[#This Row],[Value or formula]])","v":{"$error":"#NAME?"}}]
[38,"BW","input",{"$f":"'Input and results - animal farm'!D25","v":800},{"$f":"'Input and results - animal farm'!E25","v":"kg"},"Average live body weight of the animal",null,null,{"$f":"Calculations_animal[[#This Row],[Parameter name]]","v":"BW"},{"$f":"IF(Calculations_animal[[#This Row],[Type]]=\"calculated\", Eval(Calculations_animal[[#This Row],[Value or formula]]), Calculations_animal[[#This Row],[Value or formula]])","v":800}]
[39,"MW","input",{"$f":"'Input and results - animal farm'!D26","v":800},{"$f":"'Input and results - animal farm'!E26","v":"kg"},"Mature body weight of an adult animal in moderate body condition",null,null,{"$f":"Calculations_animal[[#This Row],[Parameter name]]","v":"MW"},{"$f":"IF(Calculations_animal[[#This Row],[Type]]=\"calculated\", Eval(Calculations_animal[[#This Row],[Value or formula]]), Calculations_animal[[#This Row],[Value or formula]])","v":800}]
[40,"C_","calculated",{"$f":"_xlfn.SWITCH(Animal_type, \"Females\", 0.8, \"Castrates\", 1, \"Bulls\", 1.2)","v":0.8},"dimensionless","Coefficient for net energy for growth",null,null,"C_",{"$f":"IF(Calculations_animal[[#This Row],[Type]]=\"calculated\", Eval(Calculations_animal[[#This Row],[Value or formula]]), Calculations_animal[[#This Row],[Value or formula]])","v":0.8}]
[41,"N2O_ind_leach","calculated","N_leach*EF_leach*44/28","kg yr-1","Indirect nitrous oxide emissions from leaching of manure","4.2.13",null,"N2O_ind_leach",{"$f":"IF(Calculations_animal[[#This Row],[Type]]=\"calculated\", Eval(Calculations_animal[[#This Row],[Value or formula]]), Calculations_animal[[#This Row],[Value or formula]])","v":{"$error":"#NAME?"}}]
[42,"N_leach","calculated","(AAP*N_ex*Sum_Frac_leach_S+Sum_Frac_leach_S_digester*N_cdg)/100","kg yr-1","Amount of manure lost due to leaching","4.2.15",null,"N_leach",{"$f":"IF(Calculations_animal[[#This Row],[Type]]=\"calculated\", Eval(Calculations_animal[[#This Row],[Value or formula]]), Calculations_animal[[#This Row],[Value or formula]])","v":{"$error":"#NAME?"}}]
[43,"EF_leach","default",1.0999999999999999E-2,"dimensionless","Emission factor for indirect N2O emissions from leaching of manure",null,null,"EF_leach",{"$f":"IF(Calculations_animal[[#This Row],[Type]]=\"calculated\", Eval(Calculations_animal[[#This Row],[Value or formula]]), Calculations_animal[[#This Row],[Value or formula]])","v":1.0999999999999999E-2}]
[44,"Sum_Frac_leach_S","calculated","Frac_1*Frac_leach_S_1+Frac_2*Frac_leach_S_2+Frac_3*Frac_leach_S_3+Frac_4*Frac_leach_S_4+Frac_5*Frac_leach_S_5+Frac_6*Frac_leach_S_6+Frac_7*Frac_leach_S_7+Frac_8*Frac_leach_S_8+Frac_9*Frac_leach_S_9+Frac_10*Frac_leach_S_10+Frac_11*Frac_leach_S_11+Frac_12*Frac_leach_S_12+Frac_13*Frac_leach_S_13+Frac_14*Frac_leach_S_14+Frac_15*Frac_leach_S_15+Frac_16*Frac_leach_S_16+Frac_17*Frac_leach_S_17+Frac_18*Frac_leach_S_18+Frac_19*Frac_leach_S_19+Frac_20*Frac_leach_S_20+Frac_21*Frac_leach_S_21+Frac_22*Frac_leach_S_22+Frac_23*Frac_leach_S_23+Frac_24*Frac_leach_S_24+Frac_25*Frac_leach_S_25+Frac_26*Frac_leach_S_26+Frac_27*Frac_leach_S_27+Frac_28*Frac_leach_S_28+Frac_29*Frac_leach_S_29+Frac_30*Frac_leach_S_30+Frac_31*Frac_leach_S_31+Frac_32*Frac_leach_S_32+Frac_33*Frac_leach_S_33+Frac_34*Frac_leach_S_34+Frac_35*Frac_leach_S_35+Frac_36*Frac_leach_S_36+Frac_37*Frac_leach_S_37+Frac_38*Frac_leach_S_38+Frac_39*Frac_leach_S_39+Frac_40*Frac_leach_S_40+Frac_41*Frac_leach_S_41+Frac_42*Frac_leach_S_42+Frac_43*Frac_leach_S_43","dimensionless","Sum leached manure over all manure management systems","Formula not explicitely present in the guideline: the sum is computed as an intermediate step for formula (4.2.15)",null,"Sum_Frac_leach_S",{"$f":"IF(Calculations_animal[[#This Row],[Type]]=\"calculated\", Eval(Calculations_animal[[#This Row],[Value or formula]]), Calculations_animal[[#This Row],[Value or formula]])","v":0.70000000000000007}]
[45,"Sum_Frac_leach_S_digester","calculated","Frac_38*Frac_leach_S_38+Frac_39*Frac_leach_S_39+Frac_40*Frac_leach_S_40+Frac_41*Frac_leach_S_41+Frac_42*Frac_leach_S_42+Frac_43*Frac_leach_S_43","dimensionless","Sum leached manure over anaerobic digester manure management systems","Formula not explicitely present in the guideline: the sum is computed as an intermediate step for formula (4.2.16)",null,"Sum_Frac_leach_S_digester",{"$f":"IF(Calculations_animal[[#This Row],[Type]]=\"calculated\", Eval(Calculations_animal[[#This Row],[Value or formula]]), Calculations_animal[[#This Row],[Value or formula]])","v":0}]
[46,"N2O_ind_vol","calculated","N_vol*EF_vol*44/28","kg yr-1","Indirect nitrous oxide emissions from volatilization of manure","4.2.16",null,"N2O_ind_vol",{"$f":"IF(Calculations_animal[[#This Row],[Type]]=\"calculated\", Eval(Calculations_animal[[#This Row],[Value or formula]]), Calculations_animal[[#This Row],[Value or formula]])","v":{"$error":"#NAME?"}}]
[47,"N_vol","calculated","(AAP*N_ex*Sum_Frac_vol_S+Sum_Frac_vol_S_digester*N_cdg)/100","kg yr-1","Amount of manure volatilized","4.2.18",null,"N_vol",{"$f":"IF(Calculations_animal[[#This Row],[Type]]=\"calculated\", Eval(Calculations_animal[[#This Row],[Value or formula]]), Calculations_animal[[#This Row],[Value or formula]])","v":{"$error":"#NAME?"}}]
[48,"EF_vol","default",0.01,"dimensionless","Emission factor for indirect N2O emissions from volatilization of manure",null,null,"EF_vol",{"$f":"IF(Calculations_animal[[#This Row],[Type]]=\"calculated\", Eval(Calculations_animal[[#This Row],[Value or formula]]), Calculations_animal[[#This Row],[Value or formula]])","v":0.01}]
[49,"Sum_Frac_vol_S","calculated","Frac_1*Frac_vol_S_1+Frac_2*Frac_vol_S_2+Frac_3*Frac_vol_S_3+Frac_4*Frac_vol_S_4+Frac_5*Frac_vol_S_5+Frac_6*Frac_vol_S_6+Frac_7*Frac_vol_S_7+Frac_8*Frac_vol_S_8+Frac_9*Frac_vol_S_9+Frac_10*Frac_vol_S_10+Frac_11*Frac_vol_S_11+Frac_12*Frac_vol_S_12+Frac_13*Frac_vol_S_13+Frac_14*Frac_vol_S_14+Frac_15*Frac_vol_S_15+Frac_16*Frac_vol_S_16+Frac_17*Frac_vol_S_17+Frac_18*Frac_vol_S_18+Frac_19*Frac_vol_S_19+Frac_20*Frac_vol_S_20+Frac_21*Frac_vol_S_21+Frac_22*Frac_vol_S_22+Frac_23*Frac_vol_S_23+Frac_24*Frac_vol_S_24+Frac_25*Frac_vol_S_25+Frac_26*Frac_vol_S_26+Frac_27*Frac_vol_S_27+Frac_28*Frac_vol_S_28+Frac_29*Frac_vol_S_29+Frac_30*Frac_vol_S_30+Frac_31*Frac_vol_S_31+Frac_32*Frac_vol_S_32+Frac_33*Frac_vol_S_33+Frac_34*Frac_vol_S_34+Frac_35*Frac_vol_S_35+Frac_36*Frac_vol_S_36+Frac_37*Frac_vol_S_37+Frac_38*Frac_vol_S_38+Frac_39*Frac_vol_S_39+Frac_40*Frac_vol_S_40+Frac_41*Frac_vol_S_41+Frac_42*Frac_vol_S_42+Frac_43*Frac_vol_S_43","dimensionless","Sum volatilized manure over all manure management systems","Formula not explicitely present in the guideline: the sum is computed as an intermediate step for formula (4.2.18)",null,"Sum_Frac_vol_S",{"$f":"IF(Calculations_animal[[#This Row],[Type]]=\"calculated\", Eval(Calculations_animal[[#This Row],[Value or formula]]), Calculations_animal[[#This Row],[Value or formula]])","v":29.87}]
[50,"Sum_Frac_vol_S_digester","calculated","Frac_vol_S_38+Frac_39*Frac_vol_S_39+Frac_40*Frac_vol_S_40+Frac_41*Frac_vol_S_41+Frac_42*Frac_vol_S_42+Frac_43*Frac_vol_S_43","dimensionless","Sum volatilized manure over anaerobic digester manure management systems","Formula not explicitely present in the guideline: the sum is computed as an intermediate step for formula (4.2.18)",null,"Sum_Frac_vol_S_digester",{"$f":"IF(Calculations_animal[[#This Row],[Type]]=\"calculated\", Eval(Calculations_animal[[#This Row],[Value or formula]]), Calculations_animal[[#This Row],[Value or formula]])","v":17.875}]
[51,"N2O_ind","calculated","N2O_ind_vol+N2O_ind_leach","kg","Indirect nitrous oxide emissions from manure management","Formula not explicitely present in the guideline",null,"N2O_ind",{"$f":"IF(Calculations_animal[[#This Row],[Type]]=\"calculated\", Eval(Calculations_animal[[#This Row],[Value or formula]]), Calculations_animal[[#This Row],[Value or formula]])","v":{"$error":"#NAME?"}}]
[52,"N2O_total","calculated","N2O_dir+N2O_ind","kg","Total nitrous oxide emissions from manure management","Formula not explicitely present in the guideline",null,"N2O_total",{"$f":"IF(Calculations_animal[[#This Row],[Type]]=\"calculated\", Eval(Calculations_animal[[#This Row],[Value or formula]]), Calculations_animal[[#This Row],[Value or formula]])","v":{"$error":"#NAME?"}}]
[53,"Frac_1","input",{"$f":"'Input and results - animal farm'!C30","v":1},"%","Fraction manure in Daily spread",null,null,{"$f":"Calculations_animal[[#This Row],[Parameter name]]","v":"Frac_1"},{"$f":"IF(Calculations_animal[[#This Row],[Type]]=\"calculated\", Eval(Calculations_animal[[#This Row],[Value or formula]]), Calculations_animal[[#This Row],[Value or formula]])","v":1}]
[54,"Frac_2","input",{"$f":"'Input and results - animal farm'!C31","v":0},"%","Fraction manure in Dry lot",null,null,{"$f":"Calculations_animal[[#This Row],[Parameter name]]","v":"Frac_2"},{"$f":"IF(Calculations_animal[[#This Row],[Type]]=\"calculated\", Eval(Calculations_animal[[#This Row],[Value or formula]]), Calculations_animal[[#This Row],[Value or formula]])","v":0}]
[55,"Frac_3","input",{"$f":"'Input and results - animal farm'!C32","v":0},"%","Fraction manure in Cattle deep bedding no mixing (less 1 month)",null,null,{"$f":"Calculations_animal[[#This Row],[Parameter name]]","v":"Frac_3"},{"$f":"IF(Calculations_animal[[#This Row],[Type]]=\"calculated\", Eval(Calculations_animal[[#This Row],[Value or formula]]), Calculations_animal[[#This Row],[Value or formula]])","v":0}]
[56,"Frac_4","input",{"$f":"'Input and results - animal farm'!C33","v":20},"%","Fraction manure in Cattle deep bedding no mixing (more 1 month)",null,null,{"$f":"Calculations_animal[[#This Row],[Parameter name]]","v":"Frac_4"},{"$f":"IF(Calculations_animal[[#This Row],[Type]]=\"calculated\", Eval(Calculations_animal[[#This Row],[Value or formula]]), Calculations_animal[[#This Row],[Value or formula]])","v":20}]
[57,"Frac_5","input",{"$f":"'Input and results - animal farm'!C34","v":0},"%","Fraction manure in Cattle deep bedding active mixing (less 1 month)",null,null,{"$f":"Calculations_animal[[#This Row],[Parameter name]]","v":"Frac_5"},{"$f":"IF(Calculations_animal[[#This Row],[Type]]=\"calculated\", Eval(Calculations_animal[[#This Row],[Value or formula]]), Calculations_animal[[#This Row],[Value or formula]])","v":0}]
[58,"Frac_6","input",{"$f":"'Input and results - animal farm'!C35","v":0},"%","Fraction manure in Cattle deep bedding active mixing (more 1 month)",null,null,{"$f":"Calculations_animal[[#This Row],[Parameter name]]","v":"Frac_6"},{"$f":"IF(Calculations_animal[[#This Row],[Type]]=\"calculated\", Eval(Calculations_animal[[#This Row],[Value or formula]]), Calculations_animal[[#This Row],[Value or formula]])","v":0}]
[59,"Frac_7","input",{"$f":"'Input and results - animal farm'!C36","v":0},"%","Fraction manure in Pit storage (1 month)",null,null,{"$f":"Calculations_animal[[#This Row],[Parameter name]]","v":"Frac_7"},{"$f":"IF(Calculations_animal[[#This Row],[Type]]=\"calculated\", Eval(Calculations_animal[[#This Row],[Value or formula]]), Calculations_animal[[#This Row],[Value or formula]])","v":0}]
[60,"Frac_8","input",{"$f":"'Input and results - animal farm'!C37","v":0},"%","Fraction manure in Pit storage (3 month)",null,null,{"$f":"Calculations_animal[[#This Row],[Parameter name]]","v":"Frac_8"},{"$f":"IF(Calculations_animal[[#This Row],[Type]]=\"calculated\", Eval(Calculations_animal[[#This Row],[Value or formula]]), Calculations_animal[[#This Row],[Value or formula]])","v":0}]
[61,"Frac_9","input",{"$f":"'Input and results - animal farm'!C38","v":0},"%","Fraction manure in Pit storage (4 month)",null,null,{"$f":"Calculations_animal[[#This Row],[Parameter name]]","v":"Frac_9"},{"$f":"IF(Calculations_animal[[#This Row],[Type]]=\"calculated\", Eval(Calculations_animal[[#This Row],[Value or formula]]), Calculations_animal[[#This Row],[Value or formula]])","v":0}]
[62,"Frac_10","input",{"$f":"'Input and results - animal farm'!C39","v":0},"%","Fraction manure in Pit storage (6 month)",null,null,{"$f":"Calculations_animal[[#This Row],[Parameter name]]","v":"Frac_10"},{"$f":"IF(Calculations_animal[[#This Row],[Type]]=\"calculated\", Eval(Calculations_animal[[#This Row],[Value or formula]]), Calculations_animal[[#This Row],[Value or formula]])","v":0}]
[63,"Frac_11","input",{"$f":"'Input and results - animal farm'!C40","v":0},"%","Fraction manure in Pit storage (12 month)",null,null,{"$f":"Calculations_animal[[#This Row],[Parameter name]]","v":"Frac_11"},{"$f":"IF(Calculations_animal[[#This Row],[Type]]=\"calculated\", Eval(Calculations_animal[[#This Row],[Value or formula]]), Calculations_animal[[#This Row],[Value or formula]])","v":0}]
[64,"Frac_12","input",{"$f":"'Input and results - animal farm'!C41","v":0},"%","Fraction manure in Liquid Slurry without natural crust cover (1 month)",null,null,{"$f":"Calculations_animal[[#This Row],[Parameter name]]","v":"Frac_12"},{"$f":"IF(Calculations_animal[[#This Row],[Type]]=\"calculated\", Eval(Calculations_animal[[#This Row],[Value or formula]]), Calculations_animal[[#This Row],[Value or formula]])","v":0}]
[65,"Frac_13","input",{"$f":"'Input and results - animal farm'!C42","v":0},"%","Fraction manure in Liquid Slurry without natural crust cover (3 month)",null,null,{"$f":"Calculations_animal[[#This Row],[Parameter name]]","v":"Frac_13"},{"$f":"IF(Calculations_animal[[#This Row],[Type]]=\"calculated\", Eval(Calculations_animal[[#This Row],[Value or formula]]), Calculations_animal[[#This Row],[Value or formula]])","v":0}]
[66,"Frac_14","input",{"$f":"'Input and results - animal farm'!C43","v":0},"%","Fraction manure in Liquid Slurry without natural crust cover (4 month)",null,null,{"$f":"Calculations_animal[[#This Row],[Parameter name]]","v":"Frac_14"},{"$f":"IF(Calculations_animal[[#This Row],[Type]]=\"calculated\", Eval(Calculations_animal[[#This Row],[Value or formula]]), Calculations_animal[[#This Row],[Value or formula]])","v":0}]
[67,"Frac_15","input",{"$f":"'Input and results - animal farm'!C44","v":15},"%","Fraction manure in Liquid Slurry without natural crust cover (6 month)",null,null,{"$f":"Calculations_animal[[#This Row],[Parameter name]]","v":"Frac_15"},{"$f":"IF(Calculations_animal[[#This Row],[Type]]=\"calculated\", Eval(Calculations_animal[[#This Row],[Value or formula]]), Calculations_animal[[#This Row],[Value or formula]])","v":15}]
[68,"Frac_16","input",{"$f":"'Input and results - animal farm'!C45","v":0},"%","Fraction manure in Liquid Slurry without natural crust cover (12 month)",null,null,{"$f":"Calculations_animal[[#This Row],[Parameter name]]","v":"Frac_16"},{"$f":"IF(Calculations_animal[[#This Row],[Type]]=\"calculated\", Eval(Calculations_animal[[#This Row],[Value or formula]]), Calculations_animal[[#This Row],[Value or formula]])","v":0}]
[69,"Frac_17","input",{"$f":"'Input and results - animal farm'!C46","v":0},"%","Fraction manure in Liquid Slurry with natural crust cover (1 month)",null,null,{"$f":"Calculations_animal[[#This Row],[Parameter name]]","v":"Frac_17"},{"$f":"IF(Calculations_animal[[#This Row],[Type]]=\"calculated\", Eval(Calculations_animal[[#This Row],[Value or formula]]), Calculations_animal[[#This Row],[Value or formula]])","v":0}]
[70,"Frac_18","input",{"$f":"'Input and results - animal farm'!C47","v":0},"%","Fraction manure in Liquid Slurry with natural crust cover (3 month)",null,null,{"$f":"Calculations_animal[[#This Row],[Parameter name]]","v":"Frac_18"},{"$f":"IF(Calculations_animal[[#This Row],[Type]]=\"calculated\", Eval(Calculations_animal[[#This Row],[Value or formula]]), Calculations_animal[[#This Row],[Value or formula]])","v":0}]
[71,"Frac_19","input",{"$f":"'Input and results - animal farm'!C48","v":0},"%","Fraction manure in Liquid Slurry with natural crust cover (4 month)",null,null,{"$f":"Calculations_animal[[#This Row],[Parameter name]]","v":"Frac_19"},{"$f":"IF(Calculations_animal[[#This Row],[Type]]=\"calculated\", Eval(Calculations_animal[[#This Row],[Value or formula]]), Calculations_animal[[#This Row],[Value or formula]])","v":0}]
[72,"Frac_20","input",{"$f":"'Input and results - animal farm'!C49","v":0},"%","Fraction manure in Liquid Slurry with natural crust cover (6 month)",null,null,{"$f":"Calculations_animal[[#This Row],[Parameter name]]","v":"Frac_20"},{"$f":"IF(Calculations_animal[[#This Row],[Type]]=\"calculated\", Eval(Calculations_animal[[#This Row],[Value or formula]]), Calculations_animal[[#This Row],[Value or formula]])","v":0}]
[73,"Frac_21","input",{"$f":"'Input and results - animal farm'!C50","v":0},"%","Fraction manure in Liquid Slurry with natural crust cover (12 month)",null,null,{"$f":"Calculations_animal[[#This Row],[Parameter name]]","v":"Frac_21"},{"$f":"IF(Calculations_animal[[#This Row],[Type]]=\"calculated\", Eval(Calculations_animal[[#This Row],[Value or formula]]), Calculations_animal[[#This Row],[Value or formula]])","v":0}]
[74,"Frac_22","input",{"$f":"'Input and results - animal farm'!C51","v":0},"%","Fraction manure in Liquid Slurry with cover (1 month)",null,null,{"$f":"Calculations_animal[[#This Row],[Parameter name]]","v":"Frac_22"},{"$f":"IF(Calculations_animal[[#This Row],[Type]]=\"calculated\", Eval(Calculations_animal[[#This Row],[Value or formula]]), Calculations_animal[[#This Row],[Value or formula]])","v":0}]
[75,"Frac_23","input",{"$f":"'Input and results - animal farm'!C52","v":0},"%","Fraction manure in Liquid Slurry with cover (3 month)",null,null,{"$f":"Calculations_animal[[#This Row],[Parameter name]]","v":"Frac_23"},{"$f":"IF(Calculations_animal[[#This Row],[Type]]=\"calculated\", Eval(Calculations_animal[[#This Row],[Value or formula]]), Calculations_animal[[#This Row],[Value or formula]])","v":0}]
[76,"Frac_24","input",{"$f":"'Input and results - animal farm'!C53","v":0},"%","Fraction manure in Liquid Slurry with cover (4 month)",null,null,{"$f":"Calculations_animal[[#This Row],[Parameter name]]","v":"Frac_24"},{"$f":"IF(Calculations_animal[[#This Row],[Type]]=\"calculated\", Eval(Calculations_animal[[#This Row],[Value or formula]]), Calculations_animal[[#This Row],[Value or formula]])","v":0}]
[77,"Frac_25","input",{"$f":"'Input and results - animal farm'!C54","v":0},"%","Fraction manure in Liquid Slurry with cover (6 month)",null,null,{"$f":"Calculations_animal[[#This Row],[Parameter name]]","v":"Frac_25"},{"$f":"IF(Calculations_animal[[#This Row],[Type]]=\"calculated\", Eval(Calculations_animal[[#This Row],[Value or formula]]), Calculations_animal[[#This Row],[Value or formula]])","v":0}]
[78,"Frac_26","input",{"$f":"'Input and results - animal farm'!C55","v":0},"%","Fraction manure in Liquid Slurry with cover (12 month)",null,null,{"$f":"Calculations_animal[[#This Row],[Parameter name]]","v":"Frac_26"},{"$f":"IF(Calculations_animal[[#This Row],[Type]]=\"calculated\", Eval(Calculations_animal[[#This Row],[Value or formula]]), Calculations_animal[[#This Row],[Value or formula]])","v":0}]
[79,"Frac_27","input",{"$f":"'Input and results - animal farm'!C56","v":0},"%","Fraction manure in Solid storage",null,null,{"$f":"Calculations_animal[[#This Row],[Parameter name]]","v":"Frac_27"},{"$f":"IF(Calculations_animal[[#This Row],[Type]]=\"calculated\", Eval(Calculations_animal[[#This Row],[Value or formula]]), Calculations_animal[[#This Row],[Value or formula]])","v":0}]
[80,"Frac_28","input",{"$f":"'Input and results - animal farm'!C57","v":0},"%","Fraction manure in Solid storage - Covered/compacted",null,null,{"$f":"Calculations_animal[[#This Row],[Parameter name]]","v":"Frac_28"},{"$f":"IF(Calculations_animal[[#This Row],[Type]]=\"calculated\", Eval(Calculations_animal[[#This Row],[Value or formula]]), Calculations_animal[[#This Row],[Value or formula]])","v":0}]
[81,"Frac_29","input",{"$f":"'Input and results - animal farm'!C58","v":0},"%","Fraction manure in Solid storage - Bulking agent addiction",null,null,{"$f":"Calculations_animal[[#This Row],[Parameter name]]","v":"Frac_29"},{"$f":"IF(Calculations_animal[[#This Row],[Type]]=\"calculated\", Eval(Calculations_animal[[#This Row],[Value or formula]]), Calculations_animal[[#This Row],[Value or formula]])","v":0}]
[82,"Frac_30","input",{"$f":"'Input and results - animal farm'!C59","v":0},"%","Fraction manure in Solid storage - Additives",null,null,{"$f":"Calculations_animal[[#This Row],[Parameter name]]","v":"Frac_30"},{"$f":"IF(Calculations_animal[[#This Row],[Type]]=\"calculated\", Eval(Calculations_animal[[#This Row],[Value or formula]]), Calculations_animal[[#This Row],[Value or formula]])","v":0}]
[83,"Frac_31","input",{"$f":"'Input and results - animal farm'!C60","v":0},"%","Fraction manure in Composting in vessel",null,null,{"$f":"Calculations_animal[[#This Row],[Parameter name]]","v":"Frac_31"},{"$f":"IF(Calculations_animal[[#This Row],[Type]]=\"calculated\", Eval(Calculations_animal[[#This Row],[Value or formula]]), Calculations_animal[[#This Row],[Value or formula]])","v":0}]
[84,"Frac_32","input",{"$f":"'Input and results - animal farm'!C61","v":0},"%","Fraction manure in Composting static pile",null,null,{"$f":"Calculations_animal[[#This Row],[Parameter name]]","v":"Frac_32"},{"$f":"IF(Calculations_animal[[#This Row],[Type]]=\"calculated\", Eval(Calculations_animal[[#This Row],[Value or formula]]), Calculations_animal[[#This Row],[Value or formula]])","v":0}]
[85,"Frac_33","input",{"$f":"'Input and results - animal farm'!C62","v":0},"%","Fraction manure in Composting intensive windrow",null,null,{"$f":"Calculations_animal[[#This Row],[Parameter name]]","v":"Frac_33"},{"$f":"IF(Calculations_animal[[#This Row],[Type]]=\"calculated\", Eval(Calculations_animal[[#This Row],[Value or formula]]), Calculations_animal[[#This Row],[Value or formula]])","v":0}]
[86,"Frac_34","input",{"$f":"'Input and results - animal farm'!C63","v":0},"%","Fraction manure in Composting  passive windrow",null,null,{"$f":"Calculations_animal[[#This Row],[Parameter name]]","v":"Frac_34"},{"$f":"IF(Calculations_animal[[#This Row],[Type]]=\"calculated\", Eval(Calculations_animal[[#This Row],[Value or formula]]), Calculations_animal[[#This Row],[Value or formula]])","v":0}]
[87,"Frac_35","input",{"$f":"'Input and results - animal farm'!C64","v":0},"%","Fraction manure in Aerobic treatment natural aeration",null,null,{"$f":"Calculations_animal[[#This Row],[Parameter name]]","v":"Frac_35"},{"$f":"IF(Calculations_animal[[#This Row],[Type]]=\"calculated\", Eval(Calculations_animal[[#This Row],[Value or formula]]), Calculations_animal[[#This Row],[Value or formula]])","v":0}]
[88,"Frac_36","input",{"$f":"'Input and results - animal farm'!C65","v":0},"%","Fraction manure in Aerobic treatment forced aeration",null,null,{"$f":"Calculations_animal[[#This Row],[Parameter name]]","v":"Frac_36"},{"$f":"IF(Calculations_animal[[#This Row],[Type]]=\"calculated\", Eval(Calculations_animal[[#This Row],[Value or formula]]), Calculations_animal[[#This Row],[Value or formula]])","v":0}]
[89,"Frac_37","input",{"$f":"'Input and results - animal farm'!C66","v":0},"%","Fraction manure in Uncovered anaerobic lagoon",null,null,{"$f":"Calculations_animal[[#This Row],[Parameter name]]","v":"Frac_37"},{"$f":"IF(Calculations_animal[[#This Row],[Type]]=\"calculated\", Eval(Calculations_animal[[#This Row],[Value or formula]]), Calculations_animal[[#This Row],[Value or formula]])","v":0}]
[90,"Frac_38","input",{"$f":"'Input and results - animal farm'!C67","v":0},"%","Fraction manure in Anaerobic Digester, Low leakage, High quality gastight storage, best complete industrial technology",null,null,{"$f":"Calculations_animal[[#This Row],[Parameter name]]","v":"Frac_38"},{"$f":"IF(Calculations_animal[[#This Row],[Type]]=\"calculated\", Eval(Calculations_animal[[#This Row],[Value or formula]]), Calculations_animal[[#This Row],[Value or formula]])","v":0}]
[91,"Frac_39","input",{"$f":"'Input and results - animal farm'!C68","v":0},"%","Fraction manure in Anaerobic Digester, Low leakage, High quality industrial technology, low quality gastight storage technology",null,null,{"$f":"Calculations_animal[[#This Row],[Parameter name]]","v":"Frac_39"},{"$f":"IF(Calculations_animal[[#This Row],[Type]]=\"calculated\", Eval(Calculations_animal[[#This Row],[Value or formula]]), Calculations_animal[[#This Row],[Value or formula]])","v":0}]
[92,"Frac_40","input",{"$f":"'Input and results - animal farm'!C69","v":0},"%","Fraction manure in Anaerobic Digester, Low leakage, High quality industrial technology, open storage",null,null,{"$f":"Calculations_animal[[#This Row],[Parameter name]]","v":"Frac_40"},{"$f":"IF(Calculations_animal[[#This Row],[Type]]=\"calculated\", Eval(Calculations_animal[[#This Row],[Value or formula]]), Calculations_animal[[#This Row],[Value or formula]])","v":0}]
[93,"Frac_41","input",{"$f":"'Input and results - animal farm'!C70","v":0},"%","Fraction manure in Anaerobic Digester, High leakage, low quality technology, high quality gastight storage technology",null,null,{"$f":"Calculations_animal[[#This Row],[Parameter name]]","v":"Frac_41"},{"$f":"IF(Calculations_animal[[#This Row],[Type]]=\"calculated\", Eval(Calculations_animal[[#This Row],[Value or formula]]), Calculations_animal[[#This Row],[Value or formula]])","v":0}]
[94,"Frac_42","input",{"$f":"'Input and results - animal farm'!C71","v":0},"%","Fraction manure in Anaerobic Digester, High leakage, low quality technology, low quality gastight storage technology",null,null,{"$f":"Calculations_animal[[#This Row],[Parameter name]]","v":"Frac_42"},{"$f":"IF(Calculations_animal[[#This Row],[Type]]=\"calculated\", Eval(Calculations_animal[[#This Row],[Value or formula]]), Calculations_animal[[#This Row],[Value or formula]])","v":0}]
[95,"Frac_43","input",{"$f":"'Input and results - animal farm'!C72","v":64},"%","Fraction manure in Anaerobic Digester, High leakage, low quality technology, open storage",null,null,{"$f":"Calculations_animal[[#This Row],[Parameter name]]","v":"Frac_43"},{"$f":"IF(Calculations_animal[[#This Row],[Type]]=\"calculated\", Eval(Calculations_animal[[#This Row],[Value or formula]]), Calculations_animal[[#This Row],[Value or formula]])","v":64}]
[96,"MCF_1","table",{"$f":"_xlfn.SWITCH(Climate, \"Cool Temperate Moist\", 'Annex 4 - MCF'!D2, \"Cool Temperate Dry\", 'Annex 4 - MCF'!E2, \"Boreal Moist\", 'Annex 4 - MCF'!F2, \"Boreal Dry\", 'Annex 4 - MCF'!G2, \"Warm Temperate Moist\", 'Annex 4 - MCF'!H2, \"Warm Temperate Dry\", 'Annex 4 - MCF'!I2, \"Tropical Montane\", 'Annex 4 - MCF'!J2, \"Tropical Wet\", 'Annex 4 - MCF'!K2, \"Tropical Moist\", 'Annex 4 - MCF'!L2, \"Tropical Dry\", 'Annex 4 - MCF'!M2)","v":5.0000000000000001E-3},"%","MCF Daily spread",null,null,"MCF_1",{"$f":"IF(Calculations_animal[[#This Row],[Type]]=\"calculated\", Eval(Calculations_animal[[#This Row],[Value or formula]]), Calculations_animal[[#This Row],[Value or formula]])","v":5.0000000000000001E-3}]
[97,"MCF_2","table",{"$f":"_xlfn.SWITCH(Climate, \"Cool Temperate Moist\", 'Annex 4 - MCF'!D3, \"Cool Temperate Dry\", 'Annex 4 - MCF'!E3, \"Boreal Moist\", 'Annex 4 - MCF'!F3, \"Boreal Dry\", 'Annex 4 - MCF'!G3, \"Warm Temperate Moist\", 'Annex 4 - MCF'!H3, \"Warm Temperate Dry\", 'Annex 4 - MCF'!I3, \"Tropical Montane\", 'Annex 4 - MCF'!J3, \"Tropical Wet\", 'Annex 4 - MCF'!K3, \"Tropical Moist\", 'Annex 4 - MCF'!L3, \"Tropical Dry\", 'Annex 4 - MCF'!M3)","v":1.4999999999999999E-2},"%","MCF Dry lot",null,null,"MCF_2",{"$f":"IF(Calculations_animal[[#This Row],[Type]]=\"calculated\", Eval(Calculations_animal[[#This Row],[Value or formula]]), Calculations_animal[[#This Row],[Value or formula]])","v":1.4999999999999999E-2}]
[98,"MCF_3","table",{"$f":"_xlfn.SWITCH(Climate, \"Cool Temperate Moist\", 'Annex 4 - MCF'!D4, \"Cool Temperate Dry\", 'Annex 4 - MCF'!E4, \"Boreal Moist\", 'Annex 4 - MCF'!F4, \"Boreal Dry\", 'Annex 4 - MCF'!G4, \"Warm Temperate Moist\", 'Annex 4 - MCF'!H4, \"Warm Temperate Dry\", 'Annex 4 - MCF'!I4, \"Tropical Montane\", 'Annex 4 - MCF'!J4, \"Tropical Wet\", 'Annex 4 - MCF'!K4, \"Tropical Moist\", 'Annex 4 - MCF'!L4, \"Tropical Dry\", 'Annex 4 - MCF'!M4)","v":6.5000000000000002E-2},"%","MCF Cattle deep bedding no mixing (less 1 month)",null,null,"MCF_3",{"$f":"IF(Calculations_animal[[#This Row],[Type]]=\"calculated\", Eval(Calculations_animal[[#This Row],[Value or formula]]), Calculations_animal[[#This Row],[Value or formula]])","v":6.5000000000000002E-2}]
[99,"MCF_4","table",{"$f":"_xlfn.SWITCH(Climate, \"Cool Temperate Moist\", 'Annex 4 - MCF'!D5, \"Cool Temperate Dry\", 'Annex 4 - MCF'!E5, \"Boreal Moist\", 'Annex 4 - MCF'!F5, \"Boreal Dry\", 'Annex 4 - MCF'!G5, \"Warm Temperate Moist\", 'Annex 4 - MCF'!H5, \"Warm Temperate Dry\", 'Annex 4 - MCF'!I5, \"Tropical Montane\", 'Annex 4 - MCF'!J5, \"Tropical Wet\", 'Annex 4 - MCF'!K5, \"Tropical Moist\", 'Annex 4 - MCF'!L5, \"Tropical Dry\", 'Annex 4 - MCF'!M5)","v":0.41},"%","MCF Cattle deep bedding no mixing (more 1 month)",null,null,"MCF_4",{"$f":"IF(Calculations_animal[[#This Row],[Type]]=\"calculated\", Eval(Calculations_animal[[#This Row],[Value or formula]]), Calculations_animal[[#This Row],[Value or formula]])","v":0.41}]
[100,"MCF_5","table",{"$f":"_xlfn.SWITCH(Climate, \"Cool Temperate Moist\", 'Annex 4 - MCF'!D6, \"Cool Temperate Dry\", 'Annex 4 - MCF'!E6, \"Boreal Moist\", 'Annex 4 - MCF'!F6, \"Boreal Dry\", 'Annex 4 - MCF'!G6, \"Warm Temperate Moist\", 'Annex 4 - MCF'!H6, \"Warm Temperate Dry\", 'Annex 4 - MCF'!I6, \"Tropical Montane\", 'Annex 4 - MCF'!J6, \"Tropical Wet\", 'Annex 4 - MCF'!K6, \"Tropical Moist\", 'Annex 4 - MCF'!L6, \"Tropical Dry\", 'Annex 4 - MCF'!M6)","v":6.5000000000000002E-2},"%","MCF Cattle deep bedding active mixing (less 1 month)",null,null,"MCF_5",{"$f":"IF(Calculations_animal[[#This Row],[Type]]=\"calculated\", Eval(Calculations_animal[[#This Row],[Value or formula]]), Calculations_animal[[#This Row],[Value or formula]])","v":6.5000000000000002E-2}]
[101,"MCF_6","table",{"$f":"_xlfn.SWITCH(Climate, \"Cool Temperate Moist\", 'Annex 4 - MCF'!D7, \"Cool Temperate Dry\", 'Annex 4 - MCF'!E7, \"Boreal Moist\", 'Annex 4 - MCF'!F7, \"Boreal Dry\", 'Annex 4 - MCF'!G7, \"Warm Temperate Moist\", 'Annex 4 - MCF'!H7, \"Warm Temperate Dry\", 'Annex 4 - MCF'!I7, \"Tropical Montane\", 'Annex 4 - MCF'!J7, \"Tropical Wet\", 'Annex 4 - MCF'!K7, \"Tropical Moist\", 'Annex 4 - MCF'!L7, \"Tropical Dry\", 'Annex 4 - MCF'!M7)","v":0.41},"%","MCF Cattle deep bedding active mixing (more 1 month)",null,null,"MCF_6",{"$f":"IF(Calculations_animal[[#This Row],[Type]]=\"calculated\", Eval(Calculations_animal[[#This Row],[Value or formula]]), Calculations_animal[[#This Row],[Value or formula]])","v":0.41}]
[102,"MCF_7","table",{"$f":"_xlfn.SWITCH(Climate, \"Cool Temperate Moist\", 'Annex 4 - MCF'!D8, \"Cool Temperate Dry\", 'Annex 4 - MCF'!E8, \"Boreal Moist\", 'Annex 4 - MCF'!F8, \"Boreal Dry\", 'Annex 4 - MCF'!G8, \"Warm Temperate Moist\", 'Annex 4 - MCF'!H8, \"Warm Temperate Dry\", 'Annex 4 - MCF'!I8, \"Tropical Montane\", 'Annex 4 - MCF'!J8, \"Tropical Wet\", 'Annex 4 - MCF'!K8, \"Tropical Moist\", 'Annex 4 - MCF'!L8, \"Tropical Dry\", 'Annex 4 - MCF'!M8)","v":0.15},"%","MCF Pit storage (1 month)",null,null,"MCF_7",{"$f":"IF(Calculations_animal[[#This Row],[Type]]=\"calculated\", Eval(Calculations_animal[[#This Row],[Value or formula]]), Calculations_animal[[#This Row],[Value or formula]])","v":0.15}]
[103,"MCF_8","table",{"$f":"_xlfn.SWITCH(Climate, \"Cool Temperate Moist\", 'Annex 4 - MCF'!D9, \"Cool Temperate Dry\", 'Annex 4 - MCF'!E9, \"Boreal Moist\", 'Annex 4 - MCF'!F9, \"Boreal Dry\", 'Annex 4 - MCF'!G9, \"Warm Temperate Moist\", 'Annex 4 - MCF'!H9, \"Warm Temperate Dry\", 'Annex 4 - MCF'!I9, \"Tropical Montane\", 'Annex 4 - MCF'!J9, \"Tropical Wet\", 'Annex 4 - MCF'!K9, \"Tropical Moist\", 'Annex 4 - MCF'!L9, \"Tropical Dry\", 'Annex 4 - MCF'!M9)","v":0.28000000000000003},"%","MCF Pit storage (3 month)",null,null,"MCF_8",{"$f":"IF(Calculations_animal[[#This Row],[Type]]=\"calculated\", Eval(Calculations_animal[[#This Row],[Value or formula]]), Calculations_animal[[#This Row],[Value or formula]])","v":0.28000000000000003}]
[104,"MCF_9","table",{"$f":"_xlfn.SWITCH(Climate, \"Cool Temperate Moist\", 'Annex 4 - MCF'!D10, \"Cool Temperate Dry\", 'Annex 4 - MCF'!E10, \"Boreal Moist\", 'Annex 4 - MCF'!F10, \"Boreal Dry\", 'Annex 4 - MCF'!G10, \"Warm Temperate Moist\", 'Annex 4 - MCF'!H10, \"Warm Temperate Dry\", 'Annex 4 - MCF'!I10, \"Tropical Montane\", 'Annex 4 - MCF'!J10, \"Tropical Wet\", 'Annex 4 - MCF'!K10, \"Tropical Moist\", 'Annex 4 - MCF'!L10, \"Tropical Dry\", 'Annex 4 - MCF'!M10)","v":0.32},"%","MCF Pit storage (4 month)",null,null,"MCF_9",{"$f":"IF(Calculations_animal[[#This Row],[Type]]=\"calculated\", Eval(Calculations_animal[[#This Row],[Value or formula]]), Calculations_animal[[#This Row],[Value or formula]])","v":0.32}]
[105,"MCF_10","table",{"$f":"_xlfn.SWITCH(Climate, \"Cool Temperate Moist\", 'Annex 4 - MCF'!D11, \"Cool Temperate Dry\", 'Annex 4 - MCF'!E11, \"Boreal Moist\", 'Annex 4 - MCF'!F11, \"Boreal Dry\", 'Annex 4 - MCF'!G11, \"Warm Temperate Moist\", 'Annex 4 - MCF'!H11, \"Warm Temperate Dry\", 'Annex 4 - MCF'!I11, \"Tropical Montane\", 'Annex 4 - MCF'!J11, \"Tropical Wet\", 'Annex 4 - MCF'!K11, \"Tropical Moist\", 'Annex 4 - MCF'!L11, \"Tropical Dry\", 'Annex 4 - MCF'!M11)","v":0.41},"%","MCF Pit storage (6 month)",null,null,"MCF_10",{"$f":"IF(Calculations_animal[[#This Row],[Type]]=\"calculated\", Eval(Calculations_animal[[#This Row],[Value or formula]]), Calculations_animal[[#This Row],[Value or formula]])","v":0.41}]
[106,"MCF_11","table",{"$f":"_xlfn.SWITCH(Climate, \"Cool Temperate Moist\", 'Annex 4 - MCF'!D12, \"Cool Temperate Dry\", 'Annex 4 - MCF'!E12, \"Boreal Moist\", 'Annex 4 - MCF'!F12, \"Boreal Dry\", 'Annex 4 - MCF'!G12, \"Warm Temperate Moist\", 'Annex 4 - MCF'!H12, \"Warm Temperate Dry\", 'Annex 4 - MCF'!I12, \"Tropical Montane\", 'Annex 4 - MCF'!J12, \"Tropical Wet\", 'Annex 4 - MCF'!K12, \"Tropical Moist\", 'Annex 4 - MCF'!L12, \"Tropical Dry\", 'Annex 4 - MCF'!M12)","v":0.64},"%","MCF Pit storage (12 month)",null,null,"MCF_11",{"$f":"IF(Calculations_animal[[#This Row],[Type]]=\"calculated\", Eval(Calculations_animal[[#This Row],[Value or formula]]), Calculations_animal[[#This Row],[Value or formula]])","v":0.64}]
[107,"MCF_12","table",{"$f":"_xlfn.SWITCH(Climate, \"Cool Temperate Moist\", 'Annex 4 - MCF'!D13, \"Cool Temperate Dry\", 'Annex 4 - MCF'!E13, \"Boreal Moist\", 'Annex 4 - MCF'!F13, \"Boreal Dry\", 'Annex 4 - MCF'!G13, \"Warm Temperate Moist\", 'Annex 4 - MCF'!H13, \"Warm Temperate Dry\", 'Annex 4 - MCF'!I13, \"Tropical Montane\", 'Annex 4 - MCF'!J13, \"Tropical Wet\", 'Annex 4 - MCF'!K13, \"Tropical Moist\", 'Annex 4 - MCF'!L13, \"Tropical Dry\", 'Annex 4 - MCF'!M13)","v":0.15},"%","MCF Liquid Slurry without natural crust cover (1 month)",null,null,"MCF_12",{"$f":"IF(Calculations_animal[[#This Row],[Type]]=\"calculated\", Eval(Calculations_animal[[#This Row],[Value or formula]]), Calculations_animal[[#This Row],[Value or formula]])","v":0.15}]
[108,"MCF_13","table",{"$f":"_xlfn.SWITCH(Climate, \"Cool Temperate Moist\", 'Annex 4 - MCF'!D14, \"Cool Temperate Dry\", 'Annex 4 - MCF'!E14, \"Boreal Moist\", 'Annex 4 - MCF'!F14, \"Boreal Dry\", 'Annex 4 - MCF'!G14, \"Warm Temperate Moist\", 'Annex 4 - MCF'!H14, \"Warm Temperate Dry\", 'Annex 4 - MCF'!I14, \"Tropical Montane\", 'Annex 4 - MCF'!J14, \"Tropical Wet\", 'Annex 4 - MCF'!K14, \"Tropical Moist\", 'Annex 4 - MCF'!L14, \"Tropical Dry\", 'Annex 4 - MCF'!M14)","v":0.28000000000000003},"%","MCF Liquid Slurry without natural crust cover (3 month)",null,null,"MCF_13",{"$f":"IF(Calculations_animal[[#This Row],[Type]]=\"calculated\", Eval(Calculations_animal[[#This Row],[Value or formula]]), Calculations_animal[[#This Row],[Value or formula]])","v":0.28000000000000003}]
[109,"MCF_14","table",{"$f":"_xlfn.SWITCH(Climate, \"Cool Temperate Moist\", 'Annex 4 - MCF'!D15, \"Cool Temperate Dry\", 'Annex 4 - MCF'!E15, \"Boreal Moist\", 'Annex 4 - MCF'!F15, \"Boreal Dry\", 'Annex 4 - MCF'!G15, \"Warm Temperate Moist\", 'Annex 4 - MCF'!H15, \"Warm Temperate Dry\", 'Annex 4 - MCF'!I15, \"Tropical Montane\", 'Annex 4 - MCF'!J15, \"Tropical Wet\", 'Annex 4 - MCF'!K15, \"Tropical Moist\", 'Annex 4 - MCF'!L15, \"Tropical Dry\", 'Annex 4 - MCF'!M15)","v":0.32},"%","MCF Liquid Slurry without natural crust cover (4 month)",null,null,"MCF_14",{"$f":"IF(Calculations_animal[[#This Row],[Type]]=\"calculated\", Eval(Calculations_animal[[#This Row],[Value or formula]]), Calculations_animal[[#This Row],[Value or formula]])","v":0.32}]
[110,"MCF_15","table",{"$f":"_xlfn.SWITCH(Climate, \"Cool Temperate Moist\", 'Annex 4 - MCF'!D16, \"Cool Temperate Dry\", 'Annex 4 - MCF'!E16, \"Boreal Moist\", 'Annex 4 - MCF'!F16, \"Boreal Dry\", 'Annex 4 - MCF'!G16, \"Warm Temperate Moist\", 'Annex 4 - MCF'!H16, \"Warm Temperate Dry\", 'Annex 4 - MCF'!I16, \"Tropical Montane\", 'Annex 4 - MCF'!J16, \"Tropical Wet\", 'Annex 4 - MCF'!K16, \"Tropical Moist\", 'Annex 4 - MCF'!L16, \"Tropical Dry\", 'Annex 4 - MCF'!M16)","v":0.41},"%","MCF Liquid Slurry without natural crust cover (6 month)",null,null,"MCF_15",{"$f":"IF(Calculations_animal[[#This Row],[Type]]=\"calculated\", Eval(Calculations_animal[[#This Row],[Value or formula]]), Calculations_animal[[#This Row],[Value or formula]])","v":0.41}]
[111,"MCF_16","table",{"$f":"_xlfn.SWITCH(Climate, \"Cool Temperate Moist\", 'Annex 4 - MCF'!D17, \"Cool Temperate Dry\", 'Annex 4 - MCF'!E17, \"Boreal Moist\", 'Annex 4 - MCF'!F17, \"Boreal Dry\", 'Annex 4 - MCF'!G17, \"Warm Temperate Moist\", 'Annex 4 - MCF'!H17, \"Warm Temperate Dry\", 'Annex 4 - MCF'!I17, \"Tropical Montane\", 'Annex 4 - MCF'!J17, \"Tropical Wet\", 'Annex 4 - MCF'!K17, \"Tropical Moist\", 'Annex 4 - MCF'!L17, \"Tropical Dry\", 'Annex 4 - MCF'!M17)","v":0.64},"%","MCF Liquid Slurry without natural crust cover (12 month)",null,null,"MCF_16",{"$f":"IF(Calculations_animal[[#This Row],[Type]]=\"calculated\", Eval(Calculations_animal[[#This Row],[Value or formula]]), Calculations_animal[[#This Row],[Value or formula]])","v":0.64}]
[112,"MCF_17","table",{"$f":"_xlfn.SWITCH(Climate, \"Cool Temperate Moist\", 'Annex 4 - MCF'!D18, \"Cool Temperate Dry\", 'Annex 4 - MCF'!E18, \"Boreal Moist\", 'Annex 4 - MCF'!F18, \"Boreal Dry\", 'Annex 4 - MCF'!G18, \"Warm Temperate Moist\", 'Annex 4 - MCF'!H18, \"Warm Temperate Dry\", 'Annex 4 - MCF'!I18, \"Tropical Montane\", 'Annex 4 - MCF'!J18, \"Tropical Wet\", 'Annex 4 - MCF'!K18, \"Tropical Moist\", 'Annex 4 - MCF'!L18, \"Tropical Dry\", 'Annex 4 - MCF'!M18)","v":0.15},"%","MCF Liquid Slurry with natural crust cover (1 month)",null,null,"MCF_17",{"$f":"IF(Calculations_animal[[#This Row],[Type]]=\"calculated\", Eval(Calculations_animal[[#This Row],[Value or formula]]), Calculations_animal[[#This Row],[Value or formula]])","v":0.15}]
[113,"MCF_18","table",{"$f":"_xlfn.SWITCH(Climate, \"Cool Temperate Moist\", 'Annex 4 - MCF'!D19, \"Cool Temperate Dry\", 'Annex 4 - MCF'!E19, \"Boreal Moist\", 'Annex 4 - MCF'!F19, \"Boreal Dry\", 'Annex 4 - MCF'!G19, \"Warm Temperate Moist\", 'Annex 4 - MCF'!H19, \"Warm Temperate Dry\", 'Annex 4 - MCF'!I19, \"Tropical Montane\", 'Annex 4 - MCF'!J19, \"Tropical Wet\", 'Annex 4 - MCF'!K19, \"Tropical Moist\", 'Annex 4 - MCF'!L19, \"Tropical Dry\", 'Annex 4 - MCF'!M19)","v":0.28000000000000003},"%","MCF Liquid Slurry with natural crust cover (3 month)",null,null,"MCF_18",{"$f":"IF(Calculations_animal[[#This Row],[Type]]=\"calculated\", Eval(Calculations_animal[[#This Row],[Value or formula]]), Calculations_animal[[#This Row],[Value or formula]])","v":0.28000000000000003}]
[114,"MCF_19","table",{"$f":"_xlfn.SWITCH(Climate, \"Cool Temperate Moist\", 'Annex 4 - MCF'!D20, \"Cool Temperate Dry\", 'Annex 4 - MCF'!E20, \"Boreal Moist\", 'Annex 4 - MCF'!F20, \"Boreal Dry\", 'Annex 4 - MCF'!G20, \"Warm Temperate Moist\", 'Annex 4 - MCF'!H20, \"Warm Temperate Dry\", 'Annex 4 - MCF'!I20, \"Tropical Montane\", 'Annex 4 - MCF'!J20, \"Tropical Wet\", 'Annex 4 - MCF'!K20, \"Tropical Moist\", 'Annex 4 - MCF'!L20, \"Tropical Dry\", 'Annex 4 - MCF'!M20)","v":0.32},"%","MCF Liquid Slurry with natural crust cover (4 month)",null,null,"MCF_19",{"$f":"IF(Calculations_animal[[#This Row],[Type]]=\"calculated\", Eval(Calculations_animal[[#This Row],[Value or formula]]), Calculations_animal[[#This Row],[Value or formula]])","v":0.32}]
[115,"MCF_20","table",{"$f":"_xlfn.SWITCH(Climate, \"Cool Temperate Moist\", 'Annex 4 - MCF'!D21, \"Cool Temperate Dry\", 'Annex 4 - MCF'!E21, \"Boreal Moist\", 'Annex 4 - MCF'!F21, \"Boreal Dry\", 'Annex 4 - MCF'!G21, \"Warm Temperate Moist\", 'Annex 4 - MCF'!H21, \"Warm Temperate Dry\", 'Annex 4 - MCF'!I21, \"Tropical Montane\", 'Annex 4 - MCF'!J21, \"Tropical Wet\", 'Annex 4 - MCF'!K21, \"Tropical Moist\", 'Annex 4 - MCF'!L21, \"Tropical Dry\", 'Annex 4 - MCF'!M21)","v":0.41},"%","MCF Liquid Slurry with natural crust cover (6 month)",null,null,"MCF_20",{"$f":"IF(Calculations_animal[[#This Row],[Type]]=\"calculated\", Eval(Calculations_animal[[#This Row],[Value or formula]]), Calculations_animal[[#This Row],[Value or formula]])","v":0.41}]
[116,"MCF_21","table",{"$f":"_xlfn.SWITCH(Climate, \"Cool Temperate Moist\", 'Annex 4 - MCF'!D22, \"Cool Temperate Dry\", 'Annex 4 - MCF'!E22, \"Boreal Moist\", 'Annex 4 - MCF'!F22, \"Boreal Dry\", 'Annex 4 - MCF'!G22, \"Warm Temperate Moist\", 'Annex 4 - MCF'!H22, \"Warm Temperate Dry\", 'Annex 4 - MCF'!I22, \"Tropical Montane\", 'Annex 4 - MCF'!J22, \"Tropical Wet\", 'Annex 4 - MCF'!K22, \"Tropical Moist\", 'Annex 4 - MCF'!L22, \"Tropical Dry\", 'Annex 4 - MCF'!M22)","v":0.64},"%","MCF Liquid Slurry with natural crust cover (12 month)",null,null,"MCF_21",{"$f":"IF(Calculations_animal[[#This Row],[Type]]=\"calculated\", Eval(Calculations_animal[[#This Row],[Value or formula]]), Calculations_animal[[#This Row],[Value or formula]])","v":0.64}]
[117,"MCF_22","table",{"$f":"_xlfn.SWITCH(Climate, \"Cool Temperate Moist\", 'Annex 4 - MCF'!D23, \"Cool Temperate Dry\", 'Annex 4 - MCF'!E23, \"Boreal Moist\", 'Annex 4 - MCF'!F23, \"Boreal Dry\", 'Annex 4 - MCF'!G23, \"Warm Temperate Moist\", 'Annex 4 - MCF'!H23, \"Warm Temperate Dry\", 'Annex 4 - MCF'!I23, \"Tropical Montane\", 'Annex 4 - MCF'!J23, \"Tropical Wet\", 'Annex 4 - MCF'!K23, \"Tropical Moist\", 'Annex 4 - MCF'!L23, \"Tropical Dry\", 'Annex 4 - MCF'!M23)","v":0.15},"%","MCF Liquid Slurry with cover (1 month)",null,null,"MCF_22",{"$f":"IF(Calculations_animal[[#This Row],[Type]]=\"calculated\", Eval(Calculations_animal[[#This Row],[Value or formula]]), Calculations_animal[[#This Row],[Value or formula]])","v":0.15}]
[118,"MCF_23","table",{"$f":"_xlfn.SWITCH(Climate, \"Cool Temperate Moist\", 'Annex 4 - MCF'!D24, \"Cool Temperate Dry\", 'Annex 4 - MCF'!E24, \"Boreal Moist\", 'Annex 4 - MCF'!F24, \"Boreal Dry\", 'Annex 4 - MCF'!G24, \"Warm Temperate Moist\", 'Annex 4 - MCF'!H24, \"Warm Temperate Dry\", 'Annex 4 - MCF'!I24, \"Tropical Montane\", 'Annex 4 - MCF'!J24, \"Tropical Wet\", 'Annex 4 - MCF'!K24, \"Tropical Moist\", 'Annex 4 - MCF'!L24, \"Tropical Dry\", 'Annex 4 - MCF'!M24)","v":0.28000000000000003},"%","MCF Liquid Slurry with cover (3 month)",null,null,"MCF_23",{"$f":"IF(Calculations_animal[[#This Row],[Type]]=\"calculated\", Eval(Calculations_animal[[#This Row],[Value or formula]]), Calculations_animal[[#This Row],[Value or formula]])","v":0.28000000000000003}]
[119,"MCF_24","table",{"$f":"_xlfn.SWITCH(Climate, \"Cool Temperate Moist\", 'Annex 4 - MCF'!D25, \"Cool Temperate Dry\", 'Annex 4 - MCF'!E25, \"Boreal Moist\", 'Annex 4 - MCF'!F25, \"Boreal Dry\", 'Annex 4 - MCF'!G25, \"Warm Temperate Moist\", 'Annex 4 - MCF'!H25, \"Warm Temperate Dry\", 'Annex 4 - MCF'!I25, \"Tropical Montane\", 'Annex 4 - MCF'!J25, \"Tropical Wet\", 'Annex 4 - MCF'!K25, \"Tropical Moist\", 'Annex 4 - MCF'!L25, \"Tropical Dry\", 'Annex 4 - MCF'!M25)","v":0.32},"%","MCF Liquid Slurry with cover (4 month)",null,null,"MCF_24",{"$f":"IF(Calculations_animal[[#This Row],[Type]]=\"calculated\", Eval(Calculations_animal[[#This Row],[Value or formula]]), Calculations_animal[[#This Row],[Value or formula]])","v":0.32}]
[120,"MCF_25","table",{"$f":"_xlfn.SWITCH(Climate, \"Cool Temperate Moist\", 'Annex 4 - MCF'!D26, \"Cool Temperate Dry\", 'Annex 4 - MCF'!E26, \"Boreal Moist\", 'Annex 4 - MCF'!F26, \"Boreal Dry\", 'Annex 4 - MCF'!G26, \"Warm Temperate Moist\", 'Annex 4 - MCF'!H26, \"Warm Temperate Dry\", 'Annex 4 - MCF'!I26, \"Tropical Montane\", 'Annex 4 - MCF'!J26, \"Tropical Wet\", 'Annex 4 - MCF'!K26, \"Tropical Moist\", 'Annex 4 - MCF'!L26, \"Tropical Dry\", 'Annex 4 - MCF'!M26)","v":0.41},"%","MCF Liquid Slurry with cover (6 month)",null,null,"MCF_25",{"$f":"IF(Calculations_animal[[#This Row],[Type]]=\"calculated\", Eval(Calculations_animal[[#This Row],[Value or formula]]), Calculations_animal[[#This Row],[Value or formula]])","v":0.41}]
[121,"MCF_26","table",{"$f":"_xlfn.SWITCH(Climate, \"Cool Temperate Moist\", 'Annex 4 - MCF'!D27, \"Cool Temperate Dry\", 'Annex 4 - MCF'!E27, \"Boreal Moist\", 'Annex 4 - MCF'!F27, \"Boreal Dry\", 'Annex 4 - MCF'!G27, \"Warm Temperate Moist\", 'Annex 4 - MCF'!H27, \"Warm Temperate Dry\", 'Annex 4 - MCF'!I27, \"Tropical Montane\", 'Annex 4 - MCF'!J27, \"Tropical Wet\", 'Annex 4 - MCF'!K27, \"Tropical Moist\", 'Annex 4 - MCF'!L27, \"Tropical Dry\", 'Annex 4 - MCF'!M27)","v":0.64},"%","MCF Liquid Slurry with cover (12 month)",null,null,"MCF_26",{"$f":"IF(Calculations_animal[[#This Row],[Type]]=\"calculated\", Eval(Calculations_animal[[#This Row],[Value or formula]]), Calculations_animal[[#This Row],[Value or formula]])","v":0.64}]
[122,"MCF_27","table",{"$f":"_xlfn.SWITCH(Climate, \"Cool Temperate Moist\", 'Annex 4 - MCF'!D28, \"Cool Temperate Dry\", 'Annex 4 - MCF'!E28, \"Boreal Moist\", 'Annex 4 - MCF'!F28, \"Boreal Dry\", 'Annex 4 - MCF'!G28, \"Warm Temperate Moist\", 'Annex 4 - MCF'!H28, \"Warm Temperate Dry\", 'Annex 4 - MCF'!I28, \"Tropical Montane\", 'Annex 4 - MCF'!J28, \"Tropical Wet\", 'Annex 4 - MCF'!K28, \"Tropical Moist\", 'Annex 4 - MCF'!L28, \"Tropical Dry\", 'Annex 4 - MCF'!M28)","v":0.04},"%","MCF Solid storage",null,null,"MCF_27",{"$f":"IF(Calculations_animal[[#This Row],[Type]]=\"calculated\", Eval(Calculations_animal[[#This Row],[Value or formula]]), Calculations_animal[[#This Row],[Value or formula]])","v":0.04}]
[123,"MCF_28","table",{"$f":"_xlfn.SWITCH(Climate, \"Cool Temperate Moist\", 'Annex 4 - MCF'!D29, \"Cool Temperate Dry\", 'Annex 4 - MCF'!E29, \"Boreal Moist\", 'Annex 4 - MCF'!F29, \"Boreal Dry\", 'Annex 4 - MCF'!G29, \"Warm Temperate Moist\", 'Annex 4 - MCF'!H29, \"Warm Temperate Dry\", 'Annex 4 - MCF'!I29, \"Tropical Montane\", 'Annex 4 - MCF'!J29, \"Tropical Wet\", 'Annex 4 - MCF'!K29, \"Tropical Moist\", 'Annex 4 - MCF'!L29, \"Tropical Dry\", 'Annex 4 - MCF'!M29)","v":0.04},"%","MCF Solid storage - Covered/compacted",null,null,"MCF_28",{"$f":"IF(Calculations_animal[[#This Row],[Type]]=\"calculated\", Eval(Calculations_animal[[#This Row],[Value or formula]]), Calculations_animal[[#This Row],[Value or formula]])","v":0.04}]
[124,"MCF_29","table",{"$f":"_xlfn.SWITCH(Climate, \"Cool Temperate Moist\", 'Annex 4 - MCF'!D30, \"Cool Temperate Dry\", 'Annex 4 - MCF'!E30, \"Boreal Moist\", 'Annex 4 - MCF'!F30, \"Boreal Dry\", 'Annex 4 - MCF'!G30, \"Warm Temperate Moist\", 'Annex 4 - MCF'!H30, \"Warm Temperate Dry\", 'Annex 4 - MCF'!I30, \"Tropical Montane\", 'Annex 4 - MCF'!J30, \"Tropical Wet\", 'Annex 4 - MCF'!K30, \"Tropical Moist\", 'Annex 4 - MCF'!L30, \"Tropical Dry\", 'Annex 4 - MCF'!M30)","v":0.01},"%","MCF Solid storage - Bulking agent addiction",null,null,"MCF_29",{"$f":"IF(Calculations_animal[[#This Row],[Type]]=\"calculated\", Eval(Calculations_animal[[#This Row],[Value or formula]]), Calculations_animal[[#This Row],[Value or formula]])","v":0.01}]
[125,"MCF_30","table",{"$f":"_xlfn.SWITCH(Climate, \"Cool Temperate Moist\", 'Annex 4 - MCF'!D31, \"Cool Temperate Dry\", 'Annex 4 - MCF'!E31, \"Boreal Moist\", 'Annex 4 - MCF'!F31, \"Boreal Dry\", 'Annex 4 - MCF'!G31, \"Warm Temperate Moist\", 'Annex 4 - MCF'!H31, \"Warm Temperate Dry\", 'Annex 4 - MCF'!I31, \"Tropical Montane\", 'Annex 4 - MCF'!J31, \"Tropical Wet\", 'Annex 4 - MCF'!K31, \"Tropical Moist\", 'Annex 4 - MCF'!L31, \"Tropical Dry\", 'Annex 4 - MCF'!M31)","v":0.02},"%","MCF Solid storage - Additives",null,null,"MCF_30",{"$f":"IF(Calculations_animal[[#This Row],[Type]]=\"calculated\", Eval(Calculations_animal[[#This Row],[Value or formula]]), Calculations_animal[[#This Row],[Value or formula]])","v":0.02}]
[126,"MCF_31","table",{"$f":"_xlfn.SWITCH(Climate, \"Cool Temperate Moist\", 'Annex 4 - MCF'!D32, \"Cool Temperate Dry\", 'Annex 4 - MCF'!E32, \"Boreal Moist\", 'Annex 4 - MCF'!F32, \"Boreal Dry\", 'Annex 4 - MCF'!G32, \"Warm Temperate Moist\", 'Annex 4 - MCF'!H32, \"Warm Temperate Dry\", 'Annex 4 - MCF'!I32, \"Tropical Montane\", 'Annex 4 - MCF'!J32, \"Tropical Wet\", 'Annex 4 - MCF'!K32, \"Tropical Moist\", 'Annex 4 - MCF'!L32, \"Tropical Dry\", 'Annex 4 - MCF'!M32)","v":5.0000000000000001E-3},"%","MCF Composting in vessel",null,null,"MCF_31",{"$f":"IF(Calculations_animal[[#This Row],[Type]]=\"calculated\", Eval(Calculations_animal[[#This Row],[Value or formula]]), Calculations_animal[[#This Row],[Value or formula]])","v":5.0000000000000001E-3}]
[127,"MCF_32","table",{"$f":"_xlfn.SWITCH(Climate, \"Cool Temperate Moist\", 'Annex 4 - MCF'!D33, \"Cool Temperate Dry\", 'Annex 4 - MCF'!E33, \"Boreal Moist\", 'Annex 4 - MCF'!F33, \"Boreal Dry\", 'Annex 4 - MCF'!G33, \"Warm Temperate Moist\", 'Annex 4 - MCF'!H33, \"Warm Temperate Dry\", 'Annex 4 - MCF'!I33, \"Tropical Montane\", 'Annex 4 - MCF'!J33, \"Tropical Wet\", 'Annex 4 - MCF'!K33, \"Tropical Moist\", 'Annex 4 - MCF'!L33, \"Tropical Dry\", 'Annex 4 - MCF'!M33)","v":0.02},"%","MCF Composting static pile",null,null,"MCF_32",{"$f":"IF(Calculations_animal[[#This Row],[Type]]=\"calculated\", Eval(Calculations_animal[[#This Row],[Value or formula]]), Calculations_animal[[#This Row],[Value or formula]])","v":0.02}]
[128,"MCF_33","table",{"$f":"_xlfn.SWITCH(Climate, \"Cool Temperate Moist\", 'Annex 4 - MCF'!D34, \"Cool Temperate Dry\", 'Annex 4 - MCF'!E34, \"Boreal Moist\", 'Annex 4 - MCF'!F34, \"Boreal Dry\", 'Annex 4 - MCF'!G34, \"Warm Temperate Moist\", 'Annex 4 - MCF'!H34, \"Warm Temperate Dry\", 'Annex 4 - MCF'!I34, \"Tropical Montane\", 'Annex 4 - MCF'!J34, \"Tropical Wet\", 'Annex 4 - MCF'!K34, \"Tropical Moist\", 'Annex 4 - MCF'!L34, \"Tropical Dry\", 'Annex 4 - MCF'!M34)","v":0.01},"%","MCF Composting intensive windrow",null,null,"MCF_33",{"$f":"IF(Calculations_animal[[#This Row],[Type]]=\"calculated\", Eval(Calculations_animal[[#This Row],[Value or formula]]), Calculations_animal[[#This Row],[Value or formula]])","v":0.01}]
[129,"MCF_34","table",{"$f":"_xlfn.SWITCH(Climate, \"Cool Temperate Moist\", 'Annex 4 - MCF'!D35, \"Cool Temperate Dry\", 'Annex 4 - MCF'!E35, \"Boreal Moist\", 'Annex 4 - MCF'!F35, \"Boreal Dry\", 'Annex 4 - MCF'!G35, \"Warm Temperate Moist\", 'Annex 4 - MCF'!H35, \"Warm Temperate Dry\", 'Annex 4 - MCF'!I35, \"Tropical Montane\", 'Annex 4 - MCF'!J35, \"Tropical Wet\", 'Annex 4 - MCF'!K35, \"Tropical Moist\", 'Annex 4 - MCF'!L35, \"Tropical Dry\", 'Annex 4 - MCF'!M35)","v":0.02},"%","MCF Composting  passive windrow",null,null,"MCF_34",{"$f":"IF(Calculations_animal[[#This Row],[Type]]=\"calculated\", Eval(Calculations_animal[[#This Row],[Value or formula]]), Calculations_animal[[#This Row],[Value or formula]])","v":0.02}]
[130,"MCF_35","table",{"$f":"_xlfn.SWITCH(Climate, \"Cool Temperate Moist\", 'Annex 4 - MCF'!D36, \"Cool Temperate Dry\", 'Annex 4 - MCF'!E36, \"Boreal Moist\", 'Annex 4 - MCF'!F36, \"Boreal Dry\", 'Annex 4 - MCF'!G36, \"Warm Temperate Moist\", 'Annex 4 - MCF'!H36, \"Warm Temperate Dry\", 'Annex 4 - MCF'!I36, \"Tropical Montane\", 'Annex 4 - MCF'!J36, \"Tropical Wet\", 'Annex 4 - MCF'!K36, \"Tropical Moist\", 'Annex 4 - MCF'!L36, \"Tropical Dry\", 'Annex 4 - MCF'!M36)","v":0},"%","MCF Aerobic treatment natural aeration",null,null,"MCF_35",{"$f":"IF(Calculations_animal[[#This Row],[Type]]=\"calculated\", Eval(Calculations_animal[[#This Row],[Value or formula]]), Calculations_animal[[#This Row],[Value or formula]])","v":0}]
[131,"MCF_36","table",{"$f":"_xlfn.SWITCH(Climate, \"Cool Temperate Moist\", 'Annex 4 - MCF'!D37, \"Cool Temperate Dry\", 'Annex 4 - MCF'!E37, \"Boreal Moist\", 'Annex 4 - MCF'!F37, \"Boreal Dry\", 'Annex 4 - MCF'!G37, \"Warm Temperate Moist\", 'Annex 4 - MCF'!H37, \"Warm Temperate Dry\", 'Annex 4 - MCF'!I37, \"Tropical Montane\", 'Annex 4 - MCF'!J37, \"Tropical Wet\", 'Annex 4 - MCF'!K37, \"Tropical Moist\", 'Annex 4 - MCF'!L37, \"Tropical Dry\", 'Annex 4 - MCF'!M37)","v":0},"%","MCF Aerobic treatment forced aeration",null,null,"MCF_36",{"$f":"IF(Calculations_animal[[#This Row],[Type]]=\"calculated\", Eval(Calculations_animal[[#This Row],[Value or formula]]), Calculations_animal[[#This Row],[Value or formula]])","v":0}]
[132,"MCF_37","table",{"$f":"_xlfn.SWITCH(Climate, \"Cool Temperate Moist\", 'Annex 4 - MCF'!D38, \"Cool Temperate Dry\", 'Annex 4 - MCF'!E38, \"Boreal Moist\", 'Annex 4 - MCF'!F38, \"Boreal Dry\", 'Annex 4 - MCF'!G38, \"Warm Temperate Moist\", 'Annex 4 - MCF'!H38, \"Warm Temperate Dry\", 'Annex 4 - MCF'!I38, \"Tropical Montane\", 'Annex 4 - MCF'!J38, \"Tropical Wet\", 'Annex 4 - MCF'!K38, \"Tropical Moist\", 'Annex 4 - MCF'!L38, \"Tropical Dry\", 'Annex 4 - MCF'!M38)","v":0.76},"%","MCF Uncovered anaerobic lagoon",null,null,"MCF_37",{"$f":"IF(Calculations_animal[[#This Row],[Type]]=\"calculated\", Eval(Calculations_animal[[#This Row],[Value or formula]]), Calculations_animal[[#This Row],[Value or formula]])","v":0.76}]
[133,"MCF_38","table",{"$f":"_xlfn.SWITCH(Climate, \"Cool Temperate Moist\", 'Annex 4 - MCF'!D39, \"Cool Temperate Dry\", 'Annex 4 - MCF'!E39, \"Boreal Moist\", 'Annex 4 - MCF'!F39, \"Boreal Dry\", 'Annex 4 - MCF'!G39, \"Warm Temperate Moist\", 'Annex 4 - MCF'!H39, \"Warm Temperate Dry\", 'Annex 4 - MCF'!I39, \"Tropical Montane\", 'Annex 4 - MCF'!J39, \"Tropical Wet\", 'Annex 4 - MCF'!K39, \"Tropical Moist\", 'Annex 4 - MCF'!L39, \"Tropical Dry\", 'Annex 4 - MCF'!M39)","v":0.01},"%","MCF Anaerobic Digester, Low leakage, High quality gastight storage, best complete industrial technology",null,null,"MCF_38",{"$f":"IF(Calculations_animal[[#This Row],[Type]]=\"calculated\", Eval(Calculations_animal[[#This Row],[Value or formula]]), Calculations_animal[[#This Row],[Value or formula]])","v":0.01}]
[134,"MCF_39","table",{"$f":"_xlfn.SWITCH(Climate, \"Cool Temperate Moist\", 'Annex 4 - MCF'!D40, \"Cool Temperate Dry\", 'Annex 4 - MCF'!E40, \"Boreal Moist\", 'Annex 4 - MCF'!F40, \"Boreal Dry\", 'Annex 4 - MCF'!G40, \"Warm Temperate Moist\", 'Annex 4 - MCF'!H40, \"Warm Temperate Dry\", 'Annex 4 - MCF'!I40, \"Tropical Montane\", 'Annex 4 - MCF'!J40, \"Tropical Wet\", 'Annex 4 - MCF'!K40, \"Tropical Moist\", 'Annex 4 - MCF'!L40, \"Tropical Dry\", 'Annex 4 - MCF'!M40)","v":1.41E-2},"%","MCF Anaerobic Digester, Low leakage, High quality industrial technology, low quality gastight storage technology",null,null,"MCF_39",{"$f":"IF(Calculations_animal[[#This Row],[Type]]=\"calculated\", Eval(Calculations_animal[[#This Row],[Value or formula]]), Calculations_animal[[#This Row],[Value or formula]])","v":1.41E-2}]
[135,"MCF_40","table",{"$f":"_xlfn.SWITCH(Climate, \"Cool Temperate Moist\", 'Annex 4 - MCF'!D41, \"Cool Temperate Dry\", 'Annex 4 - MCF'!E41, \"Boreal Moist\", 'Annex 4 - MCF'!F41, \"Boreal Dry\", 'Annex 4 - MCF'!G41, \"Warm Temperate Moist\", 'Annex 4 - MCF'!H41, \"Warm Temperate Dry\", 'Annex 4 - MCF'!I41, \"Tropical Montane\", 'Annex 4 - MCF'!J41, \"Tropical Wet\", 'Annex 4 - MCF'!K41, \"Tropical Moist\", 'Annex 4 - MCF'!L41, \"Tropical Dry\", 'Annex 4 - MCF'!M41)","v":4.3799999999999999E-2},"%","MCF Anaerobic Digester, Low leakage, High quality industrial technology, open storage",null,null,"MCF_40",{"$f":"IF(Calculations_animal[[#This Row],[Type]]=\"calculated\", Eval(Calculations_animal[[#This Row],[Value or formula]]), Calculations_animal[[#This Row],[Value or formula]])","v":4.3799999999999999E-2}]
[136,"MCF_41","table",{"$f":"_xlfn.SWITCH(Climate, \"Cool Temperate Moist\", 'Annex 4 - MCF'!D42, \"Cool Temperate Dry\", 'Annex 4 - MCF'!E42, \"Boreal Moist\", 'Annex 4 - MCF'!F42, \"Boreal Dry\", 'Annex 4 - MCF'!G42, \"Warm Temperate Moist\", 'Annex 4 - MCF'!H42, \"Warm Temperate Dry\", 'Annex 4 - MCF'!I42, \"Tropical Montane\", 'Annex 4 - MCF'!J42, \"Tropical Wet\", 'Annex 4 - MCF'!K42, \"Tropical Moist\", 'Annex 4 - MCF'!L42, \"Tropical Dry\", 'Annex 4 - MCF'!M42)","v":9.5899999999999999E-2},"%","MCF Anaerobic Digester, High leakage, low quality technology, high quality gastight storage technology",null,null,"MCF_41",{"$f":"IF(Calculations_animal[[#This Row],[Type]]=\"calculated\", Eval(Calculations_animal[[#This Row],[Value or formula]]), Calculations_animal[[#This Row],[Value or formula]])","v":9.5899999999999999E-2}]
[137,"MCF_42","table",{"$f":"_xlfn.SWITCH(Climate, \"Cool Temperate Moist\", 'Annex 4 - MCF'!D43, \"Cool Temperate Dry\", 'Annex 4 - MCF'!E43, \"Boreal Moist\", 'Annex 4 - MCF'!F43, \"Boreal Dry\", 'Annex 4 - MCF'!G43, \"Warm Temperate Moist\", 'Annex 4 - MCF'!H43, \"Warm Temperate Dry\", 'Annex 4 - MCF'!I43, \"Tropical Montane\", 'Annex 4 - MCF'!J43, \"Tropical Wet\", 'Annex 4 - MCF'!K43, \"Tropical Moist\", 'Annex 4 - MCF'!L43, \"Tropical Dry\", 'Annex 4 - MCF'!M43)","v":0.1085},"%","MCF Anaerobic Digester, High leakage, low quality technology, low quality gastight storage technology",null,null,"MCF_42",{"$f":"IF(Calculations_animal[[#This Row],[Type]]=\"calculated\", Eval(Calculations_animal[[#This Row],[Value or formula]]), Calculations_animal[[#This Row],[Value or formula]])","v":0.1085}]
[138,"MCF_43","table",{"$f":"_xlfn.SWITCH(Climate, \"Cool Temperate Moist\", 'Annex 4 - MCF'!D44, \"Cool Temperate Dry\", 'Annex 4 - MCF'!E44, \"Boreal Moist\", 'Annex 4 - MCF'!F44, \"Boreal Dry\", 'Annex 4 - MCF'!G44, \"Warm Temperate Moist\", 'Annex 4 - MCF'!H44, \"Warm Temperate Dry\", 'Annex 4 - MCF'!I44, \"Tropical Montane\", 'Annex 4 - MCF'!J44, \"Tropical Wet\", 'Annex 4 - MCF'!K44, \"Tropical Moist\", 'Annex 4 - MCF'!L44, \"Tropical Dry\", 'Annex 4 - MCF'!M44)","v":0.12970000000000001},"%","MCF Anaerobic Digester, High leakage, low quality technology, open storage",null,null,"MCF_43",{"$f":"IF(Calculations_animal[[#This Row],[Type]]=\"calculated\", Eval(Calculations_animal[[#This Row],[Value or formula]]), Calculations_animal[[#This Row],[Value or formula]])","v":0.12970000000000001}]
[139,"EF_nit_S_1","table",{"$f":"'Annex 5 - EF_nit_S'!C2","v":0},"dimensionless","Emission factor N2O direct from Daily spread",null,null,"EF_nit_S_1",{"$f":"IF(Calculations_animal[[#This Row],[Type]]=\"calculated\", Eval(Calculations_animal[[#This Row],[Value or formula]]), Calculations_animal[[#This Row],[Value or formula]])","v":0}]
[140,"EF_nit_S_2","table",{"$f":"'Annex 5 - EF_nit_S'!C3","v":0.02},"dimensionless","Emission factor N2O direct from Dry lot",null,null,"EF_nit_S_2",{"$f":"IF(Calculations_animal[[#This Row],[Type]]=\"calculated\", Eval(Calculations_animal[[#This Row],[Value or formula]]), Calculations_animal[[#This Row],[Value or formula]])","v":0.02}]
[141,"EF_nit_S_3","table",{"$f":"'Annex 5 - EF_nit_S'!C4","v":0.01},"dimensionless","Emission factor N2O direct from Cattle deep bedding no mixing (less 1 month)",null,null,"EF_nit_S_3",{"$f":"IF(Calculations_animal[[#This Row],[Type]]=\"calculated\", Eval(Calculations_animal[[#This Row],[Value or formula]]), Calculations_animal[[#This Row],[Value or formula]])","v":0.01}]
[142,"EF_nit_S_4","table",{"$f":"'Annex 5 - EF_nit_S'!C5","v":0.01},"dimensionless","Emission factor N2O direct from Cattle deep bedding no mixing (more 1 month)",null,null,"EF_nit_S_4",{"$f":"IF(Calculations_animal[[#This Row],[Type]]=\"calculated\", Eval(Calculations_animal[[#This Row],[Value or formula]]), Calculations_animal[[#This Row],[Value or formula]])","v":0.01}]
[143,"EF_nit_S_5","table",{"$f":"'Annex 5 - EF_nit_S'!C6","v":7.0000000000000007E-2},"dimensionless","Emission factor N2O direct from Cattle deep bedding active mixing (less 1 month)",null,null,"EF_nit_S_5",{"$f":"IF(Calculations_animal[[#This Row],[Type]]=\"calculated\", Eval(Calculations_animal[[#This Row],[Value or formula]]), Calculations_animal[[#This Row],[Value or formula]])","v":7.0000000000000007E-2}]
[144,"EF_nit_S_6","table",{"$f":"'Annex 5 - EF_nit_S'!C7","v":7.0000000000000007E-2},"dimensionless","Emission factor N2O direct from Cattle deep bedding active mixing (more 1 month)",null,null,"EF_nit_S_6",{"$f":"IF(Calculations_animal[[#This Row],[Type]]=\"calculated\", Eval(Calculations_animal[[#This Row],[Value or formula]]), Calculations_animal[[#This Row],[Value or formula]])","v":7.0000000000000007E-2}]
[145,"EF_nit_S_7","table",{"$f":"'Annex 5 - EF_nit_S'!C8","v":2E-3},"dimensionless","Emission factor N2O direct from Pit storage (1 month)",null,null,"EF_nit_S_7",{"$f":"IF(Calculations_animal[[#This Row],[Type]]=\"calculated\", Eval(Calculations_animal[[#This Row],[Value or formula]]), Calculations_animal[[#This Row],[Value or formula]])","v":2E-3}]
[146,"EF_nit_S_8","table",{"$f":"'Annex 5 - EF_nit_S'!C9","v":2E-3},"dimensionless","Emission factor N2O direct from Pit storage (3 month)",null,null,"EF_nit_S_8",{"$f":"IF(Calculations_animal[[#This Row],[Type]]=\"calculated\", Eval(Calculations_animal[[#This Row],[Value or formula]]), Calculations_animal[[#This Row],[Value or formula]])","v":2E-3}]
[147,"EF_nit_S_9","table",{"$f":"'Annex 5 - EF_nit_S'!C10","v":2E-3},"dimensionless","Emission factor N2O direct from Pit storage (4 month)",null,null,"EF_nit_S_9",{"$f":"IF(Calculations_animal[[#This Row],[Type]]=\"calculated\", Eval(Calculations_animal[[#This Row],[Value or formula]]), Calculations_animal[[#This Row],[Value or formula]])","v":2E-3}]
[148,"EF_nit_S_10","table",{"$f":"'Annex 5 - EF_nit_S'!C11","v":2E-3},"dimensionless","Emission factor N2O direct from Pit storage (6 month)",null,null,"EF_nit_S_10",{"$f":"IF(Calculations_animal[[#This Row],[Type]]=\"calculated\", Eval(Calculations_animal[[#This Row],[Value or formula]]), Calculations_animal[[#This Row],[Value or formula]])","v":2E-3}]
[149,"EF_nit_S_11","table",{"$f":"'Annex 5 - EF_nit_S'!C12","v":2E-3},"dimensionless","Emission factor N2O direct from Pit storage (12 month)",null,null,"EF_nit_S_11",{"$f":"IF(Calculations_animal[[#This Row],[Type]]=\"calculated\", Eval(Calculations_animal[[#This Row],[Value or formula]]), Calculations_animal[[#This Row],[Value or formula]])","v":2E-3}]
[150,"EF_nit_S_12","table",{"$f":"'Annex 5 - EF_nit_S'!C13","v":0},"dimensionless","Emission factor N2O direct from Liquid Slurry without natural crust cover (1 month)",null,null,"EF_nit_S_12",{"$f":"IF(Calculations_animal[[#This Row],[Type]]=\"calculated\", Eval(Calculations_animal[[#This Row],[Value or formula]]), Calculations_animal[[#This Row],[Value or formula]])","v":0}]
[151,"EF_nit_S_13","table",{"$f":"'Annex 5 - EF_nit_S'!C14","v":0},"dimensionless","Emission factor N2O direct from Liquid Slurry without natural crust cover (3 month)",null,null,"EF_nit_S_13",{"$f":"IF(Calculations_animal[[#This Row],[Type]]=\"calculated\", Eval(Calculations_animal[[#This Row],[Value or formula]]), Calculations_animal[[#This Row],[Value or formula]])","v":0}]
[152,"EF_nit_S_14","table",{"$f":"'Annex 5 - EF_nit_S'!C15","v":0},"dimensionless","Emission factor N2O direct from Liquid Slurry without natural crust cover (4 month)",null,null,"EF_nit_S_14",{"$f":"IF(Calculations_animal[[#This Row],[Type]]=\"calculated\", Eval(Calculations_animal[[#This Row],[Value or formula]]), Calculations_animal[[#This Row],[Value or formula]])","v":0}]
[153,"EF_nit_S_15","table",{"$f":"'Annex 5 - EF_nit_S'!C16","v":0},"dimensionless","Emission factor N2O direct from Liquid Slurry without natural crust cover (6 month)",null,null,"EF_nit_S_15",{"$f":"IF(Calculations_animal[[#This Row],[Type]]=\"calculated\", Eval(Calculations_animal[[#This Row],[Value or formula]]), Calculations_animal[[#This Row],[Value or formula]])","v":0}]
[154,"EF_nit_S_16","table",{"$f":"'Annex 5 - EF_nit_S'!C17","v":0},"dimensionless","Emission factor N2O direct from Liquid Slurry without natural crust cover (12 month)",null,null,"EF_nit_S_16",{"$f":"IF(Calculations_animal[[#This Row],[Type]]=\"calculated\", Eval(Calculations_animal[[#This Row],[Value or formula]]), Calculations_animal[[#This Row],[Value or formula]])","v":0}]
[155,"EF_nit_S_17","table",{"$f":"'Annex 5 - EF_nit_S'!C18","v":5.0000000000000001E-3},"dimensionless","Emission factor N2O direct from Liquid Slurry with natural crust cover (1 month)",null,null,"EF_nit_S_17",{"$f":"IF(Calculations_animal[[#This Row],[Type]]=\"calculated\", Eval(Calculations_animal[[#This Row],[Value or formula]]), Calculations_animal[[#This Row],[Value or formula]])","v":5.0000000000000001E-3}]
[156,"EF_nit_S_18","table",{"$f":"'Annex 5 - EF_nit_S'!C19","v":5.0000000000000001E-3},"dimensionless","Emission factor N2O direct from Liquid Slurry with natural crust cover (3 month)",null,null,"EF_nit_S_18",{"$f":"IF(Calculations_animal[[#This Row],[Type]]=\"calculated\", Eval(Calculations_animal[[#This Row],[Value or formula]]), Calculations_animal[[#This Row],[Value or formula]])","v":5.0000000000000001E-3}]
[157,"EF_nit_S_19","table",{"$f":"'Annex 5 - EF_nit_S'!C20","v":5.0000000000000001E-3},"dimensionless","Emission factor N2O direct from Liquid Slurry with natural crust cover (4 month)",null,null,"EF_nit_S_19",{"$f":"IF(Calculations_animal[[#This Row],[Type]]=\"calculated\", Eval(Calculations_animal[[#This Row],[Value or formula]]), Calculations_animal[[#This Row],[Value or formula]])","v":5.0000000000000001E-3}]
[158,"EF_nit_S_20","table",{"$f":"'Annex 5 - EF_nit_S'!C21","v":5.0000000000000001E-3},"dimensionless","Emission factor N2O direct from Liquid Slurry with natural crust cover (6 month)",null,null,"EF_nit_S_20",{"$f":"IF(Calculations_animal[[#This Row],[Type]]=\"calculated\", Eval(Calculations_animal[[#This Row],[Value or formula]]), Calculations_animal[[#This Row],[Value or formula]])","v":5.0000000000000001E-3}]
[159,"EF_nit_S_21","table",{"$f":"'Annex 5 - EF_nit_S'!C22","v":5.0000000000000001E-3},"dimensionless","Emission factor N2O direct from Liquid Slurry with natural crust cover (12 month)",null,null,"EF_nit_S_21",{"$f":"IF(Calculations_animal[[#This Row],[Type]]=\"calculated\", Eval(Calculations_animal[[#This Row],[Value or formula]]), Calculations_animal[[#This Row],[Value or formula]])","v":5.0000000000000001E-3}]
[160,"EF_nit_S_22","table",{"$f":"'Annex 5 - EF_nit_S'!C23","v":5.0000000000000001E-3},"dimensionless","Emission factor N2O direct from Liquid Slurry with cover (1 month)",null,null,"EF_nit_S_22",{"$f":"IF(Calculations_animal[[#This Row],[Type]]=\"calculated\", Eval(Calculations_animal[[#This Row],[Value or formula]]), Calculations_animal[[#This Row],[Value or formula]])","v":5.0000000000000001E-3}]
[161,"EF_nit_S_23","table",{"$f":"'Annex 5 - EF_nit_S'!C24","v":5.0000000000000001E-3},"dimensionless","Emission factor N2O direct from Liquid Slurry with cover (3 month)",null,null,"EF_nit_S_23",{"$f":"IF(Calculations_animal[[#This Row],[Type]]=\"calculated\", Eval(Calculations_animal[[#This Row],[Value or formula]]), Calculations_animal[[#This Row],[Value or formula]])","v":5.0000000000000001E-3}]
[162,"EF_nit_S_24","table",{"$f":"'Annex 5 - EF_nit_S'!C25","v":5.0000000000000001E-3},"dimensionless","Emission factor N2O direct from Liquid Slurry with cover (4 month)",null,null,"EF_nit_S_24",{"$f":"IF(Calculations_animal[[#This Row],[Type]]=\"calculated\", Eval(Calculations_animal[[#This Row],[Value or formula]]), Calculations_animal[[#This Row],[Value or formula]])","v":5.0000000000000001E-3}]
[163,"EF_nit_S_25","table",{"$f":"'Annex 5 - EF_nit_S'!C26","v":5.0000000000000001E-3},"dimensionless","Emission factor N2O direct from Liquid Slurry with cover (6 month)",null,null,"EF_nit_S_25",{"$f":"IF(Calculations_animal[[#This Row],[Type]]=\"calculated\", Eval(Calculations_animal[[#This Row],[Value or formula]]), Calculations_animal[[#This Row],[Value or formula]])","v":5.0000000000000001E-3}]
[164,"EF_nit_S_26","table",{"$f":"'Annex 5 - EF_nit_S'!C27","v":5.0000000000000001E-3},"dimensionless","Emission factor N2O direct from Liquid Slurry with cover (12 month)",null,null,"EF_nit_S_26",{"$f":"IF(Calculations_animal[[#This Row],[Type]]=\"calculated\", Eval(Calculations_animal[[#This Row],[Value or formula]]), Calculations_animal[[#This Row],[Value or formula]])","v":5.0000000000000001E-3}]
[165,"EF_nit_S_27","table",{"$f":"'Annex 5 - EF_nit_S'!C28","v":0.01},"dimensionless","Emission factor N2O direct from Solid storage",null,null,"EF_nit_S_27",{"$f":"IF(Calculations_animal[[#This Row],[Type]]=\"calculated\", Eval(Calculations_animal[[#This Row],[Value or formula]]), Calculations_animal[[#This Row],[Value or formula]])","v":0.01}]
[166,"EF_nit_S_28","table",{"$f":"'Annex 5 - EF_nit_S'!C29","v":0.01},"dimensionless","Emission factor N2O direct from Solid storage - Covered/compacted",null,null,"EF_nit_S_28",{"$f":"IF(Calculations_animal[[#This Row],[Type]]=\"calculated\", Eval(Calculations_animal[[#This Row],[Value or formula]]), Calculations_animal[[#This Row],[Value or formula]])","v":0.01}]
[167,"EF_nit_S_29","table",{"$f":"'Annex 5 - EF_nit_S'!C30","v":5.0000000000000001E-3},"dimensionless","Emission factor N2O direct from Solid storage - Bulking agent addiction",null,null,"EF_nit_S_29",{"$f":"IF(Calculations_animal[[#This Row],[Type]]=\"calculated\", Eval(Calculations_animal[[#This Row],[Value or formula]]), Calculations_animal[[#This Row],[Value or formula]])","v":5.0000000000000001E-3}]
[168,"EF_nit_S_30","table",{"$f":"'Annex 5 - EF_nit_S'!C31","v":5.0000000000000001E-3},"dimensionless","Emission factor N2O direct from Solid storage - Additives",null,null,"EF_nit_S_30",{"$f":"IF(Calculations_animal[[#This Row],[Type]]=\"calculated\", Eval(Calculations_animal[[#This Row],[Value or formula]]), Calculations_animal[[#This Row],[Value or formula]])","v":5.0000000000000001E-3}]
[169,"EF_nit_S_31","table",{"$f":"'Annex 5 - EF_nit_S'!C32","v":6.0000000000000001E-3},"dimensionless","Emission factor N2O direct from Composting in vessel",null,null,"EF_nit_S_31",{"$f":"IF(Calculations_animal[[#This Row],[Type]]=\"calculated\", Eval(Calculations_animal[[#This Row],[Value or formula]]), Calculations_animal[[#This Row],[Value or formula]])","v":6.0000000000000001E-3}]
[170,"EF_nit_S_32","table",{"$f":"'Annex 5 - EF_nit_S'!C33","v":0.01},"dimensionless","Emission factor N2O direct from Composting static pile",null,null,"EF_nit_S_32",{"$f":"IF(Calculations_animal[[#This Row],[Type]]=\"calculated\", Eval(Calculations_animal[[#This Row],[Value or formula]]), Calculations_animal[[#This Row],[Value or formula]])","v":0.01}]
[171,"EF_nit_S_33","table",{"$f":"'Annex 5 - EF_nit_S'!C34","v":5.0000000000000001E-3},"dimensionless","Emission factor N2O direct from Composting intensive windrow",null,null,"EF_nit_S_33",{"$f":"IF(Calculations_animal[[#This Row],[Type]]=\"calculated\", Eval(Calculations_animal[[#This Row],[Value or formula]]), Calculations_animal[[#This Row],[Value or formula]])","v":5.0000000000000001E-3}]
[172,"EF_nit_S_34","table",{"$f":"'Annex 5 - EF_nit_S'!C35","v":5.0000000000000001E-3},"dimensionless","Emission factor N2O direct from Composting  passive windrow",null,null,"EF_nit_S_34",{"$f":"IF(Calculations_animal[[#This Row],[Type]]=\"calculated\", Eval(Calculations_animal[[#This Row],[Value or formula]]), Calculations_animal[[#This Row],[Value or formula]])","v":5.0000000000000001E-3}]
[173,"EF_nit_S_35","table",{"$f":"'Annex 5 - EF_nit_S'!C36","v":0.01},"dimensionless","Emission factor N2O direct from Aerobic treatment natural aeration",null,null,"EF_nit_S_35",{"$f":"IF(Calculations_animal[[#This Row],[Type]]=\"calculated\", Eval(Calculations_animal[[#This Row],[Value or formula]]), Calculations_animal[[#This Row],[Value or formula]])","v":0.01}]
[174,"EF_nit_S_36","table",{"$f":"'Annex 5 - EF_nit_S'!C37","v":5.0000000000000001E-3},"dimensionless","Emission factor N2O direct from Aerobic treatment forced aeration",null,null,"EF_nit_S_36",{"$f":"IF(Calculations_animal[[#This Row],[Type]]=\"calculated\", Eval(Calculations_animal[[#This Row],[Value or formula]]), Calculations_animal[[#This Row],[Value or formula]])","v":5.0000000000000001E-3}]
[175,"EF_nit_S_37","table",{"$f":"'Annex 5 - EF_nit_S'!C38","v":0},"dimensionless","Emission factor N2O direct from Uncovered anaerobic lagoon",null,null,"EF_nit_S_37",{"$f":"IF(Calculations_animal[[#This Row],[Type]]=\"calculated\", Eval(Calculations_animal[[#This Row],[Value or formula]]), Calculations_animal[[#This Row],[Value or formula]])","v":0}]
[176,"EF_nit_S_38","table",{"$f":"'Annex 5 - EF_nit_S'!C39","v":5.9999999999999995E-4},"dimensionless","Emission factor N2O direct from Anaerobic Digester, Low leakage, High quality gastight storage, best complete industrial technology",null,null,"EF_nit_S_38",{"$f":"IF(Calculations_animal[[#This Row],[Type]]=\"calculated\", Eval(Calculations_animal[[#This Row],[Value or formula]]), Calculations_animal[[#This Row],[Value or formula]])","v":5.9999999999999995E-4}]
[177,"EF_nit_S_39","table",{"$f":"'Annex 5 - EF_nit_S'!C40","v":5.9999999999999995E-4},"dimensionless","Emission factor N2O direct from Anaerobic Digester, Low leakage, High quality industrial technology, low quality gastight storage technology",null,null,"EF_nit_S_39",{"$f":"IF(Calculations_animal[[#This Row],[Type]]=\"calculated\", Eval(Calculations_animal[[#This Row],[Value or formula]]), Calculations_animal[[#This Row],[Value or formula]])","v":5.9999999999999995E-4}]
[178,"EF_nit_S_40","table",{"$f":"'Annex 5 - EF_nit_S'!C41","v":5.9999999999999995E-4},"dimensionless","Emission factor N2O direct from Anaerobic Digester, Low leakage, High quality industrial technology, open storage",null,null,"EF_nit_S_40",{"$f":"IF(Calculations_animal[[#This Row],[Type]]=\"calculated\", Eval(Calculations_animal[[#This Row],[Value or formula]]), Calculations_animal[[#This Row],[Value or formula]])","v":5.9999999999999995E-4}]
[179,"EF_nit_S_41","table",{"$f":"'Annex 5 - EF_nit_S'!C42","v":5.9999999999999995E-4},"dimensionless","Emission factor N2O direct from Anaerobic Digester, High leakage, low quality technology, high quality gastight storage technology",null,null,"EF_nit_S_41",{"$f":"IF(Calculations_animal[[#This Row],[Type]]=\"calculated\", Eval(Calculations_animal[[#This Row],[Value or formula]]), Calculations_animal[[#This Row],[Value or formula]])","v":5.9999999999999995E-4}]
[180,"EF_nit_S_42","table",{"$f":"'Annex 5 - EF_nit_S'!C43","v":5.9999999999999995E-4},"dimensionless","Emission factor N2O direct from Anaerobic Digester, High leakage, low quality technology, low quality gastight storage technology",null,null,"EF_nit_S_42",{"$f":"IF(Calculations_animal[[#This Row],[Type]]=\"calculated\", Eval(Calculations_animal[[#This Row],[Value or formula]]), Calculations_animal[[#This Row],[Value or formula]])","v":5.9999999999999995E-4}]
[181,"EF_nit_S_43","table",{"$f":"'Annex 5 - EF_nit_S'!C44","v":5.9999999999999995E-4},"dimensionless","Emission factor N2O direct from Anaerobic Digester, High leakage, low quality technology, open storage",null,null,"EF_nit_S_43",{"$f":"IF(Calculations_animal[[#This Row],[Type]]=\"calculated\", Eval(Calculations_animal[[#This Row],[Value or formula]]), Calculations_animal[[#This Row],[Value or formula]])","v":5.9999999999999995E-4}]
[182,"Frac_leach_S_1","table",{"$f":"'Annex 6 - Frac_leach_S'!C2","v":0},"dimensionless","Fraction of managed manure nitrogen leached from Daily spread",null,null,"Frac_leach_S_1",{"$f":"IF(Calculations_animal[[#This Row],[Type]]=\"calculated\", Eval(Calculations_animal[[#This Row],[Value or formula]]), Calculations_animal[[#This Row],[Value or formula]])","v":0}]
[183,"Frac_leach_S_2","table",{"$f":"'Annex 6 - Frac_leach_S'!C3","v":3.5000000000000003E-2},"dimensionless","Fraction of managed manure nitrogen leached from Dry lot",null,null,"Frac_leach_S_2",{"$f":"IF(Calculations_animal[[#This Row],[Type]]=\"calculated\", Eval(Calculations_animal[[#This Row],[Value or formula]]), Calculations_animal[[#This Row],[Value or formula]])","v":3.5000000000000003E-2}]
[184,"Frac_leach_S_3","table",{"$f":"'Annex 6 - Frac_leach_S'!C4","v":3.5000000000000003E-2},"dimensionless","Fraction of managed manure nitrogen leached from Cattle deep bedding no mixing (less 1 month)",null,null,"Frac_leach_S_3",{"$f":"IF(Calculations_animal[[#This Row],[Type]]=\"calculated\", Eval(Calculations_animal[[#This Row],[Value or formula]]), Calculations_animal[[#This Row],[Value or formula]])","v":3.5000000000000003E-2}]
[185,"Frac_leach_S_4","table",{"$f":"'Annex 6 - Frac_leach_S'!C5","v":3.5000000000000003E-2},"dimensionless","Fraction of managed manure nitrogen leached from Cattle deep bedding no mixing (more 1 month)",null,null,"Frac_leach_S_4",{"$f":"IF(Calculations_animal[[#This Row],[Type]]=\"calculated\", Eval(Calculations_animal[[#This Row],[Value or formula]]), Calculations_animal[[#This Row],[Value or formula]])","v":3.5000000000000003E-2}]
[186,"Frac_leach_S_5","table",{"$f":"'Annex 6 - Frac_leach_S'!C6","v":3.5000000000000003E-2},"dimensionless","Fraction of managed manure nitrogen leached from Cattle deep bedding active mixing (less 1 month)",null,null,"Frac_leach_S_5",{"$f":"IF(Calculations_animal[[#This Row],[Type]]=\"calculated\", Eval(Calculations_animal[[#This Row],[Value or formula]]), Calculations_animal[[#This Row],[Value or formula]])","v":3.5000000000000003E-2}]
[187,"Frac_leach_S_6","table",{"$f":"'Annex 6 - Frac_leach_S'!C7","v":3.5000000000000003E-2},"dimensionless","Fraction of managed manure nitrogen leached from Cattle deep bedding active mixing (more 1 month)",null,null,"Frac_leach_S_6",{"$f":"IF(Calculations_animal[[#This Row],[Type]]=\"calculated\", Eval(Calculations_animal[[#This Row],[Value or formula]]), Calculations_animal[[#This Row],[Value or formula]])","v":3.5000000000000003E-2}]
[188,"Frac_leach_S_7","table",{"$f":"'Annex 6 - Frac_leach_S'!C8","v":0},"dimensionless","Fraction of managed manure nitrogen leached from Pit storage (1 month)",null,null,"Frac_leach_S_7",{"$f":"IF(Calculations_animal[[#This Row],[Type]]=\"calculated\", Eval(Calculations_animal[[#This Row],[Value or formula]]), Calculations_animal[[#This Row],[Value or formula]])","v":0}]
[189,"Frac_leach_S_8","table",{"$f":"'Annex 6 - Frac_leach_S'!C9","v":0},"dimensionless","Fraction of managed manure nitrogen leached from Pit storage (3 month)",null,null,"Frac_leach_S_8",{"$f":"IF(Calculations_animal[[#This Row],[Type]]=\"calculated\", Eval(Calculations_animal[[#This Row],[Value or formula]]), Calculations_animal[[#This Row],[Value or formula]])","v":0}]
[190,"Frac_leach_S_9","table",{"$f":"'Annex 6 - Frac_leach_S'!C10","v":0},"dimensionless","Fraction of managed manure nitrogen leached from Pit storage (4 month)",null,null,"Frac_leach_S_9",{"$f":"IF(Calculations_animal[[#This Row],[Type]]=\"calculated\", Eval(Calculations_animal[[#This Row],[Value or formula]]), Calculations_animal[[#This Row],[Value or formula]])","v":0}]
[191,"Frac_leach_S_10","table",{"$f":"'Annex 6 - Frac_leach_S'!C11","v":0},"dimensionless","Fraction of managed manure nitrogen leached from Pit storage (6 month)",null,null,"Frac_leach_S_10",{"$f":"IF(Calculations_animal[[#This Row],[Type]]=\"calculated\", Eval(Calculations_animal[[#This Row],[Value or formula]]), Calculations_animal[[#This Row],[Value or formula]])","v":0}]
[192,"Frac_leach_S_11","table",{"$f":"'Annex 6 - Frac_leach_S'!C12","v":0},"dimensionless","Fraction of managed manure nitrogen leached from Pit storage (12 month)",null,null,"Frac_leach_S_11",{"$f":"IF(Calculations_animal[[#This Row],[Type]]=\"calculated\", Eval(Calculations_animal[[#This Row],[Value or formula]]), Calculations_animal[[#This Row],[Value or formula]])","v":0}]
[193,"Frac_leach_S_12","table",{"$f":"'Annex 6 - Frac_leach_S'!C13","v":0},"dimensionless","Fraction of managed manure nitrogen leached from Liquid Slurry without natural crust cover (1 month)",null,null,"Frac_leach_S_12",{"$f":"IF(Calculations_animal[[#This Row],[Type]]=\"calculated\", Eval(Calculations_animal[[#This Row],[Value or formula]]), Calculations_animal[[#This Row],[Value or formula]])","v":0}]
[194,"Frac_leach_S_13","table",{"$f":"'Annex 6 - Frac_leach_S'!C14","v":0},"dimensionless","Fraction of managed manure nitrogen leached from Liquid Slurry without natural crust cover (3 month)",null,null,"Frac_leach_S_13",{"$f":"IF(Calculations_animal[[#This Row],[Type]]=\"calculated\", Eval(Calculations_animal[[#This Row],[Value or formula]]), Calculations_animal[[#This Row],[Value or formula]])","v":0}]
[195,"Frac_leach_S_14","table",{"$f":"'Annex 6 - Frac_leach_S'!C15","v":0},"dimensionless","Fraction of managed manure nitrogen leached from Liquid Slurry without natural crust cover (4 month)",null,null,"Frac_leach_S_14",{"$f":"IF(Calculations_animal[[#This Row],[Type]]=\"calculated\", Eval(Calculations_animal[[#This Row],[Value or formula]]), Calculations_animal[[#This Row],[Value or formula]])","v":0}]
[196,"Frac_leach_S_15","table",{"$f":"'Annex 6 - Frac_leach_S'!C16","v":0},"dimensionless","Fraction of managed manure nitrogen leached from Liquid Slurry without natural crust cover (6 month)",null,null,"Frac_leach_S_15",{"$f":"IF(Calculations_animal[[#This Row],[Type]]=\"calculated\", Eval(Calculations_animal[[#This Row],[Value or formula]]), Calculations_animal[[#This Row],[Value or formula]])","v":0}]
[197,"Frac_leach_S_16","table",{"$f":"'Annex 6 - Frac_leach_S'!C17","v":0},"dimensionless","Fraction of managed manure nitrogen leached from Liquid Slurry without natural crust cover (12 month)",null,null,"Frac_leach_S_16",{"$f":"IF(Calculations_animal[[#This Row],[Type]]=\"calculated\", Eval(Calculations_animal[[#This Row],[Value or formula]]), Calculations_animal[[#This Row],[Value or formula]])","v":0}]
[198,"Frac_leach_S_17","table",{"$f":"'Annex 6 - Frac_leach_S'!C18","v":0},"dimensionless","Fraction of managed manure nitrogen leached from Liquid Slurry with natural crust cover (1 month)",null,null,"Frac_leach_S_17",{"$f":"IF(Calculations_animal[[#This Row],[Type]]=\"calculated\", Eval(Calculations_animal[[#This Row],[Value or formula]]), Calculations_animal[[#This Row],[Value or formula]])","v":0}]
[199,"Frac_leach_S_18","table",{"$f":"'Annex 6 - Frac_leach_S'!C19","v":0},"dimensionless","Fraction of managed manure nitrogen leached from Liquid Slurry with natural crust cover (3 month)",null,null,"Frac_leach_S_18",{"$f":"IF(Calculations_animal[[#This Row],[Type]]=\"calculated\", Eval(Calculations_animal[[#This Row],[Value or formula]]), Calculations_animal[[#This Row],[Value or formula]])","v":0}]
[200,"Frac_leach_S_19","table",{"$f":"'Annex 6 - Frac_leach_S'!C20","v":0},"dimensionless","Fraction of managed manure nitrogen leached from Liquid Slurry with natural crust cover (4 month)",null,null,"Frac_leach_S_19",{"$f":"IF(Calculations_animal[[#This Row],[Type]]=\"calculated\", Eval(Calculations_animal[[#This Row],[Value or formula]]), Calculations_animal[[#This Row],[Value or formula]])","v":0}]
[201,"Frac_leach_S_20","table",{"$f":"'Annex 6 - Frac_leach_S'!C21","v":0},"dimensionless","Fraction of managed manure nitrogen leached from Liquid Slurry with natural crust cover (6 month)",null,null,"Frac_leach_S_20",{"$f":"IF(Calculations_animal[[#This Row],[Type]]=\"calculated\", Eval(Calculations_animal[[#This Row],[Value or formula]]), Calculations_animal[[#This Row],[Value or formula]])","v":0}]
[202,"Frac_leach_S_21","table",{"$f":"'Annex 6 - Frac_leach_S'!C22","v":0},"dimensionless","Fraction of managed manure nitrogen leached from Liquid Slurry with natural crust cover (12 month)",null,null,"Frac_leach_S_21",{"$f":"IF(Calculations_animal[[#This Row],[Type]]=\"calculated\", Eval(Calculations_animal[[#This Row],[Value or formula]]), Calculations_animal[[#This Row],[Value or formula]])","v":0}]
[203,"Frac_leach_S_22","table",{"$f":"'Annex 6 - Frac_leach_S'!C23","v":0},"dimensionless","Fraction of managed manure nitrogen leached from Liquid Slurry with cover (1 month)",null,null,"Frac_leach_S_22",{"$f":"IF(Calculations_animal[[#This Row],[Type]]=\"calculated\", Eval(Calculations_animal[[#This Row],[Value or formula]]), Calculations_animal[[#This Row],[Value or formula]])","v":0}]
[204,"Frac_leach_S_23","table",{"$f":"'Annex 6 - Frac_leach_S'!C24","v":0},"dimensionless","Fraction of managed manure nitrogen leached from Liquid Slurry with cover (3 month)",null,null,"Frac_leach_S_23",{"$f":"IF(Calculations_animal[[#This Row],[Type]]=\"calculated\", Eval(Calculations_animal[[#This Row],[Value or formula]]), Calculations_animal[[#This Row],[Value or formula]])","v":0}]
[205,"Frac_leach_S_24","table",{"$f":"'Annex 6 - Frac_leach_S'!C25","v":0},"dimensionless","Fraction of managed manure nitrogen leached from Liquid Slurry with cover (4 month)",null,null,"Frac_leach_S_24",{"$f":"IF(Calculations_animal[[#This Row],[Type]]=\"calculated\", Eval(Calculations_animal[[#This Row],[Value or formula]]), Calculations_animal[[#This Row],[Value or formula]])","v":0}]
[206,"Frac_leach_S_25","table",{"$f":"'Annex 6 - Frac_leach_S'!C26","v":0},"dimensionless","Fraction of managed manure nitrogen leached from Liquid Slurry with cover (6 month)",null,null,"Frac_leach_S_25",{"$f":"IF(Calculations_animal[[#This Row],[Type]]=\"calculated\", Eval(Calculations_animal[[#This Row],[Value or formula]]), Calculations_animal[[#This Row],[Value or formula]])","v":0}]
[207,"Frac_leach_S_26","table",{"$f":"'Annex 6 - Frac_leach_S'!C27","v":0},"dimensionless","Fraction of managed manure nitrogen leached from Liquid Slurry with cover (12 month)",null,null,"Frac_leach_S_26",{"$f":"IF(Calculations_animal[[#This Row],[Type]]=\"calculated\", Eval(Calculations_animal[[#This Row],[Value or formula]]), Calculations_animal[[#This Row],[Value or formula]])","v":0}]
[208,"Frac_leach_S_27","table",{"$f":"'Annex 6 - Frac_leach_S'!C28","v":0.02},"dimensionless","Fraction of managed manure nitrogen leached from Solid storage",null,null,"Frac_leach_S_27",{"$f":"IF(Calculations_animal[[#This Row],[Type]]=\"calculated\", Eval(Calculations_animal[[#This Row],[Value or formula]]), Calculations_animal[[#This Row],[Value or formula]])","v":0.02}]
[209,"Frac_leach_S_28","table",{"$f":"'Annex 6 - Frac_leach_S'!C29","v":0},"dimensionless","Fraction of managed manure nitrogen leached from Solid storage - Covered/compacted",null,null,"Frac_leach_S_28",{"$f":"IF(Calculations_animal[[#This Row],[Type]]=\"calculated\", Eval(Calculations_animal[[#This Row],[Value or formula]]), Calculations_animal[[#This Row],[Value or formula]])","v":0}]
[210,"Frac_leach_S_29","table",{"$f":"'Annex 6 - Frac_leach_S'!C30","v":0.02},"dimensionless","Fraction of managed manure nitrogen leached from Solid storage - Bulking agent addiction",null,null,"Frac_leach_S_29",{"$f":"IF(Calculations_animal[[#This Row],[Type]]=\"calculated\", Eval(Calculations_animal[[#This Row],[Value or formula]]), Calculations_animal[[#This Row],[Value or formula]])","v":0.02}]
[211,"Frac_leach_S_30","table",{"$f":"'Annex 6 - Frac_leach_S'!C31","v":0.02},"dimensionless","Fraction of managed manure nitrogen leached from Solid storage - Additives",null,null,"Frac_leach_S_30",{"$f":"IF(Calculations_animal[[#This Row],[Type]]=\"calculated\", Eval(Calculations_animal[[#This Row],[Value or formula]]), Calculations_animal[[#This Row],[Value or formula]])","v":0.02}]
[212,"Frac_leach_S_31","table",{"$f":"'Annex 6 - Frac_leach_S'!C32","v":0},"dimensionless","Fraction of managed manure nitrogen leached from Composting in vessel",null,null,"Frac_leach_S_31",{"$f":"IF(Calculations_animal[[#This Row],[Type]]=\"calculated\", Eval(Calculations_animal[[#This Row],[Value or formula]]), Calculations_animal[[#This Row],[Value or formula]])","v":0}]
[213,"Frac_leach_S_32","table",{"$f":"'Annex 6 - Frac_leach_S'!C33","v":0.06},"dimensionless","Fraction of managed manure nitrogen leached from Composting static pile",null,null,"Frac_leach_S_32",{"$f":"IF(Calculations_animal[[#This Row],[Type]]=\"calculated\", Eval(Calculations_animal[[#This Row],[Value or formula]]), Calculations_animal[[#This Row],[Value or formula]])","v":0.06}]
[214,"Frac_leach_S_33","table",{"$f":"'Annex 6 - Frac_leach_S'!C34","v":0.06},"dimensionless","Fraction of managed manure nitrogen leached from Composting intensive windrow",null,null,"Frac_leach_S_33",{"$f":"IF(Calculations_animal[[#This Row],[Type]]=\"calculated\", Eval(Calculations_animal[[#This Row],[Value or formula]]), Calculations_animal[[#This Row],[Value or formula]])","v":0.06}]
[215,"Frac_leach_S_34","table",{"$f":"'Annex 6 - Frac_leach_S'!C35","v":0.04},"dimensionless","Fraction of managed manure nitrogen leached from Composting  passive windrow",null,null,"Frac_leach_S_34",{"$f":"IF(Calculations_animal[[#This Row],[Type]]=\"calculated\", Eval(Calculations_animal[[#This Row],[Value or formula]]), Calculations_animal[[#This Row],[Value or formula]])","v":0.04}]
[216,"Frac_leach_S_35","table",{"$f":"'Annex 6 - Frac_leach_S'!C36","v":0},"dimensionless","Fraction of managed manure nitrogen leached from Aerobic treatment natural aeration",null,null,"Frac_leach_S_35",{"$f":"IF(Calculations_animal[[#This Row],[Type]]=\"calculated\", Eval(Calculations_animal[[#This Row],[Value or formula]]), Calculations_animal[[#This Row],[Value or formula]])","v":0}]
[217,"Frac_leach_S_36","table",{"$f":"'Annex 6 - Frac_leach_S'!C37","v":0},"dimensionless","Fraction of managed manure nitrogen leached from Aerobic treatment forced aeration",null,null,"Frac_leach_S_36",{"$f":"IF(Calculations_animal[[#This Row],[Type]]=\"calculated\", Eval(Calculations_animal[[#This Row],[Value or formula]]), Calculations_animal[[#This Row],[Value or formula]])","v":0}]
[218,"Frac_leach_S_37","table",{"$f":"'Annex 6 - Frac_leach_S'!C38","v":0},"dimensionless","Fraction of managed manure nitrogen leached from Uncovered anaerobic lagoon",null,null,"Frac_leach_S_37",{"$f":"IF(Calculations_animal[[#This Row],[Type]]=\"calculated\", Eval(Calculations_animal[[#This Row],[Value or formula]]), Calculations_animal[[#This Row],[Value or formula]])","v":0}]
[219,"Frac_leach_S_38","table",{"$f":"'Annex 6 - Frac_leach_S'!C39","v":0},"dimensionless","Fraction of managed manure nitrogen leached from Anaerobic Digester, Low leakage, High quality gastight storage, best complete industrial technology",null,null,"Frac_leach_S_38",{"$f":"IF(Calculations_animal[[#This Row],[Type]]=\"calculated\", Eval(Calculations_animal[[#This Row],[Value or formula]]), Calculations_animal[[#This Row],[Value or formula]])","v":0}]
[220,"Frac_leach_S_39","table",{"$f":"'Annex 6 - Frac_leach_S'!C40","v":0},"dimensionless","Fraction of managed manure nitrogen leached from Anaerobic Digester, Low leakage, High quality industrial technology, low quality gastight storage technology",null,null,"Frac_leach_S_39",{"$f":"IF(Calculations_animal[[#This Row],[Type]]=\"calculated\", Eval(Calculations_animal[[#This Row],[Value or formula]]), Calculations_animal[[#This Row],[Value or formula]])","v":0}]
[221,"Frac_leach_S_40","table",{"$f":"'Annex 6 - Frac_leach_S'!C41","v":0},"dimensionless","Fraction of managed manure nitrogen leached from Anaerobic Digester, Low leakage, High quality industrial technology, open storage",null,null,"Frac_leach_S_40",{"$f":"IF(Calculations_animal[[#This Row],[Type]]=\"calculated\", Eval(Calculations_animal[[#This Row],[Value or formula]]), Calculations_animal[[#This Row],[Value or formula]])","v":0}]
[222,"Frac_leach_S_41","table",{"$f":"'Annex 6 - Frac_leach_S'!C42","v":0},"dimensionless","Fraction of managed manure nitrogen leached from Anaerobic Digester, High leakage, low quality technology, high quality gastight storage technology",null,null,"Frac_leach_S_41",{"$f":"IF(Calculations_animal[[#This Row],[Type]]=\"calculated\", Eval(Calculations_animal[[#This Row],[Value or formula]]), Calculations_animal[[#This Row],[Value or formula]])","v":0}]
[223,"Frac_leach_S_42","table",{"$f":"'Annex 6 - Frac_leach_S'!C43","v":0},"dimensionless","Fraction of managed manure nitrogen leached from Anaerobic Digester, High leakage, low quality technology, low quality gastight storage technology",null,null,"Frac_leach_S_42",{"$f":"IF(Calculations_animal[[#This Row],[Type]]=\"calculated\", Eval(Calculations_animal[[#This Row],[Value or formula]]), Calculations_animal[[#This Row],[Value or formula]])","v":0}]
[224,"Frac_leach_S_43","table",{"$f":"'Annex 6 - Frac_leach_S'!C44","v":0},"dimensionless","Fraction of managed manure nitrogen leached from Anaerobic Digester, High leakage, low quality technology, open storage",null,null,"Frac_leach_S_43",{"$f":"IF(Calculations_animal[[#This Row],[Type]]=\"calculated\", Eval(Calculations_animal[[#This Row],[Value or formula]]), Calculations_animal[[#This Row],[Value or formula]])","v":0}]
[225,"Frac_vol_S_1","table",{"$f":"_xlfn.SWITCH(Livestock_category, \"Dairy\", 'Annex 7 - Frac_vol_S'!C2, \"Non-dairy\", 'Annex 7 - Frac_vol_S'!D2)","v":7.0000000000000007E-2},"dimensionless","Fraction of managed manure nitrogen volatilized from Daily spread",null,null,"Frac_vol_S_1",{"$f":"IF(Calculations_animal[[#This Row],[Type]]=\"calculated\", Eval(Calculations_animal[[#This Row],[Value or formula]]), Calculations_animal[[#This Row],[Value or formula]])","v":7.0000000000000007E-2}]
[226,"Frac_vol_S_2","table",{"$f":"_xlfn.SWITCH(Livestock_category, \"Dairy\", 'Annex 7 - Frac_vol_S'!C3, \"Non-dairy\", 'Annex 7 - Frac_vol_S'!D3)","v":0.3},"dimensionless","Fraction of managed manure nitrogen volatilized from Dry lot",null,null,"Frac_vol_S_2",{"$f":"IF(Calculations_animal[[#This Row],[Type]]=\"calculated\", Eval(Calculations_animal[[#This Row],[Value or formula]]), Calculations_animal[[#This Row],[Value or formula]])","v":0.3}]
[227,"Frac_vol_S_3","table",{"$f":"_xlfn.SWITCH(Livestock_category, \"Dairy\", 'Annex 7 - Frac_vol_S'!C4, \"Non-dairy\", 'Annex 7 - Frac_vol_S'!D4)","v":0.25},"dimensionless","Fraction of managed manure nitrogen volatilized from Cattle deep bedding no mixing (less 1 month)",null,null,"Frac_vol_S_3",{"$f":"IF(Calculations_animal[[#This Row],[Type]]=\"calculated\", Eval(Calculations_animal[[#This Row],[Value or formula]]), Calculations_animal[[#This Row],[Value or formula]])","v":0.25}]
[228,"Frac_vol_S_4","table",{"$f":"_xlfn.SWITCH(Livestock_category, \"Dairy\", 'Annex 7 - Frac_vol_S'!C5, \"Non-dairy\", 'Annex 7 - Frac_vol_S'!D5)","v":0.25},"dimensionless","Fraction of managed manure nitrogen volatilized from Cattle deep bedding no mixing (more 1 month)",null,null,"Frac_vol_S_4",{"$f":"IF(Calculations_animal[[#This Row],[Type]]=\"calculated\", Eval(Calculations_animal[[#This Row],[Value or formula]]), Calculations_animal[[#This Row],[Value or formula]])","v":0.25}]
[229,"Frac_vol_S_5","table",{"$f":"_xlfn.SWITCH(Livestock_category, \"Dairy\", 'Annex 7 - Frac_vol_S'!C6, \"Non-dairy\", 'Annex 7 - Frac_vol_S'!D6)","v":0.25},"dimensionless","Fraction of managed manure nitrogen volatilized from Cattle deep bedding active mixing (less 1 month)",null,null,"Frac_vol_S_5",{"$f":"IF(Calculations_animal[[#This Row],[Type]]=\"calculated\", Eval(Calculations_animal[[#This Row],[Value or formula]]), Calculations_animal[[#This Row],[Value or formula]])","v":0.25}]
[230,"Frac_vol_S_6","table",{"$f":"_xlfn.SWITCH(Livestock_category, \"Dairy\", 'Annex 7 - Frac_vol_S'!C7, \"Non-dairy\", 'Annex 7 - Frac_vol_S'!D7)","v":0.25},"dimensionless","Fraction of managed manure nitrogen volatilized from Cattle deep bedding active mixing (more 1 month)",null,null,"Frac_vol_S_6",{"$f":"IF(Calculations_animal[[#This Row],[Type]]=\"calculated\", Eval(Calculations_animal[[#This Row],[Value or formula]]), Calculations_animal[[#This Row],[Value or formula]])","v":0.25}]
[231,"Frac_vol_S_7","table",{"$f":"_xlfn.SWITCH(Livestock_category, \"Dairy\", 'Annex 7 - Frac_vol_S'!C8, \"Non-dairy\", 'Annex 7 - Frac_vol_S'!D8)","v":0.25},"dimensionless","Fraction of managed manure nitrogen volatilized from Pit storage (1 month)",null,null,"Frac_vol_S_7",{"$f":"IF(Calculations_animal[[#This Row],[Type]]=\"calculated\", Eval(Calculations_animal[[#This Row],[Value or formula]]), Calculations_animal[[#This Row],[Value or formula]])","v":0.25}]
[232,"Frac_vol_S_8","table",{"$f":"_xlfn.SWITCH(Livestock_category, \"Dairy\", 'Annex 7 - Frac_vol_S'!C9, \"Non-dairy\", 'Annex 7 - Frac_vol_S'!D9)","v":0.25},"dimensionless","Fraction of managed manure nitrogen volatilized from Pit storage (3 month)",null,null,"Frac_vol_S_8",{"$f":"IF(Calculations_animal[[#This Row],[Type]]=\"calculated\", Eval(Calculations_animal[[#This Row],[Value or formula]]), Calculations_animal[[#This Row],[Value or formula]])","v":0.25}]
[233,"Frac_vol_S_9","table",{"$f":"_xlfn.SWITCH(Livestock_category, \"Dairy\", 'Annex 7 - Frac_vol_S'!C10, \"Non-dairy\", 'Annex 7 - Frac_vol_S'!D10)","v":0.25},"dimensionless","Fraction of managed manure nitrogen volatilized from Pit storage (4 month)",null,null,"Frac_vol_S_9",{"$f":"IF(Calculations_animal[[#This Row],[Type]]=\"calculated\", Eval(Calculations_animal[[#This Row],[Value or formula]]), Calculations_animal[[#This Row],[Value or formula]])","v":0.25}]
[234,"Frac_vol_S_10","table",{"$f":"_xlfn.SWITCH(Livestock_category, \"Dairy\", 'Annex 7 - Frac_vol_S'!C11, \"Non-dairy\", 'Annex 7 - Frac_vol_S'!D11)","v":0.25},"dimensionless","Fraction of managed manure nitrogen volatilized from Pit storage (6 month)",null,null,"Frac_vol_S_10",{"$f":"IF(Calculations_animal[[#This Row],[Type]]=\"calculated\", Eval(Calculations_animal[[#This Row],[Value or formula]]), Calculations_animal[[#This Row],[Value or formula]])","v":0.25}]
[235,"Frac_vol_S_11","table",{"$f":"_xlfn.SWITCH(Livestock_category, \"Dairy\", 'Annex 7 - Frac_vol_S'!C12, \"Non-dairy\", 'Annex 7 - Frac_vol_S'!D12)","v":0.25},"dimensionless","Fraction of managed manure nitrogen volatilized from Pit storage (12 month)",null,null,"Frac_vol_S_11",{"$f":"IF(Calculations_animal[[#This Row],[Type]]=\"calculated\", Eval(Calculations_animal[[#This Row],[Value or formula]]), Calculations_animal[[#This Row],[Value or formula]])","v":0.25}]
[236,"Frac_vol_S_12","table",{"$f":"_xlfn.SWITCH(Livestock_category, \"Dairy\", 'Annex 7 - Frac_vol_S'!C13, \"Non-dairy\", 'Annex 7 - Frac_vol_S'!D13)","v":0.48},"dimensionless","Fraction of managed manure nitrogen volatilized from Liquid Slurry without natural crust cover (1 month)",null,null,"Frac_vol_S_12",{"$f":"IF(Calculations_animal[[#This Row],[Type]]=\"calculated\", Eval(Calculations_animal[[#This Row],[Value or formula]]), Calculations_animal[[#This Row],[Value or formula]])","v":0.48}]
[237,"Frac_vol_S_13","table",{"$f":"_xlfn.SWITCH(Livestock_category, \"Dairy\", 'Annex 7 - Frac_vol_S'!C14, \"Non-dairy\", 'Annex 7 - Frac_vol_S'!D14)","v":0.48},"dimensionless","Fraction of managed manure nitrogen volatilized from Liquid Slurry without natural crust cover (3 month)",null,null,"Frac_vol_S_13",{"$f":"IF(Calculations_animal[[#This Row],[Type]]=\"calculated\", Eval(Calculations_animal[[#This Row],[Value or formula]]), Calculations_animal[[#This Row],[Value or formula]])","v":0.48}]
[238,"Frac_vol_S_14","table",{"$f":"_xlfn.SWITCH(Livestock_category, \"Dairy\", 'Annex 7 - Frac_vol_S'!C15, \"Non-dairy\", 'Annex 7 - Frac_vol_S'!D15)","v":0.48},"dimensionless","Fraction of managed manure nitrogen volatilized from Liquid Slurry without natural crust cover (4 month)",null,null,"Frac_vol_S_14",{"$f":"IF(Calculations_animal[[#This Row],[Type]]=\"calculated\", Eval(Calculations_animal[[#This Row],[Value or formula]]), Calculations_animal[[#This Row],[Value or formula]])","v":0.48}]
[239,"Frac_vol_S_15","table",{"$f":"_xlfn.SWITCH(Livestock_category, \"Dairy\", 'Annex 7 - Frac_vol_S'!C16, \"Non-dairy\", 'Annex 7 - Frac_vol_S'!D16)","v":0.48},"dimensionless","Fraction of managed manure nitrogen volatilized from Liquid Slurry without natural crust cover (6 month)",null,null,"Frac_vol_S_15",{"$f":"IF(Calculations_animal[[#This Row],[Type]]=\"calculated\", Eval(Calculations_animal[[#This Row],[Value or formula]]), Calculations_animal[[#This Row],[Value or formula]])","v":0.48}]
[240,"Frac_vol_S_16","table",{"$f":"_xlfn.SWITCH(Livestock_category, \"Dairy\", 'Annex 7 - Frac_vol_S'!C17, \"Non-dairy\", 'Annex 7 - Frac_vol_S'!D17)","v":0.48},"dimensionless","Fraction of managed manure nitrogen volatilized from Liquid Slurry without natural crust cover (12 month)",null,null,"Frac_vol_S_16",{"$f":"IF(Calculations_animal[[#This Row],[Type]]=\"calculated\", Eval(Calculations_animal[[#This Row],[Value or formula]]), Calculations_animal[[#This Row],[Value or formula]])","v":0.48}]
[241,"Frac_vol_S_17","table",{"$f":"_xlfn.SWITCH(Livestock_category, \"Dairy\", 'Annex 7 - Frac_vol_S'!C18, \"Non-dairy\", 'Annex 7 - Frac_vol_S'!D18)","v":0.3},"dimensionless","Fraction of managed manure nitrogen volatilized from Liquid Slurry with natural crust cover (1 month)",null,null,"Frac_vol_S_17",{"$f":"IF(Calculations_animal[[#This Row],[Type]]=\"calculated\", Eval(Calculations_animal[[#This Row],[Value or formula]]), Calculations_animal[[#This Row],[Value or formula]])","v":0.3}]
[242,"Frac_vol_S_18","table",{"$f":"_xlfn.SWITCH(Livestock_category, \"Dairy\", 'Annex 7 - Frac_vol_S'!C19, \"Non-dairy\", 'Annex 7 - Frac_vol_S'!D19)","v":0.3},"dimensionless","Fraction of managed manure nitrogen volatilized from Liquid Slurry with natural crust cover (3 month)",null,null,"Frac_vol_S_18",{"$f":"IF(Calculations_animal[[#This Row],[Type]]=\"calculated\", Eval(Calculations_animal[[#This Row],[Value or formula]]), Calculations_animal[[#This Row],[Value or formula]])","v":0.3}]
[243,"Frac_vol_S_19","table",{"$f":"_xlfn.SWITCH(Livestock_category, \"Dairy\", 'Annex 7 - Frac_vol_S'!C20, \"Non-dairy\", 'Annex 7 - Frac_vol_S'!D20)","v":0.3},"dimensionless","Fraction of managed manure nitrogen volatilized from Liquid Slurry with natural crust cover (4 month)",null,null,"Frac_vol_S_19",{"$f":"IF(Calculations_animal[[#This Row],[Type]]=\"calculated\", Eval(Calculations_animal[[#This Row],[Value or formula]]), Calculations_animal[[#This Row],[Value or formula]])","v":0.3}]
[244,"Frac_vol_S_20","table",{"$f":"_xlfn.SWITCH(Livestock_category, \"Dairy\", 'Annex 7 - Frac_vol_S'!C21, \"Non-dairy\", 'Annex 7 - Frac_vol_S'!D21)","v":0.3},"dimensionless","Fraction of managed manure nitrogen volatilized from Liquid Slurry with natural crust cover (6 month)",null,null,"Frac_vol_S_20",{"$f":"IF(Calculations_animal[[#This Row],[Type]]=\"calculated\", Eval(Calculations_animal[[#This Row],[Value or formula]]), Calculations_animal[[#This Row],[Value or formula]])","v":0.3}]
[245,"Frac_vol_S_21","table",{"$f":"_xlfn.SWITCH(Livestock_category, \"Dairy\", 'Annex 7 - Frac_vol_S'!C22, \"Non-dairy\", 'Annex 7 - Frac_vol_S'!D22)","v":0.3},"dimensionless","Fraction of managed manure nitrogen volatilized from Liquid Slurry with natural crust cover (12 month)",null,null,"Frac_vol_S_21",{"$f":"IF(Calculations_animal[[#This Row],[Type]]=\"calculated\", Eval(Calculations_animal[[#This Row],[Value or formula]]), Calculations_animal[[#This Row],[Value or formula]])","v":0.3}]
[246,"Frac_vol_S_22","table",{"$f":"_xlfn.SWITCH(Livestock_category, \"Dairy\", 'Annex 7 - Frac_vol_S'!C23, \"Non-dairy\", 'Annex 7 - Frac_vol_S'!D23)","v":0.1},"dimensionless","Fraction of managed manure nitrogen volatilized from Liquid Slurry with cover (1 month)",null,null,"Frac_vol_S_22",{"$f":"IF(Calculations_animal[[#This Row],[Type]]=\"calculated\", Eval(Calculations_animal[[#This Row],[Value or formula]]), Calculations_animal[[#This Row],[Value or formula]])","v":0.1}]
[247,"Frac_vol_S_23","table",{"$f":"_xlfn.SWITCH(Livestock_category, \"Dairy\", 'Annex 7 - Frac_vol_S'!C24, \"Non-dairy\", 'Annex 7 - Frac_vol_S'!D24)","v":0.1},"dimensionless","Fraction of managed manure nitrogen volatilized from Liquid Slurry with cover (3 month)",null,null,"Frac_vol_S_23",{"$f":"IF(Calculations_animal[[#This Row],[Type]]=\"calculated\", Eval(Calculations_animal[[#This Row],[Value or formula]]), Calculations_animal[[#This Row],[Value or formula]])","v":0.1}]
[248,"Frac_vol_S_24","table",{"$f":"_xlfn.SWITCH(Livestock_category, \"Dairy\", 'Annex 7 - Frac_vol_S'!C25, \"Non-dairy\", 'Annex 7 - Frac_vol_S'!D25)","v":0.1},"dimensionless","Fraction of managed manure nitrogen volatilized from Liquid Slurry with cover (4 month)",null,null,"Frac_vol_S_24",{"$f":"IF(Calculations_animal[[#This Row],[Type]]=\"calculated\", Eval(Calculations_animal[[#This Row],[Value or formula]]), Calculations_animal[[#This Row],[Value or formula]])","v":0.1}]
[249,"Frac_vol_S_25","table",{"$f":"_xlfn.SWITCH(Livestock_category, \"Dairy\", 'Annex 7 - Frac_vol_S'!C26, \"Non-dairy\", 'Annex 7 - Frac_vol_S'!D26)","v":0.1},"dimensionless","Fraction of managed manure nitrogen volatilized from Liquid Slurry with cover (6 month)",null,null,"Frac_vol_S_25",{"$f":"IF(Calculations_animal[[#This Row],[Type]]=\"calculated\", Eval(Calculations_animal[[#This Row],[Value or formula]]), Calculations_animal[[#This Row],[Value or formula]])","v":0.1}]
[250,"Frac_vol_S_26","table",{"$f":"_xlfn.SWITCH(Livestock_category, \"Dairy\", 'Annex 7 - Frac_vol_S'!C27, \"Non-dairy\", 'Annex 7 - Frac_vol_S'!D27)","v":0.1},"dimensionless","Fraction of managed manure nitrogen volatilized from Liquid Slurry with cover (12 month)",null,null,"Frac_vol_S_26",{"$f":"IF(Calculations_animal[[#This Row],[Type]]=\"calculated\", Eval(Calculations_animal[[#This Row],[Value or formula]]), Calculations_animal[[#This Row],[Value or formula]])","v":0.1}]
[251,"Frac_vol_S_27","table",{"$f":"_xlfn.SWITCH(Livestock_category, \"Dairy\", 'Annex 7 - Frac_vol_S'!C28, \"Non-dairy\", 'Annex 7 - Frac_vol_S'!D28)","v":0.45},"dimensionless","Fraction of managed manure nitrogen volatilized from Solid storage",null,null,"Frac_vol_S_27",{"$f":"IF(Calculations_animal[[#This Row],[Type]]=\"calculated\", Eval(Calculations_animal[[#This Row],[Value or formula]]), Calculations_animal[[#This Row],[Value or formula]])","v":0.45}]
[252,"Frac_vol_S_28","table",{"$f":"_xlfn.SWITCH(Livestock_category, \"Dairy\", 'Annex 7 - Frac_vol_S'!C29, \"Non-dairy\", 'Annex 7 - Frac_vol_S'!D29)","v":0.22},"dimensionless","Fraction of managed manure nitrogen volatilized from Solid storage - Covered/compacted",null,null,"Frac_vol_S_28",{"$f":"IF(Calculations_animal[[#This Row],[Type]]=\"calculated\", Eval(Calculations_animal[[#This Row],[Value or formula]]), Calculations_animal[[#This Row],[Value or formula]])","v":0.22}]
[253,"Frac_vol_S_29","table",{"$f":"_xlfn.SWITCH(Livestock_category, \"Dairy\", 'Annex 7 - Frac_vol_S'!C30, \"Non-dairy\", 'Annex 7 - Frac_vol_S'!D30)","v":0.57999999999999996},"dimensionless","Fraction of managed manure nitrogen volatilized from Solid storage - Bulking agent addiction",null,null,"Frac_vol_S_29",{"$f":"IF(Calculations_animal[[#This Row],[Type]]=\"calculated\", Eval(Calculations_animal[[#This Row],[Value or formula]]), Calculations_animal[[#This Row],[Value or formula]])","v":0.57999999999999996}]
[254,"Frac_vol_S_30","table",{"$f":"_xlfn.SWITCH(Livestock_category, \"Dairy\", 'Annex 7 - Frac_vol_S'!C31, \"Non-dairy\", 'Annex 7 - Frac_vol_S'!D31)","v":0.17},"dimensionless","Fraction of managed manure nitrogen volatilized from Solid storage - Additives",null,null,"Frac_vol_S_30",{"$f":"IF(Calculations_animal[[#This Row],[Type]]=\"calculated\", Eval(Calculations_animal[[#This Row],[Value or formula]]), Calculations_animal[[#This Row],[Value or formula]])","v":0.17}]
[255,"Frac_vol_S_31","table",{"$f":"_xlfn.SWITCH(Livestock_category, \"Dairy\", 'Annex 7 - Frac_vol_S'!C32, \"Non-dairy\", 'Annex 7 - Frac_vol_S'!D32)","v":0.6},"dimensionless","Fraction of managed manure nitrogen volatilized from Composting in vessel",null,null,"Frac_vol_S_31",{"$f":"IF(Calculations_animal[[#This Row],[Type]]=\"calculated\", Eval(Calculations_animal[[#This Row],[Value or formula]]), Calculations_animal[[#This Row],[Value or formula]])","v":0.6}]
[256,"Frac_vol_S_32","table",{"$f":"_xlfn.SWITCH(Livestock_category, \"Dairy\", 'Annex 7 - Frac_vol_S'!C33, \"Non-dairy\", 'Annex 7 - Frac_vol_S'!D33)","v":0.65},"dimensionless","Fraction of managed manure nitrogen volatilized from Composting static pile",null,null,"Frac_vol_S_32",{"$f":"IF(Calculations_animal[[#This Row],[Type]]=\"calculated\", Eval(Calculations_animal[[#This Row],[Value or formula]]), Calculations_animal[[#This Row],[Value or formula]])","v":0.65}]
[257,"Frac_vol_S_33","table",{"$f":"_xlfn.SWITCH(Livestock_category, \"Dairy\", 'Annex 7 - Frac_vol_S'!C34, \"Non-dairy\", 'Annex 7 - Frac_vol_S'!D34)","v":0.65},"dimensionless","Fraction of managed manure nitrogen volatilized from Composting intensive windrow",null,null,"Frac_vol_S_33",{"$f":"IF(Calculations_animal[[#This Row],[Type]]=\"calculated\", Eval(Calculations_animal[[#This Row],[Value or formula]]), Calculations_animal[[#This Row],[Value or formula]])","v":0.65}]
[258,"Frac_vol_S_34","table",{"$f":"_xlfn.SWITCH(Livestock_category, \"Dairy\", 'Annex 7 - Frac_vol_S'!C35, \"Non-dairy\", 'Annex 7 - Frac_vol_S'!D35)","v":0.6},"dimensionless","Fraction of managed manure nitrogen volatilized from Composting  passive windrow",null,null,"Frac_vol_S_34",{"$f":"IF(Calculations_animal[[#This Row],[Type]]=\"calculated\", Eval(Calculations_animal[[#This Row],[Value or formula]]), Calculations_animal[[#This Row],[Value or formula]])","v":0.6}]
[259,"Frac_vol_S_35","table",{"$f":"_xlfn.SWITCH(Livestock_category, \"Dairy\", 'Annex 7 - Frac_vol_S'!C36, \"Non-dairy\", 'Annex 7 - Frac_vol_S'!D36)","v":0.85},"dimensionless","Fraction of managed manure nitrogen volatilized from Aerobic treatment natural aeration",null,null,"Frac_vol_S_35",{"$f":"IF(Calculations_animal[[#This Row],[Type]]=\"calculated\", Eval(Calculations_animal[[#This Row],[Value or formula]]), Calculations_animal[[#This Row],[Value or formula]])","v":0.85}]
[260,"Frac_vol_S_36","table",{"$f":"_xlfn.SWITCH(Livestock_category, \"Dairy\", 'Annex 7 - Frac_vol_S'!C37, \"Non-dairy\", 'Annex 7 - Frac_vol_S'!D37)","v":0.85},"dimensionless","Fraction of managed manure nitrogen volatilized from Aerobic treatment forced aeration",null,null,"Frac_vol_S_36",{"$f":"IF(Calculations_animal[[#This Row],[Type]]=\"calculated\", Eval(Calculations_animal[[#This Row],[Value or formula]]), Calculations_animal[[#This Row],[Value or formula]])","v":0.85}]
[261,"Frac_vol_S_37","table",{"$f":"_xlfn.SWITCH(Livestock_category, \"Dairy\", 'Annex 7 - Frac_vol_S'!C38, \"Non-dairy\", 'Annex 7 - Frac_vol_S'!D38)","v":0.35},"dimensionless","Fraction of managed manure nitrogen volatilized from Uncovered anaerobic lagoon",null,null,"Frac_vol_S_37",{"$f":"IF(Calculations_animal[[#This Row],[Type]]=\"calculated\", Eval(Calculations_animal[[#This Row],[Value or formula]]), Calculations_animal[[#This Row],[Value or formula]])","v":0.35}]
[262,"Frac_vol_S_38","table",{"$f":"_xlfn.SWITCH(Livestock_category, \"Dairy\", 'Annex 7 - Frac_vol_S'!C39, \"Non-dairy\", 'Annex 7 - Frac_vol_S'!D39)","v":0.27500000000000002},"dimensionless","Fraction of managed manure nitrogen volatilized from Anaerobic Digester, Low leakage, High quality gastight storage, best complete industrial technology",null,null,"Frac_vol_S_38",{"$f":"IF(Calculations_animal[[#This Row],[Type]]=\"calculated\", Eval(Calculations_animal[[#This Row],[Value or formula]]), Calculations_animal[[#This Row],[Value or formula]])","v":0.27500000000000002}]
[263,"Frac_vol_S_39","table",{"$f":"_xlfn.SWITCH(Livestock_category, \"Dairy\", 'Annex 7 - Frac_vol_S'!C40, \"Non-dairy\", 'Annex 7 - Frac_vol_S'!D40)","v":0.27500000000000002},"dimensionless","Fraction of managed manure nitrogen volatilized from Anaerobic Digester, Low leakage, High quality industrial technology, low quality gastight storage technology",null,null,"Frac_vol_S_39",{"$f":"IF(Calculations_animal[[#This Row],[Type]]=\"calculated\", Eval(Calculations_animal[[#This Row],[Value or formula]]), Calculations_animal[[#This Row],[Value or formula]])","v":0.27500000000000002}]
[264,"Frac_vol_S_40","table",{"$f":"_xlfn.SWITCH(Livestock_category, \"Dairy\", 'Annex 7 - Frac_vol_S'!C41, \"Non-dairy\", 'Annex 7 - Frac_vol_S'!D41)","v":0.27500000000000002},"dimensionless","Fraction of managed manure nitrogen volatilized from Anaerobic Digester, Low leakage, High quality industrial technology, open storage",null,null,"Frac_vol_S_40",{"$f":"IF(Calculations_animal[[#This Row],[Type]]=\"calculated\", Eval(Calculations_animal[[#This Row],[Value or formula]]), Calculations_animal[[#This Row],[Value or formula]])","v":0.27500000000000002}]
[265,"Frac_vol_S_41","table",{"$f":"_xlfn.SWITCH(Livestock_category, \"Dairy\", 'Annex 7 - Frac_vol_S'!C42, \"Non-dairy\", 'Annex 7 - Frac_vol_S'!D42)","v":0.27500000000000002},"dimensionless","Fraction of managed manure nitrogen volatilized from Anaerobic Digester, High leakage, low quality technology, high quality gastight storage technology",null,null,"Frac_vol_S_41",{"$f":"IF(Calculations_animal[[#This Row],[Type]]=\"calculated\", Eval(Calculations_animal[[#This Row],[Value or formula]]), Calculations_animal[[#This Row],[Value or formula]])","v":0.27500000000000002}]
[266,"Frac_vol_S_42","table",{"$f":"_xlfn.SWITCH(Livestock_category, \"Dairy\", 'Annex 7 - Frac_vol_S'!C43, \"Non-dairy\", 'Annex 7 - Frac_vol_S'!D43)","v":0.27500000000000002},"dimensionless","Fraction of managed manure nitrogen volatilized from Anaerobic Digester, High leakage, low quality technology, low quality gastight storage technology",null,null,"Frac_vol_S_42",{"$f":"IF(Calculations_animal[[#This Row],[Type]]=\"calculated\", Eval(Calculations_animal[[#This Row],[Value or formula]]), Calculations_animal[[#This Row],[Value or formula]])","v":0.27500000000000002}]
[267,"Frac_vol_S_43","table",{"$f":"_xlfn.SWITCH(Livestock_category, \"Dairy\", 'Annex 7 - Frac_vol_S'!C44, \"Non-dairy\", 'Annex 7 - Frac_vol_S'!D44)","v":0.27500000000000002},"dimensionless","Fraction of managed manure nitrogen volatilized from Anaerobic Digester, High leakage, low quality technology, open storage",null,null,"Frac_vol_S_43",{"$f":"IF(Calculations_animal[[#This Row],[Type]]=\"calculated\", Eval(Calculations_animal[[#This Row],[Value or formula]]), Calculations_animal[[#This Row],[Value or formula]])","v":0.27500000000000002}]

{"sheet":"Calc details - cultivation","index":4,"n_rows":56,"n_cols":9,"rows_kept":56,"cut":false,"hidden":false,"merged":[]}
["Parameter name","Type","Value or formula","Unit","Description","Corresponding equation in guideline","Comments","Parameter Name again","Final value"]
["N2O_soil_dir","calculated","(N2O_N_input+N2O_N_PRP)*44/28","kg yr-1","Total direct nitrous oxide emission from managed soils","4.3.1",null,"N2O_soil_dir",{"$f":"IF(Calculations_cultivation[[#This Row],[Type]]=\"calculated\", Eval(Calculations_cultivation[[#This Row],[Value or formula]]), Calculations_cultivation[[#This Row],[Value or formula]])","v":{"$error":"#NAME?"}}]
["N2O_N_input","calculated","(F_SN+F_ON+F_CR)*EF_1","kg yr-1","Direct emission from nitrogen inputs to managed soils","4.3.2",null,"N2O_N_input",{"$f":"IF(Calculations_cultivation[[#This Row],[Type]]=\"calculated\", Eval(Calculations_cultivation[[#This Row],[Value or formula]]), Calculations_cultivation[[#This Row],[Value or formula]])","v":{"$error":"#NAME?"}}]
["N2O_N_PRP","calculated","F_PRP*EF_3","kg yr-1","Direct N emission from urine and dung inputs to grazed soils ","4.3.3",null,"N2O_N_PRP",{"$f":"IF(Calculations_cultivation[[#This Row],[Type]]=\"calculated\", Eval(Calculations_cultivation[[#This Row],[Value or formula]]), Calculations_cultivation[[#This Row],[Value or formula]])","v":{"$error":"#NAME?"}}]
["F_SN","input",{"$f":"'Input and results - cultivation'!D5","v":10},"kg yr-1","Annual amount of synthetic fertilizer nitrogen applied to soils ",null,null,"F_SN",{"$f":"IF(Calculations_cultivation[[#This Row],[Type]]=\"calculated\", Eval(Calculations_cultivation[[#This Row],[Value or formula]]), Calculations_cultivation[[#This Row],[Value or formula]])","v":10}]
["F_ON","calculated","F_AM+F_SEW+F_COMP+F_OOA","kg yr-1","Annual amount of animal manure, compost, sewage sludge and other organic nitrogen additions applied to soils","4.3.4",null,"F_ON",{"$f":"IF(Calculations_cultivation[[#This Row],[Type]]=\"calculated\", Eval(Calculations_cultivation[[#This Row],[Value or formula]]), Calculations_cultivation[[#This Row],[Value or formula]])","v":80}]
["EF_1","input",{"$f":"'Input and results - cultivation'!D6","v":0.01},"dimensionless","Emission factor developed for N2O emissions from synthetic fertiliser and organic nitrogen application",null,"Defaults in Annex 9","EF_1",{"$f":"IF(Calculations_cultivation[[#This Row],[Type]]=\"calculated\", Eval(Calculations_cultivation[[#This Row],[Value or formula]]), Calculations_cultivation[[#This Row],[Value or formula]])","v":0.01}]
["F_CR","calculated","AGR*N_AG*(1-Frac_remove-Frac_burnt*C_f)+BGR*N_BG","kg yr-1","Annual amount of N in crop residues (above and below ground), including nitrogen-fixing crops, and from forage/pasture renewal, returned to soils","4.3.5",null,"F_CR",{"$f":"IF(Calculations_cultivation[[#This Row],[Type]]=\"calculated\", Eval(Calculations_cultivation[[#This Row],[Value or formula]]), Calculations_cultivation[[#This Row],[Value or formula]])","v":{"$error":"#NAME?"}}]
["F_PRP","calculated","AAP*N_ex*MS_PRP","kg yr-1","Annual amount of urine and dung nitrogen deposited by grazing animals on pasture, range and paddock","4.3.9",null,"F_PRP",{"$f":"IF(Calculations_cultivation[[#This Row],[Type]]=\"calculated\", Eval(Calculations_cultivation[[#This Row],[Value or formula]]), Calculations_cultivation[[#This Row],[Value or formula]])","v":{"$error":"#NAME?"}}]
["EF_3","input",{"$f":"'Input and results - cultivation'!D7","v":6.0000000000000001E-3},"dimensionless","Emission factor developed for N2O emissions from urine and dung nitrogen deposited on pasture, range and paddock by grazing animals ",null,"Defaults in Annex 9","EF_3",{"$f":"IF(Calculations_cultivation[[#This Row],[Type]]=\"calculated\", Eval(Calculations_cultivation[[#This Row],[Value or formula]]), Calculations_cultivation[[#This Row],[Value or formula]])","v":6.0000000000000001E-3}]
["F_AM","input",{"$f":"'Input and results - cultivation'!D8","v":20},"kg yr-1","Annual amount of animal manure nitrogen applied to soils ",null,null,"F_AM",{"$f":"IF(Calculations_cultivation[[#This Row],[Type]]=\"calculated\", Eval(Calculations_cultivation[[#This Row],[Value or formula]]), Calculations_cultivation[[#This Row],[Value or formula]])","v":20}]
["F_SEW","input",{"$f":"'Input and results - cultivation'!D9","v":25},"kg yr-1","Annual amount of total sewage nitrogen applied to soils ",null,null,"F_SEW",{"$f":"IF(Calculations_cultivation[[#This Row],[Type]]=\"calculated\", Eval(Calculations_cultivation[[#This Row],[Value or formula]]), Calculations_cultivation[[#This Row],[Value or formula]])","v":25}]
["F_COMP","input",{"$f":"'Input and results - cultivation'!D10","v":15},"kg yr-1","Annual amount of total compost nitrogen applied to soils",null,null,"F_COMP",{"$f":"IF(Calculations_cultivation[[#This Row],[Type]]=\"calculated\", Eval(Calculations_cultivation[[#This Row],[Value or formula]]), Calculations_cultivation[[#This Row],[Value or formula]])","v":15}]
["F_OOA","input",{"$f":"'Input and results - cultivation'!D11","v":20},"kg yr-1","Annual amount of other organic amendments used as fertilizer (e.g., rendering waste, guano, brewery waste, etc.)",null,null,"F_OOA",{"$f":"IF(Calculations_cultivation[[#This Row],[Type]]=\"calculated\", Eval(Calculations_cultivation[[#This Row],[Value or formula]]), Calculations_cultivation[[#This Row],[Value or formula]])","v":20}]
["AGR","input",{"$f":"'Input and results - cultivation'!D12","v":30},"kg yr-1","Annual total amount of above-ground crop residue ",null,null,"AGR",{"$f":"IF(Calculations_cultivation[[#This Row],[Type]]=\"calculated\", Eval(Calculations_cultivation[[#This Row],[Value or formula]]), Calculations_cultivation[[#This Row],[Value or formula]])","v":30}]
["Crop_type","input",{"$f":"'Input and results - cultivation'!D13","v":"Generic Grains"},"dimensionless","Crop type",null,null,"Crop_type",{"$f":"IF(Calculations_cultivation[[#This Row],[Type]]=\"calculated\", Eval(Calculations_cultivation[[#This Row],[Value or formula]]), Calculations_cultivation[[#This Row],[Value or formula]])","v":"Generic Grains"}]
["N_AG","table",{"$f":"INDEX(Crop_parameters_table[N_AG], MATCH(TRUE, Crop_type=Crop_parameters_table[Crop type], 0))","v":6.0000000000000001E-3},"dimensionless","Nitrogen content of above-ground residues",null,"Defaults in Annex 10","N_AG",{"$f":"IF(Calculations_cultivation[[#This Row],[Type]]=\"calculated\", Eval(Calculations_cultivation[[#This Row],[Value or formula]]), Calculations_cultivation[[#This Row],[Value or formula]])","v":6.0000000000000001E-3}]
["Frac_remove","input",{"$f":"'Input and results - cultivation'!D14","v":0},"dimensionless","Fraction of above-ground residues of crop removed annually for purposes such as feed, bedding and construction",null,"If not available, no remove","Frac_remove",{"$f":"IF(Calculations_cultivation[[#This Row],[Type]]=\"calculated\", Eval(Calculations_cultivation[[#This Row],[Value or formula]]), Calculations_cultivation[[#This Row],[Value or formula]])","v":0}]
["Frac_burnt","input",{"$f":"'Input and results - cultivation'!D15","v":0.1},"dimensionless","Fraction of annual harvested area of crop burnt ",null,null,"Frac_burnt",{"$f":"IF(Calculations_cultivation[[#This Row],[Type]]=\"calculated\", Eval(Calculations_cultivation[[#This Row],[Value or formula]]), Calculations_cultivation[[#This Row],[Value or formula]])","v":0.1}]
["C_f","table",{"$f":"INDEX(Crop_parameters_table[C_f], MATCH(TRUE, Crop_type=Crop_parameters_table[Crop type], 0))","v":0.85},"dimensionless","Combustion factor ",null,null,"C_f",{"$f":"IF(Calculations_cultivation[[#This Row],[Type]]=\"calculated\", Eval(Calculations_cultivation[[#This Row],[Value or formula]]), Calculations_cultivation[[#This Row],[Value or formula]])","v":0.85}]
["BGR","calculated","(Crop+AG_DM)*RS*Area*Frac_renew","kg yr-1","Annual total amount of below-ground crop residue","4.3.6",null,"BGR",{"$f":"IF(Calculations_cultivation[[#This Row],[Type]]=\"calculated\", Eval(Calculations_cultivation[[#This Row],[Value or formula]]), Calculations_cultivation[[#This Row],[Value or formula]])","v":{"$error":"#NAME?"}}]
["N_BG","table",{"$f":"INDEX(Crop_parameters_table[N_BG], MATCH(TRUE, Crop_type=Crop_parameters_table[Crop type], 0))","v":8.9999999999999993E-3},"dimensionless","Nitrogen content of below-ground residues ",null,"Defaults in Annex 10","N_BG",{"$f":"IF(Calculations_cultivation[[#This Row],[Type]]=\"calculated\", Eval(Calculations_cultivation[[#This Row],[Value or formula]]), Calculations_cultivation[[#This Row],[Value or formula]])","v":8.9999999999999993E-3}]
["Crop","calculated","Yield_Fresh*DRY","kg ha-1","Harvested dry matter yield ","4.3.7",null,"Crop",{"$f":"IF(Calculations_cultivation[[#This Row],[Type]]=\"calculated\", Eval(Calculations_cultivation[[#This Row],[Value or formula]]), Calculations_cultivation[[#This Row],[Value or formula]])","v":26.4}]
["AG_DM","calculated","Crop*R_AG","kg ha-1","Above-ground residue dry matter ","4.3.8",null,"AG_DM",{"$f":"IF(Calculations_cultivation[[#This Row],[Type]]=\"calculated\", Eval(Calculations_cultivation[[#This Row],[Value or formula]]), Calculations_cultivation[[#This Row],[Value or formula]])","v":{"$error":"#NAME?"}}]
["RS","table",{"$f":"INDEX(Crop_parameters_table[RS], MATCH(TRUE, Crop_type=Crop_parameters_table[Crop type], 0))","v":0.22},"dimensionless","Ratio of below-ground root biomass to above-ground shoot biomass ",null,"Defaults in Annex 10","RS",{"$f":"IF(Calculations_cultivation[[#This Row],[Type]]=\"calculated\", Eval(Calculations_cultivation[[#This Row],[Value or formula]]), Calculations_cultivation[[#This Row],[Value or formula]])","v":0.22}]
["Area","input",{"$f":"'Input and results - cultivation'!D16","v":50},"ha","Total annual area harvested ",null,null,"Area",{"$f":"IF(Calculations_cultivation[[#This Row],[Type]]=\"calculated\", Eval(Calculations_cultivation[[#This Row],[Value or formula]]), Calculations_cultivation[[#This Row],[Value or formula]])","v":50}]
["Frac_renew","calculated","1/Renew_time","dimensionless","Fraction of total area that is renewed annually ",null,null,"Frac_renew",{"$f":"IF(Calculations_cultivation[[#This Row],[Type]]=\"calculated\", Eval(Calculations_cultivation[[#This Row],[Value or formula]]), Calculations_cultivation[[#This Row],[Value or formula]])","v":0.5}]
["Renew_time","input",{"$f":"'Input and results - cultivation'!D17","v":2},"yr","Number of years of renewal of pastures",null,null,"Renew_time",{"$f":"IF(Calculations_cultivation[[#This Row],[Type]]=\"calculated\", Eval(Calculations_cultivation[[#This Row],[Value or formula]]), Calculations_cultivation[[#This Row],[Value or formula]])","v":2}]
["Yield_Fresh","input",{"$f":"'Input and results - cultivation'!D18","v":30},"kg yr-1","Harvested fresh yield ",null,null,"Yield_Fresh",{"$f":"IF(Calculations_cultivation[[#This Row],[Type]]=\"calculated\", Eval(Calculations_cultivation[[#This Row],[Value or formula]]), Calculations_cultivation[[#This Row],[Value or formula]])","v":30}]
["DRY","table",{"$f":"INDEX(Crop_parameters_table[DRY], MATCH(TRUE, Crop_type=Crop_parameters_table[Crop type], 0))","v":0.88},"dimensionless","Dry matter fraction of harvested crop ",null,"Defaults in Annex 10","DRY",{"$f":"IF(Calculations_cultivation[[#This Row],[Type]]=\"calculated\", Eval(Calculations_cultivation[[#This Row],[Value or formula]]), Calculations_cultivation[[#This Row],[Value or formula]])","v":0.88}]
["R_AG","table",{"$f":"INDEX(Crop_parameters_table[R_AG], MATCH(TRUE, Crop_type=Crop_parameters_table[Crop type], 0))","v":1.3},"dimensionless","Ratio of above-ground residue dry matter to harvested yield ",null,"Defaults in Annex 10","R_AG",{"$f":"IF(Calculations_cultivation[[#This Row],[Type]]=\"calculated\", Eval(Calculations_cultivation[[#This Row],[Value or formula]]), Calculations_cultivation[[#This Row],[Value or formula]])","v":1.3}]
["MS_PRP","input",{"$f":"'Input and results - cultivation'!D19","v":0.3},"dimensionless","Fraction of total annual nitrogen excretion that is deposited on pasture, range and paddock",null,null,"MS_PRP",{"$f":"IF(Calculations_cultivation[[#This Row],[Type]]=\"calculated\", Eval(Calculations_cultivation[[#This Row],[Value or formula]]), Calculations_cultivation[[#This Row],[Value or formula]])","v":0.3}]
["N2O_soil_ind_vol","calculated","(F_SN*Frac_GASF+(F_ON+F_PRP)*Frac_GASM)*EF_4*44/28","kg yr-1","Total indirect nitrous oxide emission from volatilization of nitrogen from managed soil ","4.3.10",null,"N2O_soil_ind_vol",{"$f":"IF(Calculations_cultivation[[#This Row],[Type]]=\"calculated\", Eval(Calculations_cultivation[[#This Row],[Value or formula]]), Calculations_cultivation[[#This Row],[Value or formula]])","v":{"$error":"#NAME?"}}]
["Frac_GASF","input",{"$f":"'Input and results - cultivation'!D20","v":0.11},"dimensionless","Fraction of synthetic fertiliser nitrogen that volatilises as NH3 and NOx",null,"Defaults in Annex 11","Frac_GASF",{"$f":"IF(Calculations_cultivation[[#This Row],[Type]]=\"calculated\", Eval(Calculations_cultivation[[#This Row],[Value or formula]]), Calculations_cultivation[[#This Row],[Value or formula]])","v":0.11}]
["Frac_GASM","input",{"$f":"'Input and results - cultivation'!D21","v":0.21},"dimensionless","Fraction of organic fertiliser nitrogen that volatilises as NH3 and NOx",null,"Defaults in Annex 11","Frac_GASM",{"$f":"IF(Calculations_cultivation[[#This Row],[Type]]=\"calculated\", Eval(Calculations_cultivation[[#This Row],[Value or formula]]), Calculations_cultivation[[#This Row],[Value or formula]])","v":0.21}]
["EF_4","input",{"$f":"'Input and results - cultivation'!D22","v":0.01},"dimensionless","Emission factor for N2O emissions from atmospheric deposition of nitrogen on soils and water surfaces",null,"Defaults in Annex 11","EF_4",{"$f":"IF(Calculations_cultivation[[#This Row],[Type]]=\"calculated\", Eval(Calculations_cultivation[[#This Row],[Value or formula]]), Calculations_cultivation[[#This Row],[Value or formula]])","v":0.01}]
["N2O_soil_ind_leach","calculated","(F_SN+F_ON+F_PRP+F_CR)*Frac_leach_H*EF_5*44/28","kg yr-1","Total indirect nitrous oxide emission from leaching of nitrogen from managed soil ","4.3.11",null,"N2O_soil_ind_leach",{"$f":"IF(Calculations_cultivation[[#This Row],[Type]]=\"calculated\", Eval(Calculations_cultivation[[#This Row],[Value or formula]]), Calculations_cultivation[[#This Row],[Value or formula]])","v":{"$error":"#NAME?"}}]
["Frac_leach_H","input",{"$f":"'Input and results - cultivation'!D23","v":0.24},"dimensionless","Fraction of all nitrogen added to/mineralised in managed soils in regions where leaching/runoff occurs that is lost through leaching and runoff ",null,"Defaults in Annex 11","Frac_leach_H",{"$f":"IF(Calculations_cultivation[[#This Row],[Type]]=\"calculated\", Eval(Calculations_cultivation[[#This Row],[Value or formula]]), Calculations_cultivation[[#This Row],[Value or formula]])","v":0.24}]
["EF_5","input",{"$f":"'Input and results - cultivation'!D24","v":0.01},"dimensionless","Emission factor for N2O emissions from nitrogen leaching and runoff ",null,"Defaults in Annex 11","EF_5",{"$f":"IF(Calculations_cultivation[[#This Row],[Type]]=\"calculated\", Eval(Calculations_cultivation[[#This Row],[Value or formula]]), Calculations_cultivation[[#This Row],[Value or formula]])","v":0.01}]
["CO2_soil_liming","calculated","(M_limestone*EF_limestone+M_dolomite*EF_dolomite)*44/12","kg yr-1","Carbon dioxide emission from lime application","4.3.12",null,"CO2_soil_liming",{"$f":"IF(Calculations_cultivation[[#This Row],[Type]]=\"calculated\", Eval(Calculations_cultivation[[#This Row],[Value or formula]]), Calculations_cultivation[[#This Row],[Value or formula]])","v":13.933333333333332}]
["M_limestone","input",{"$f":"'Input and results - cultivation'!D25","v":10},"kg yr-1","Annual amount of calcic limestone (CaCO3) ",null,null,"M_limestone",{"$f":"IF(Calculations_cultivation[[#This Row],[Type]]=\"calculated\", Eval(Calculations_cultivation[[#This Row],[Value or formula]]), Calculations_cultivation[[#This Row],[Value or formula]])","v":10}]
["EF_limestone","input",{"$f":"'Input and results - cultivation'!D26","v":0.12},"dimensionless","Emission factors for CO2 emissions from liming (limestone) ",null,"Default: 0.12","EF_limestone",{"$f":"IF(Calculations_cultivation[[#This Row],[Type]]=\"calculated\", Eval(Calculations_cultivation[[#This Row],[Value or formula]]), Calculations_cultivation[[#This Row],[Value or formula]])","v":0.12}]
["M_dolomite","input",{"$f":"'Input and results - cultivation'!D27","v":20},"kg yr-1","Annual amount of calcic dolomite (CaMg(CO3)2)",null,null,"M_dolomite",{"$f":"IF(Calculations_cultivation[[#This Row],[Type]]=\"calculated\", Eval(Calculations_cultivation[[#This Row],[Value or formula]]), Calculations_cultivation[[#This Row],[Value or formula]])","v":20}]
["EF_dolomite","input",{"$f":"'Input and results - cultivation'!D28","v":0.13},"dimensionless","Emission factors for CO2 emissions from liming (dolomite) ",null,"Default: 0.13","EF_dolomite",{"$f":"IF(Calculations_cultivation[[#This Row],[Type]]=\"calculated\", Eval(Calculations_cultivation[[#This Row],[Value or formula]]), Calculations_cultivation[[#This Row],[Value or formula]])","v":0.13}]
["CO2_soil_urea","calculated","M_urea*EF_urea*44/12","kg yr-1","Carbon dioxide emission from urea application ","4.3.13",null,"CO2_soil_urea",{"$f":"IF(Calculations_cultivation[[#This Row],[Type]]=\"calculated\", Eval(Calculations_cultivation[[#This Row],[Value or formula]]), Calculations_cultivation[[#This Row],[Value or formula]])","v":22}]
["M_urea","input",{"$f":"'Input and results - cultivation'!D29","v":30},"kg yr-1","Annual amount of urea used ",null,null,"M_urea",{"$f":"IF(Calculations_cultivation[[#This Row],[Type]]=\"calculated\", Eval(Calculations_cultivation[[#This Row],[Value or formula]]), Calculations_cultivation[[#This Row],[Value or formula]])","v":30}]
["EF_urea","input",{"$f":"'Input and results - cultivation'!D30","v":0.2},"dimensionless","Emission factor for CO2 emissions from urea application ",null,"Default: 0.20","EF_urea",{"$f":"IF(Calculations_cultivation[[#This Row],[Type]]=\"calculated\", Eval(Calculations_cultivation[[#This Row],[Value or formula]]), Calculations_cultivation[[#This Row],[Value or formula]])","v":0.2}]
["CO2_soil_organic","calculated","A_*Area*EF_CO2_organic*44/12","kg yr-1","Annual on-site CO2 emissions/removals from drained organic soils in a land-use category","4.3.15",null,"CO2_soil_organic",{"$f":"IF(Calculations_cultivation[[#This Row],[Type]]=\"calculated\", Eval(Calculations_cultivation[[#This Row],[Value or formula]]), Calculations_cultivation[[#This Row],[Value or formula]])","v":0.18333333333333335}]
["A_","input",{"$f":"'Input and results - cultivation'!D31","v":0.1},"dimensionless","Share of cultivated area on organic soils ",null,null,"A_",{"$f":"IF(Calculations_cultivation[[#This Row],[Type]]=\"calculated\", Eval(Calculations_cultivation[[#This Row],[Value or formula]]), Calculations_cultivation[[#This Row],[Value or formula]])","v":0.1}]
["EF_CO2_organic","input",{"$f":"'Input and results - cultivation'!D32","v":0.01},"kg ha-1 yr-1","Emission factor for drained organic soils",null,null,"EF_CO2_organic",{"$f":"IF(Calculations_cultivation[[#This Row],[Type]]=\"calculated\", Eval(Calculations_cultivation[[#This Row],[Value or formula]]), Calculations_cultivation[[#This Row],[Value or formula]])","v":0.01}]
["CH4_soil_organic","calculated","A_*Area*((1-Frac_ditch)*EF_CH4_land+Frac_ditch*EF_CH4_ditch)","kg yr-1","Annual CH4 loss from drained organic soils ","4.3.16",null,"CH4_soil_organic",{"$f":"IF(Calculations_cultivation[[#This Row],[Type]]=\"calculated\", Eval(Calculations_cultivation[[#This Row],[Value or formula]]), Calculations_cultivation[[#This Row],[Value or formula]])","v":0.5}]
["Frac_ditch","input",{"$f":"'Input and results - cultivation'!D33","v":0.05},"dimensionless","Fraction of the total area of drained organic soil which is occupied by ditches",null,null,"Frac_ditch",{"$f":"IF(Calculations_cultivation[[#This Row],[Type]]=\"calculated\", Eval(Calculations_cultivation[[#This Row],[Value or formula]]), Calculations_cultivation[[#This Row],[Value or formula]])","v":0.05}]
["EF_CH4_land","input",{"$f":"'Input and results - cultivation'!D34","v":0.1},"kg ha-1 yr-1","Emission factors for direct CH4 emissions from drained organic soils",null,null,"EF_CH4_land",{"$f":"IF(Calculations_cultivation[[#This Row],[Type]]=\"calculated\", Eval(Calculations_cultivation[[#This Row],[Value or formula]]), Calculations_cultivation[[#This Row],[Value or formula]])","v":0.1}]
["EF_CH4_ditch","input",{"$f":"'Input and results - cultivation'!D35","v":0.1},"kg ha-1 yr-1","Emission factors for direct CH4 emissions from drainage ditches",null,null,"EF_CH4_ditch",{"$f":"IF(Calculations_cultivation[[#This Row],[Type]]=\"calculated\", Eval(Calculations_cultivation[[#This Row],[Value or formula]]), Calculations_cultivation[[#This Row],[Value or formula]])","v":0.1}]
["N2O_soil_organic","calculated","A_*Area*EF_N2O_organic*44/28","kg yr-1","Total direct nitrous oxide emission from managed soils","4.3.17",null,"N2O_soil_organic",{"$f":"IF(Calculations_cultivation[[#This Row],[Type]]=\"calculated\", Eval(Calculations_cultivation[[#This Row],[Value or formula]]), Calculations_cultivation[[#This Row],[Value or formula]])","v":0.7857142857142857}]
["EF_N2O_organic","input",{"$f":"'Input and results - cultivation'!D36","v":0.1},"kg ha-1 yr-1","Emission factor for drained organic soils",null,null,"EF_N2O_organic",{"$f":"IF(Calculations_cultivation[[#This Row],[Type]]=\"calculated\", Eval(Calculations_cultivation[[#This Row],[Value or formula]]), Calculations_cultivation[[#This Row],[Value or formula]])","v":0.1}]

{"sheet":"Annex 1 - Climate zones","index":5,"n_rows":53,"n_cols":5,"rows_kept":53,"cut":false,"hidden":false,"merged":[]}
["Mean annual temperature (˚C)","Ratio of potential evapotranspiration to precipitation","Mean annual precipitation (mm)","Elevation (m)","Climate zone"]
["< 0","< 1","< 1000","< 1000","Boreal Dry"]
["< 0","< 1","< 1000","> 1000","Boreal Dry"]
["< 0","< 1","1000-2000","< 1000","Boreal Dry"]
["< 0","< 1","1000-2000","> 1000","Boreal Dry"]
["< 0","< 1","> 2000","< 1000","Boreal Dry"]
["< 0","< 1","> 2000","> 1000","Boreal Dry"]
["< 0","> 1","< 1000","< 1000","Boreal Moist"]
["< 0","> 1","< 1000","> 1000","Boreal Moist"]
["< 0","> 1","1000-2000","< 1000","Boreal Moist"]
["< 0","> 1","1000-2000","> 1000","Boreal Moist"]
["< 0","> 1","> 2000","< 1000","Boreal Moist"]
["< 0","> 1","> 2000","> 1000","Boreal Moist"]
["0-10","< 1","< 1000","< 1000","Cool Temperate Dry"]
["0-10","< 1","< 1000","> 1000","Cool Temperate Dry"]
["0-10","< 1","1000-2000","< 1000","Cool Temperate Dry"]
["0-10","< 1","1000-2000","< 1000","Cool Temperate Dry"]
["0-10","< 1","> 2000","> 1000","Cool Temperate Dry"]
["0-10","< 1","> 2000","< 1000","Cool Temperate Dry"]
["0-10","> 1","< 1000","> 1000","Cool Temperate Moist"]
["0-10","> 1","< 1000","< 1000","Cool Temperate Moist"]
["0-10","> 1","1000-2000","> 1000","Cool Temperate Moist"]
["0-10","> 1","1000-2000","< 1000","Cool Temperate Moist"]
["0-10","> 1","> 2000","> 1000","Cool Temperate Moist"]
["0-10","> 1","> 2000","< 1000","Cool Temperate Moist"]
["10-18","< 1","< 1000","> 1000","Warm Temperate Dry"]
["10-18","< 1","< 1000","< 1000","Warm Temperate Dry"]
["10-18","< 1","1000-2000","> 1000","Warm Temperate Dry"]
["10-18","< 1","1000-2000","< 1000","Warm Temperate Dry"]
["10-18","< 1","> 2000","> 1000","Warm Temperate Dry"]
["10-18","< 1","> 2000","< 1000","Warm Temperate Dry"]
["10-18","> 1","< 1000","> 1000","Warm Temperate Moist"]
["10-18","> 1","< 1000","< 1000","Warm Temperate Moist"]
["10-18","> 1","1000-2000","> 1000","Warm Temperate Moist"]
["10-18","> 1","1000-2000","< 1000","Warm Temperate Moist"]
["10-18","> 1","> 2000","> 1000","Warm Temperate Moist"]
["10-18","> 1","> 2000","< 1000","Warm Temperate Moist"]
["> 18","< 1","< 1000","> 1000","Tropical Dry"]
["> 18","< 1","< 1000","< 1000","Tropical Montane"]
["> 18","< 1","1000-2000","> 1000","Tropical Moist"]
["> 18","< 1","1000-2000","< 1000","Tropical Montane"]
["> 18","< 1","> 2000","> 1000","Tropical Wet"]
["> 18","< 1","> 2000","< 1000","Tropical Montane"]
["> 18","> 1","< 1000","> 1000","Tropical Dry"]
["> 18","> 1","< 1000","< 1000","Tropical Montane"]
["> 18","> 1","1000-2000","< 1000","Tropical Moist"]
["> 18","> 1","1000-2000","> 1000","Tropical Montane"]
["> 18","> 1","> 2000","< 1000","Tropical Wet"]
["> 18","> 1","> 2000","> 1000","Tropical Montane"]
[]
["Sources:"]
["Section 4.2.2 of the guideline (calculation of MCF)"]
["From Annex10A.2, page 10.129 of (IPCC, 2019)"]

{"sheet":"Annex 2 - Ym","index":6,"n_rows":13,"n_cols":5,"rows_kept":13,"cut":false,"hidden":false,"merged":[]}
["Cow type","Production or feed details","DE","NDF","Ym"]
["Dairy","High production rate (>8500 kg head-1 yr-1)",">70","<35",5.7]
["Dairy","High production rate (>8500 kg head-1 yr-1)",">70",">35",6]
["Dairy","Medium production rate (5000 - 8000 kg head-1 yr-1)","63-70",">37",6.3]
["Dairy","Low production rate (<5000 kg head-1 yr-1)","<63",">38",6.5]
["Non-dairy",">75% forage","<63",null,7]
["Non-dairy","15-75% forage","62-71",null,6.3]
["Non-dairy","<10% forage (steam-flaked corn)",">71",null,4]
["Non-dairy"," <15% forage (all other grains)",">75",null,3]
[]
["Sources:"]
["Section 4.2.1 of the guideline"]
["From Table 10.12 of (IPCC, 2019)"]

{"sheet":"Annex 3 - B0","index":7,"n_rows":25,"n_cols":4,"rows_kept":25,"cut":false,"hidden":false,"merged":[]}
["Cow type","Region","Productivity","B0"]
["Dairy","North America","High",0.24]
["Dairy","North America","Low",0.24]
["Dairy","Western Europe","High",0.24]
["Dairy","Western Europe","Low",0.24]
["Dairy","Eastern Europe","High",0.24]
["Dairy","Eastern Europe","Low",0.24]
["Dairy","Oceania","High",0.24]
["Dairy","Oceania","Low",0.24]
["Dairy","Other region","High",0.24]
["Dairy","Other region","Low",0.13]
["Non-dairy","North America","High",0.19]
["Non-dairy","North America","Low",0.19]
["Non-dairy","Western Europe","High",0.18]
["Non-dairy","Western Europe","Low",0.18]
["Non-dairy","Eastern Europe","High",0.17]
["Non-dairy","Eastern Europe","Low",0.17]
["Non-dairy","Oceania","High",0.17]
["Non-dairy","Oceania","Low",0.17]
["Non-dairy","Other region","High",0.18]
["Non-dairy","Other region","Low",0.13]
[]
["Sources:"]
["Section 4.2.2 of the guideline"]
["From Table 10.16 of (IPCC, 2019)"]

{"sheet":"Annex 4 - MCF","index":8,"n_rows":48,"n_cols":13,"rows_kept":48,"cut":false,"hidden":false,"merged":[]}
["Index","Manure management system","MCF","Cool Temperate Moist","Cool Temperate Dry","Boreal \nMoist","Boreal \nDry","Warm Temperate Moist","Warm \nTemperate \nDry","Tropical\nMontane","Tropical\nWet","Tropical \nMoist","Tropical \nDry"]
[1,"Daily spread","MCF_1",1E-3,1E-3,1E-3,1E-3,5.0000000000000001E-3,5.0000000000000001E-3,0.01,0.01,0.01,0.01]
[2,"Dry lot","MCF_2",0.01,0.01,0.01,0.01,1.4999999999999999E-2,1.4999999999999999E-2,0.02,0.02,0.02,0.02]
[3,"Cattle deep bedding no mixing (less 1 month)","MCF_3",2.75E-2,2.75E-2,2.75E-2,2.75E-2,6.5000000000000002E-2,6.5000000000000002E-2,0.18,0.18,0.18,0.18]
[4,"Cattle deep bedding no mixing (more 1 month)","MCF_4",0.21,0.26,0.14000000000000001,0.14000000000000001,0.37,0.41,0.59,0.76,0.73,0.74]
[5,"Cattle deep bedding active mixing (less 1 month)","MCF_5",2.75E-2,2.75E-2,2.75E-2,2.75E-2,6.5000000000000002E-2,6.5000000000000002E-2,0.18,0.18,0.18,0.18]
[6,"Cattle deep bedding active mixing (more 1 month)","MCF_6",0.21,0.26,0.14000000000000001,0.14000000000000001,0.37,0.41,0.59,0.76,0.73,0.74]
[7,"Pit storage (1 month)","MCF_7",0.06,0.08,0.04,0.04,0.13,0.15,0.25,0.38,0.36,0.42]
[8,"Pit storage (3 month)","MCF_8",0.12,0.16,0.08,0.08,0.24,0.28000000000000003,0.43,0.61,0.56999999999999995,0.62]
[9,"Pit storage (4 month)","MCF_9",0.15,0.19,0.09,0.09,0.28999999999999998,0.32,0.5,0.67,0.64,0.68]
[10,"Pit storage (6 month)","MCF_10",0.21,0.26,0.14000000000000001,0.14000000000000001,0.37,0.41,0.59,0.76,0.73,0.74]
[11,"Pit storage (12 month)","MCF_11",0.31,0.42,0.21,0.2,0.55000000000000004,0.64,0.73,0.8,0.8,0.8]
[12,"Liquid Slurry without natural crust cover (1 month)","MCF_12",0.06,0.08,0.04,0.04,0.13,0.15,0.25,0.38,0.36,0.42]
[13,"Liquid Slurry without natural crust cover (3 month)","MCF_13",0.12,0.16,0.08,0.08,0.24,0.28000000000000003,0.43,0.61,0.56999999999999995,0.62]
[14,"Liquid Slurry without natural crust cover (4 month)","MCF_14",0.15,0.19,0.09,0.09,0.28999999999999998,0.32,0.5,0.67,0.64,0.68]
[15,"Liquid Slurry without natural crust cover (6 month)","MCF_15",0.21,0.26,0.14000000000000001,0.14000000000000001,0.37,0.41,0.59,0.76,0.73,0.74]
[16,"Liquid Slurry without natural crust cover (12 month)","MCF_16",0.31,0.42,0.21,0.2,0.55000000000000004,0.64,0.73,0.8,0.8,0.8]
[17,"Liquid Slurry with natural crust cover (1 month)","MCF_17",0.06,0.08,0.04,0.04,0.13,0.15,0.25,0.38,0.36,0.42]
[18,"Liquid Slurry with natural crust cover (3 month)","MCF_18",0.12,0.16,0.08,0.08,0.24,0.28000000000000003,0.43,0.61,0.56999999999999995,0.62]
[19,"Liquid Slurry with natural crust cover (4 month)","MCF_19",0.15,0.19,0.09,0.09,0.28999999999999998,0.32,0.5,0.67,0.64,0.68]
[20,"Liquid Slurry with natural crust cover (6 month)","MCF_20",0.21,0.26,0.14000000000000001,0.14000000000000001,0.37,0.41,0.59,0.76,0.73,0.74]
[21,"Liquid Slurry with natural crust cover (12 month)","MCF_21",0.31,0.42,0.21,0.2,0.55000000000000004,0.64,0.73,0.8,0.8,0.8]
[22,"Liquid Slurry with cover (1 month)","MCF_22",0.06,0.08,0.04,0.04,0.13,0.15,0.25,0.38,0.36,0.42]
[23,"Liquid Slurry with cover (3 month)","MCF_23",0.12,0.16,0.08,0.08,0.24,0.28000000000000003,0.43,0.61,0.56999999999999995,0.62]
[24,"Liquid Slurry with cover (4 month)","MCF_24",0.15,0.19,0.09,0.09,0.28999999999999998,0.32,0.5,0.67,0.64,0.68]
[25,"Liquid Slurry with cover (6 month)","MCF_25",0.21,0.26,0.14000000000000001,0.14000000000000001,0.37,0.41,0.59,0.76,0.73,0.74]
[26,"Liquid Slurry with cover (12 month)","MCF_26",0.31,0.42,0.21,0.2,0.55000000000000004,0.64,0.73,0.8,0.8,0.8]
[27,"Solid storage","MCF_27",0.02,0.02,0.02,0.02,0.04,0.04,0.05,0.05,0.05,0.05]
[28,"Solid storage - Covered/compacted","MCF_28",0.02,0.02,0.02,0.02,0.04,0.04,0.05,0.05,0.05,0.05]
[29,"Solid storage - Bulking agent addiction","MCF_29",5.0000000000000001E-3,5.0000000000000001E-3,5.0000000000000001E-3,5.0000000000000001E-3,0.01,0.01,1.4999999999999999E-2,1.4999999999999999E-2,1.4999999999999999E-2,1.4999999999999999E-2]
[30,"Solid storage - Additives","MCF_30",0.01,0.01,0.01,0.01,0.02,0.02,2.5000000000000001E-2,2.5000000000000001E-2,2.5000000000000001E-2,2.5000000000000001E-2]
[31,"Composting in vessel","MCF_31",5.0000000000000001E-3,5.0000000000000001E-3,5.0000000000000001E-3,5.0000000000000001E-3,5.0000000000000001E-3,5.0000000000000001E-3,5.0000000000000001E-3,5.0000000000000001E-3,5.0000000000000001E-3,5.0000000000000001E-3]
[32,"Composting static pile","MCF_32",0.01,0.01,0.01,0.01,0.02,0.02,2.5000000000000001E-2,2.5000000000000001E-2,2.5000000000000001E-2,2.5000000000000001E-2]
[33,"Composting intensive windrow","MCF_33",5.0000000000000001E-3,5.0000000000000001E-3,5.0000000000000001E-3,5.0000000000000001E-3,0.01,0.01,1.4999999999999999E-2,1.4999999999999999E-2,1.4999999999999999E-2,1.4999999999999999E-2]
[34,"Composting  passive windrow","MCF_34",0.01,0.01,0.01,0.01,0.02,0.02,2.5000000000000001E-2,2.5000000000000001E-2,2.5000000000000001E-2,2.5000000000000001E-2]
[35,"Aerobic treatment natural aeration","MCF_35",0,0,0,0,0,0,0,0,0,0]
[36,"Aerobic treatment forced aeration","MCF_36",0,0,0,0,0,0,0,0,0,0]
[37,"Uncovered anaerobic lagoon","MCF_37",0.6,0.67,0.5,0.49,0.73,0.76,0.76,0.8,0.8,0.8]
[38,"Anaerobic Digester, Low leakage, High quality gastight storage, \nbest complete industrial technology","MCF_38",0.01,0.01,0.01,0.01,0.01,0.01,0.01,0.01,0.01,0.01]
[39,"Anaerobic Digester, Low leakage, High quality industrial technology, \nlow quality gastight storage technology","MCF_39",1.41E-2,1.41E-2,1.41E-2,1.41E-2,1.41E-2,1.41E-2,1.41E-2,1.41E-2,1.41E-2,1.41E-2]
[40,"Anaerobic Digester, Low leakage, High quality industrial technology, \nopen storage","MCF_40",3.5499999999999997E-2,3.5499999999999997E-2,3.5499999999999997E-2,3.5499999999999997E-2,4.3799999999999999E-2,4.3799999999999999E-2,4.5900000000000003E-2,4.5900000000000003E-2,4.5900000000000003E-2,4.5900000000000003E-2]
[41,"Anaerobic Digester, High leakage, low quality technology, \nhigh quality gastight storage technology","MCF_41",9.5899999999999999E-2,9.5899999999999999E-2,9.5899999999999999E-2,9.5899999999999999E-2,9.5899999999999999E-2,9.5899999999999999E-2,9.5899999999999999E-2,9.5899999999999999E-2,9.5899999999999999E-2,9.5899999999999999E-2]
[42,"Anaerobic Digester, High leakage, low quality technology, \nlow quality gastight storage technology","MCF_42",0.1085,0.1085,0.1085,0.1085,0.1085,0.1085,0.1085,0.1085,0.1085,0.1085]
[43,"Anaerobic Digester, High leakage, low quality technology, \nopen storage","MCF_43",0.12139999999999999,0.12139999999999999,0.12139999999999999,0.12139999999999999,0.12970000000000001,0.12970000000000001,0.13170000000000001,0.13170000000000001,0.13170000000000001,0.13170000000000001]
[]
["Sources:"]
["Section 4.2.2 of the guideline"]
["From Table 10.17 of (IPCC, 2019)"]

{"sheet":"Annex 5 - EF_nit_S","index":9,"n_rows":48,"n_cols":3,"rows_kept":48,"cut":false,"hidden":false,"merged":[]}
["Index","Manure management system","EF_nit_S"]
[1,"Daily spread",0]
[2,"Dry lot",0.02]
[3,"Cattle deep bedding no mixing (less 1 month)",0.01]
[4,"Cattle deep bedding no mixing (more 1 month)",0.01]
[5,"Cattle deep bedding active mixing (less 1 month)",7.0000000000000007E-2]
[6,"Cattle deep bedding active mixing (more 1 month)",7.0000000000000007E-2]
[7,"Pit storage (1 month)",2E-3]
[8,"Pit storage (3 month)",2E-3]
[9,"Pit storage (4 month)",2E-3]
[10,"Pit storage (6 month)",2E-3]
[11,"Pit storage (12 month)",2E-3]
[12,"Liquid Slurry without natural crust cover (1 month)",0]
[13,"Liquid Slurry without natural crust cover (3 month)",0]
[14,"Liquid Slurry without natural crust cover (4 month)",0]
[15,"Liquid Slurry without natural crust cover (6 month)",0]
[16,"Liquid Slurry without natural crust cover (12 month)",0]
[17,"Liquid Slurry with natural crust cover (1 month)",5.0000000000000001E-3]
[18,"Liquid Slurry with natural crust cover (3 month)",5.0000000000000001E-3]
[19,"Liquid Slurry with natural crust cover (4 month)",5.0000000000000001E-3]
[20,"Liquid Slurry with natural crust cover (6 month)",5.0000000000000001E-3]
[21,"Liquid Slurry with natural crust cover (12 month)",5.0000000000000001E-3]
[22,"Liquid Slurry with cover (1 month)",5.0000000000000001E-3]
[23,"Liquid Slurry with cover (3 month)",5.0000000000000001E-3]
[24,"Liquid Slurry with cover (4 month)",5.0000000000000001E-3]
[25,"Liquid Slurry with cover (6 month)",5.0000000000000001E-3]
[26,"Liquid Slurry with cover (12 month)",5.0000000000000001E-3]
[27,"Solid storage",0.01]
[28,"Solid storage - Covered/compacted",0.01]
[29,"Solid storage - Bulking agent addiction",5.0000000000000001E-3]
[30,"Solid storage - Additives",5.0000000000000001E-3]
[31,"Composting in vessel",6.0000000000000001E-3]
[32,"Composting static pile",0.01]
[33,"Composting intensive windrow",5.0000000000000001E-3]
[34,"Composting  passive windrow",5.0000000000000001E-3]
[35,"Aerobic treatment natural aeration",0.01]
[36,"Aerobic treatment forced aeration",5.0000000000000001E-3]
[37,"Uncovered anaerobic lagoon",0]
[38,"Anaerobic Digester, Low leakage, High quality gastight storage, \nbest complete industrial technology",5.9999999999999995E-4]
[39,"Anaerobic Digester, Low leakage, High quality industrial technology, \nlow quality gastight storage technology",5.9999999999999995E-4]
[40,"Anaerobic Digester, Low leakage, High quality industrial technology, \nopen storage",5.9999999999999995E-4]
[41,"Anaerobic Digester, High leakage, low quality technology, \nhigh quality gastight storage technology",5.9999999999999995E-4]
[42,"Anaerobic Digester, High leakage, low quality technology, \nlow quality gastight storage technology",5.9999999999999995E-4]
[43,"Anaerobic Digester, High leakage, low quality technology, \nopen storage",5.9999999999999995E-4]
[]
["Sources:"]
["Section 4.2.3 of the guideline"]
["From Table 10.21 of (IPCC, 2019)"]

{"sheet":"Annex 6 - Frac_leach_S","index":10,"n_rows":48,"n_cols":3,"rows_kept":48,"cut":false,"hidden":false,"merged":[]}
["Index","Manure management system","Frac_leach_S"]
[1,"Daily spread",0]
[2,"Dry lot",3.5000000000000003E-2]
[3,"Cattle deep bedding no mixing (less 1 month)",3.5000000000000003E-2]
[4,"Cattle deep bedding no mixing (more 1 month)",3.5000000000000003E-2]
[5,"Cattle deep bedding active mixing (less 1 month)",3.5000000000000003E-2]
[6,"Cattle deep bedding active mixing (more 1 month)",3.5000000000000003E-2]
[7,"Pit storage (1 month)",0]
[8,"Pit storage (3 month)",0]
[9,"Pit storage (4 month)",0]
[10,"Pit storage (6 month)",0]
[11,"Pit storage (12 month)",0]
[12,"Liquid Slurry without natural crust cover (1 month)",0]
[13,"Liquid Slurry without natural crust cover (3 month)",0]
[14,"Liquid Slurry without natural crust cover (4 month)",0]
[15,"Liquid Slurry without natural crust cover (6 month)",0]
[16,"Liquid Slurry without natural crust cover (12 month)",0]
[17,"Liquid Slurry with natural crust cover (1 month)",0]
[18,"Liquid Slurry with natural crust cover (3 month)",0]
[19,"Liquid Slurry with natural crust cover (4 month)",0]
[20,"Liquid Slurry with natural crust cover (6 month)",0]
[21,"Liquid Slurry with natural crust cover (12 month)",0]
[22,"Liquid Slurry with cover (1 month)",0]
[23,"Liquid Slurry with cover (3 month)",0]
[24,"Liquid Slurry with cover (4 month)",0]
[25,"Liquid Slurry with cover (6 month)",0]
[26,"Liquid Slurry with cover (12 month)",0]
[27,"Solid storage",0.02]
[28,"Solid storage - Covered/compacted",0]
[29,"Solid storage - Bulking agent addiction",0.02]
[30,"Solid storage - Additives",0.02]
[31,"Composting in vessel",0]
[32,"Composting static pile",0.06]
[33,"Composting intensive windrow",0.06]
[34,"Composting  passive windrow",0.04]
[35,"Aerobic treatment natural aeration",0]
[36,"Aerobic treatment forced aeration",0]
[37,"Uncovered anaerobic lagoon",0]
[38,"Anaerobic Digester, Low leakage, High quality gastight storage, \nbest complete industrial technology",0]
[39,"Anaerobic Digester, Low leakage, High quality industrial technology, \nlow quality gastight storage technology",0]
[40,"Anaerobic Digester, Low leakage, High quality industrial technology, \nopen storage",0]
[41,"Anaerobic Digester, High leakage, low quality technology, \nhigh quality gastight storage technology",0]
[42,"Anaerobic Digester, High leakage, low quality technology, \nlow quality gastight storage technology",0]
[43,"Anaerobic Digester, High leakage, low quality technology, \nopen storage",0]
[]
["Sources:"]
["Section 4.2.4 of the guideline"]
["From Table 10.22 of (IPCC, 2019)"]

{"sheet":"Annex 7 - Frac_vol_S","index":11,"n_rows":48,"n_cols":4,"rows_kept":48,"cut":false,"hidden":false,"merged":[]}
["Index","Manure management system","Frac_vol_S\ndairy","Frac_vol_S\nnon-dairy"]
[1,"Daily spread",7.0000000000000007E-2,7.0000000000000007E-2]
[2,"Dry lot",0.3,0.3]
[3,"Cattle deep bedding no mixing (less 1 month)",0.25,0.25]
[4,"Cattle deep bedding no mixing (more 1 month)",0.25,0.25]
[5,"Cattle deep bedding active mixing (less 1 month)",0.25,0.25]
[6,"Cattle deep bedding active mixing (more 1 month)",0.25,0.25]
[7,"Pit storage (1 month)",0.28000000000000003,0.25]
[8,"Pit storage (3 month)",0.28000000000000003,0.25]
[9,"Pit storage (4 month)",0.28000000000000003,0.25]
[10,"Pit storage (6 month)",0.28000000000000003,0.25]
[11,"Pit storage (12 month)",0.28000000000000003,0.25]
[12,"Liquid Slurry without natural crust cover (1 month)",0.48,0.48]
[13,"Liquid Slurry without natural crust cover (3 month)",0.48,0.48]
[14,"Liquid Slurry without natural crust cover (4 month)",0.48,0.48]
[15,"Liquid Slurry without natural crust cover (6 month)",0.48,0.48]
[16,"Liquid Slurry without natural crust cover (12 month)",0.48,0.48]
[17,"Liquid Slurry with natural crust cover (1 month)",0.3,0.3]
[18,"Liquid Slurry with natural crust cover (3 month)",0.3,0.3]
[19,"Liquid Slurry with natural crust cover (4 month)",0.3,0.3]
[20,"Liquid Slurry with natural crust cover (6 month)",0.3,0.3]
[21,"Liquid Slurry with natural crust cover (12 month)",0.3,0.3]
[22,"Liquid Slurry with cover (1 month)",0.1,0.1]
[23,"Liquid Slurry with cover (3 month)",0.1,0.1]
[24,"Liquid Slurry with cover (4 month)",0.1,0.1]
[25,"Liquid Slurry with cover (6 month)",0.1,0.1]
[26,"Liquid Slurry with cover (12 month)",0.1,0.1]
[27,"Solid storage",0.3,0.45]
[28,"Solid storage - Covered/compacted",0.14000000000000001,0.22]
[29,"Solid storage - Bulking agent addiction",0.38,0.57999999999999996]
[30,"Solid storage - Additives",0.11,0.17]
[31,"Composting in vessel",0.45,0.6]
[32,"Composting static pile",0.5,0.65]
[33,"Composting intensive windrow",0.5,0.65]
[34,"Composting  passive windrow",0.45,0.6]
[35,"Aerobic treatment natural aeration",0.85,0.85]
[36,"Aerobic treatment forced aeration",0.85,0.85]
[37,"Uncovered anaerobic lagoon",0.35,0.35]
[38,"Anaerobic Digester, Low leakage, High quality gastight storage, \nbest complete industrial technology",0.27500000000000002,0.27500000000000002]
[39,"Anaerobic Digester, Low leakage, High quality industrial technology, \nlow quality gastight storage technology",0.27500000000000002,0.27500000000000002]
[40,"Anaerobic Digester, Low leakage, High quality industrial technology, \nopen storage",0.27500000000000002,0.27500000000000002]
[41,"Anaerobic Digester, High leakage, low quality technology, \nhigh quality gastight storage technology",0.27500000000000002,0.27500000000000002]
[42,"Anaerobic Digester, High leakage, low quality technology, \nlow quality gastight storage technology",0.27500000000000002,0.27500000000000002]
[43,"Anaerobic Digester, High leakage, low quality technology, \nopen storage",0.27500000000000002,0.27500000000000002]
[]
["Sources:"]
["Section 4.2.5 of the guideline"]
["From Table 10.22 of (IPCC, 2019)"]

{"sheet":"Annex 8 - Productivity","index":12,"n_rows":19,"n_cols":1,"rows_kept":19,"cut":false,"hidden":false,"merged":[]}
["Definitions of High and Low Productivity Systems"]
[]
["Dairy cattle"]
[]
["High-productivity systems are based on high-yielding dairy cows that are concentrated in confinement production systems or grazing on high quality pastures with supplements. The farms are 100-percent market oriented for commercial milk production, for national markets and/or export; purebred or crossbred cattle are genetically improved through selective breeding for milk production. Indicative levels of high milk productivity by cow corresponding to a given region are included in Table 10.11 of (IPCC, 2019) to guide the selection of the emission factors."]
[]
["Low productivity systems are based on low-yielding dairy cows, grazing non improved pastures, and using locally produced roughage (e.g. crop residues), and agro-industrial by-products. Local breeds or crossbred cows are bred locally, without intensive selection for milk productivity. Milk production is mostly for local market and local consumption. Indicative levels of low milk productivity by cow corresponding to a given region are included in Table 10.11 of (IPCC, 2019) to guide the selection of the emission factors."]
[]
[]
["Non-dairy cattle"]
[]
["High-productivity systems are based on animal feeding systems using forage (e.g. high-quality grass) and concentrates in confinement production systems or grazing with supplements or on improved pastures, producing high rates of daily weight gain. Animals can be purebred or crossbred and are genetically improved through selective breeding for improved commercial meat production. Growing cattle may be finished young in \"intensive grazing with supplements\" or feedlot systems, and meat is produced for national markets and/or export."]
[]
["Low productivity systems are based on animal feeding systems where locally produced roughage (e.g. crop residues) or low quality rangelands represent the major source of feed utilized, producing low rates of daily weight gain. Animals can be represented by local breeds or may be crossbred and can also be used for multiple purposes such as draft, meat and milk for self consumption and markets."]
[]
[]
["Sources:"]
["Section 4.2.2 of the guideline (calculation of B0)"]
["From Section 10.2.2, page 10.13 of (IPCC, 2019)"]

{"sheet":"Annex 9 - EF_1 & EF_3","index":13,"n_rows":14,"n_cols":3,"rows_kept":14,"cut":false,"hidden":false,"merged":[]}
["Condition","EF_1","EF_3"]
["Default value",0.01,4.0000000000000001E-3]
["Synthetic fertiliser inputs in wet climates",1.6E-2,"-"]
["Other N inputs6 in wet climates",6.0000000000000001E-3,"-"]
["All N inputs in dry climates",5.0000000000000001E-3,"-"]
["Flooded rice fields - default value",4.0000000000000001E-3,"-"]
["Flooded rice fields - continuous flooding",3.0000000000000001E-3,"-"]
["Flooded rice fields - single and multiple drainage",5.0000000000000001E-3,"-"]
["Wet climates","-",6.0000000000000001E-3]
["Dry climates","-",2E-3]
[]
["Sources:"]
["Section 4.3.1 of the guideline"]
["From Table 11.1 of (IPCC, 2019)"]

{"sheet":"Annex 10 - Crop parameters","index":14,"n_rows":26,"n_cols":7,"rows_kept":26,"cut":false,"hidden":false,"merged":[]}
["Crop type","N_AG","N_BG","R_AG","RS","DRY","C_f"]
["Generic value for crops not in the list",8.0000000000000002E-3,8.9999999999999993E-3,1,0.22,0.85,0.85]
["Generic Grains",6.0000000000000001E-3,8.9999999999999993E-3,1.3,0.22,0.88,0.85]
["Winter Wheat",6.0000000000000001E-3,8.9999999999999993E-3,1.3,0.23,0.89,0.9]
["Spring Wheat",6.0000000000000001E-3,8.9999999999999993E-3,1.3,0.28000000000000003,0.89,0.9]
["Barley",7.0000000000000001E-3,1.4E-2,1.2,0.22,0.89,0.85]
["Oats",7.0000000000000001E-3,8.0000000000000002E-3,1.3,0.25,0.89,0.85]
["Maize",6.0000000000000001E-3,7.0000000000000001E-3,1,0.22,0.87,0.8]
["Rye",5.0000000000000001E-3,1.0999999999999999E-2,1.6,"-",0.88,0.85]
["Rice",7.0000000000000001E-3,"-",1.4,0.16,0.89,0.8]
["Millet",7.0000000000000001E-3,"-",1.4,"-",0.9,0.85]
["Sorghum",7.0000000000000001E-3,6.0000000000000001E-3,1.4,"-",0.89,0.85]
["Beans and Pulses",8.0000000000000002E-3,8.0000000000000002E-3,2.1,0.19,0.91,0.85]
["Soybeans",8.0000000000000002E-3,8.0000000000000002E-3,2.1,0.19,0.91,0.85]
["Potatoes and Tubers",1.9E-2,1.4E-2,0.4,0.2,0.22,0.85]
["Peanuts",1.6E-2,"-",1,"-",0.94,0.85]
["Alfalfa",2.7E-2,1.9E-2,"-",0.4,0.9,0.85]
["Non-legume hay",1.4999999999999999E-2,1.2E-2,"-",0.54,0.9,0.85]
["N-fixing forages",2.7E-2,2.1999999999999999E-2,0.3,0.4,0.9,0.85]
["Non-N-fixing forages",1.4999999999999999E-2,1.2E-2,0.3,0.54,0.9,0.85]
["Perennial Grasses",1.4999999999999999E-2,1.2E-2,0.3,0.8,0.9,0.85]
["Grass-Clover Mixtures",2.5000000000000001E-2,1.6E-2,0.3,0.8,0.9,0.85]
[]
["Sources:"]
["Section 4.3.1 of the guideline"]
["From Tables 11.1A and 2.6 of (IPCC, 2019)"]

{"sheet":"Annex 11 - Indirect N2O soil","index":15,"n_rows":12,"n_cols":6,"rows_kept":12,"cut":false,"hidden":false,"merged":[]}
["Condition","EF_4","EF_5","Frac_GASF","Frac_GASM","Frac_leach_H"]
["Default value",0.01,1.0999999999999999E-2,0.11,0.21,0.24]
["Wet climate",1.4E-2,"-","-","-","-"]
["Dty climate",5.0000000000000001E-3,"-","-","-","-"]
["Urea","-","-",0.15,"-","-"]
["Ammonium-based","-","-",0.08,"-","-"]
["Nitrate-based","-",6.0000000000000001E-3,0.01,"-","-"]
["Ammonium-nitrate-based","-",2E-3,0.05,"-","-"]
[]
["Sources:"]
["Section 4.3.2 of the guideline"]
["From Table 11.3 of (IPCC, 2019)"]